{"text_format":"1","workbook":"xlsx","n_sheets":10,"sheets":["set","site","table","getlinkteams","home","away","match","analyze","analyzematch","result"],"not_rendered":{"charts":1,"images":0,"macros":1,"external_links":0,"defined_names":3318,"comments":0,"pivot_tables":0},"unopened":[],"bounds":{"document_bytes":16777216,"sheet_cells":100000,"rows_first":2000,"rows_last":500,"rows_between":2000,"halvings":0,"cell_chars":16384,"cell_head_chars":4096},"cells_cut":0,"cells_raw":0,"read":"whole","date_system":"1900"}

{"sheet":"set","index":0,"n_rows":12,"n_cols":13,"rows_kept":12,"cut":false,"hidden":true,"merged":[]}
[null,5,1,2,3,4,null,null,{"$f":"CONCATENATE(\"https://primatips.com/tips/\",J1)","v":"https://primatips.com/tips/2022-01-30"},{"$f":"fmt(INDEX(I2:I10,I12),\"YYYY-MM-DD\")","v":"2022-01-30"},null,null,4]
[158,{"$f":"INDEX(site!$A:$E,$A2,B$1)","v":"https://primatips.com/tip/america-de-cali-atletico-bucaramanga-categoria-primera-a-colombia-693169"},{"$f":"fmt(INDEX(site!$A:$E,$A2,C$1)+M1/24,\"HH:MM\")","v":"03:10"},{"$f":"INDEX(site!$A:$E,$A2,D$1)","v":"Col1"},{"$f":"INDEX(site!$A:$E,$A2,E$1)","v":"America de Cali - CA Bucaramanga"},{"$f":"INDEX(site!$A:$E,$A2,F$1)","v":" "},null,null,{"$f":"fmt(I3-1,\"YYYY-MM-DD\")","v":"2022-01-26"}]
[null,null,null,null,null,null,null,null,"2022-01-27"]
[null,null,null,null,null,null,null,null,"2022-01-28"]
[1,{"$f":"INDEX(getlinkteams!A:A,A5)","v":"https://primatips.com/teams/colombia/america-de-cali/no-links"},null,null,null,null,null,null,{"$f":"fmt(I6-1,\"YYYY-MM-DD\")","v":"2022-01-29"}]
[2,{"$f":"INDEX(getlinkteams!A:A,A6)","v":"https://primatips.com/teams/colombia/atletico-bucaramanga/no-links"},null,null,null,null,null,null,{"$f":"fmt(TODAY(),\"YYYY-MM-DD\")","v":"2022-01-30"}]
[null,null,null,null,null,null,null,null,{"$f":"fmt(I6+1,\"YYYY-MM-DD\")","v":"2022-01-31"}]
[null,null,null,null,null,null,null,null,{"$f":"fmt(I7+1,\"YYYY-MM-DD\")","v":"2022-02-01"}]
[null,null,null,null,null,null,null,null,"2022-02-02"]
[null,null,null,null,null,null,null,null,"2022-02-03"]
[]
[null,null,null,null,null,null,null,null,5]

{"sheet":"site","index":1,"n_rows":158,"n_cols":5,"rows_kept":158,"cut":false,"hidden":true,"merged":[]}
["00:00","Bra","Luverdense MT - Cuiaba MT","2 - 1","https://primatips.com/tip/luverdense-mt-cuiaba-mt-brazil-692767"]
["01:00","Els1","Chalatenango - Firpo Usulutan","2 - 1","https://primatips.com/tip/cd-chalatenango-firpo-usulutan-primera-division-el-salvador-692777"]
["01:00","Els1","Isidro Metapan - Platense Zac.","1 - 1","https://primatips.com/tip/isidro-metapan-platense-zacatecoluca-primera-division-el-salvador-692779"]
["01:05","Mex2","Correcaminos - Cimarrones","0 - 2","https://primatips.com/tip/correcaminos-uat-cimarrones-de-sonora-liga-de-expansion-mx-mexico-693046"]
["01:15","Col1","Millonarios - Atl. Nacional","0 - 2","https://primatips.com/tip/millonarios-bogota-atletico-nacional-categoria-primera-a-colombia-692985"]
["01:15","Els1","Santa Tecla - Jocoro FC","3 - 0","https://primatips.com/tip/santa-tecla-fc-jocoro-fc-primera-division-el-salvador-692781"]
["02:00","Gua1","Xelaju MC - Nueva Concepcion","2 - 1","https://primatips.com/tip/xelaju-mc-deportivo-nueva-concepcion-liga-nacional-guatemala-693009"]
["03:05","Mex2","Celaya - Raya2 Expansion","2 - 1","https://primatips.com/tip/celaya-raya2-expansion-liga-de-expansion-mx-mexico-693047"]
["05:05","Aus1","Sydney - CC Mariners","3 - 2","https://primatips.com/tip/sydney-fc-central-coast-mariners-a-league-australia-692952"]
["07:45","Aus1","Newcastle Jets - Adelaide Utd","1 - 2","https://primatips.com/tip/newcastle-united-jets-adelaide-united-a-league-australia-692953"]
["10:00","And1","UE Engordany - UE Santa Coloma","1 - 1","https://primatips.com/tip/ue-engordany-ue-santa-coloma-primera-divisio-andorra-692963"]
["10:00","Fr","KFUM Oslo - Skeid","2 - 0","https://primatips.com/tip/kfum-oslo-skeid-club-friendly-693445"]
["11:00","Por2","Mafra - Academico Viseu","0 - 0","https://primatips.com/tip/mafra-academico-de-viseu-segunda-liga-portugal-693058"]
["11:00","Por2","Nacional Madeira - Porto B","1 - 0","https://primatips.com/tip/nacional-porto-b-segunda-liga-portugal-693059"]
["11:00","Spa3","Calahorra - Zamora CF","0 - 0","https://primatips.com/tip/calahorra-zamora-cf-primera-division-rfef-group-1-spain-693065"]
["11:00","Spa3","Inter de Madrid - Extremadura","4 - 2","https://primatips.com/tip/internacional-de-madrid-extremadura-primera-division-rfef-group-1-spain-693066"]
["11:00","Spa3","SS Reyes - UD Logrones","1 - 1","https://primatips.com/tip/s-s-reyes-ud-logrones-primera-division-rfef-group-1-spain-693067"]
["11:00","Spa3","Atl. Baleares - Costa Brava","1 - 0","https://primatips.com/tip/atletico-baleares-costa-brava-primera-division-rfef-group-2-spain-693071"]
["11:00","Spa3","Cornella - Linares Dep.","2 - 1","https://primatips.com/tip/cornella-linares-deportivo-primera-division-rfef-group-2-spain-693073"]
["11:00","Spa3","Linense - Sabadell","1 - 1","https://primatips.com/tip/linense-sabadell-primera-division-rfef-group-2-spain-693072"]
["11:00","Tha1","Chonburi - Port Bangkok","3 - 2","https://primatips.com/tip/chonburi-port-bangkok-thai-league-1-thailand-693079"]
["11:00","Tha1","Nakhon Ratch. - PT Prachuap","2 - 3","https://primatips.com/tip/nakhon-ratchasima-fc-pt-prachuap-thai-league-1-thailand-693080"]
["11:15","Ned2","VVV-Venlo - Dordrecht","4 - 2","https://primatips.com/tip/vvv-venlo-fc-dordrecht-eerste-divisie-netherlands-692942"]
["11:30","Ita3","Cesena - Olbia","3 - 0","https://primatips.com/tip/cesena-olbia-serie-c-group-b-italy-693023"]
["12:00","Egy","El Masry - Eastern Company","1 - 2","https://primatips.com/tip/al-masry-port-said-eastern-company-sc-egypt-693110"]
["12:00","Egy","Pyramids - Misr Elmaqasah","2 - 0","https://primatips.com/tip/pyramids-fc-misr-el-makasa-egypt-693111"]
["12:00","Fr","Gornik Leczna - Motor Lublin"," ","https://primatips.com/tip/gornik-leczna-motor-lublin-club-friendly-693452"]
["12:00","Fr","Horsens - Sonderjyske","3 - 1","https://primatips.com/tip/horsens-sonderjyske-club-friendly-692958"]
["12:00","Ger3","Viktoria Koln - Munchen 1860","0 - 1","https://primatips.com/tip/viktoria-koln-munchen-1860-3-liga-germany-692993"]
["12:00","Gre2","Episkopi FC - Kalamata","0 - 0","https://primatips.com/tip/episkopi-fc-kalamata-fc-super-league-2-greece-693001"]
["12:00","Hun1","Puskas Akademia - MOL Fehervar","1 - 0","https://primatips.com/tip/puskas-academy-mol-fehervar-nb-i-hungary-693013"]
["12:00","Rou1","Chindia - CS Mioveni","0 - 0","https://primatips.com/tip/chindia-targoviste-cs-mioveni-liga-i-romania-692954"]
["12:30","And1","FC Santa Coloma - Inter Escaldes","3 - 2","https://primatips.com/tip/fc-santa-coloma-inter-club-d-escaldes-primera-divisio-andorra-692964"]
["12:30","Bel1","Saint-Gilloise - Anderlecht","1 - 0","https://primatips.com/tip/union-saint-gilloise-anderlecht-first-division-a-belgium-692930"]
["12:30","Tha1","Ratchaburi - Samut Prakan City","0 - 0","https://primatips.com/tip/ratchaburi-fc-samut-prakan-city-thai-league-1-thailand-693081"]
["12:45","Alb1","Kastrioti Kruje - Vllaznia","0 - 1","https://primatips.com/tip/kastrioti-kruje-vllaznia-shkoder-superliga-albania-692960"]
["12:45","Gre2","Anag. Karditsas - Pierikos","2 - 0","https://primatips.com/tip/anagennisi-karditsas-pierikos-katerinis-super-league-2-greece-692995"]
["12:45","Gre2","Apollon Larissa - Ol. Volos","1 - 1","https://primatips.com/tip/apollon-larissa-olympiakos-volou-super-league-2-greece-692996"]
["12:45","Gre2","Apollon Pontou - Xanthi","0 - 0","https://primatips.com/tip/apollon-pontou-xanthi-fc-super-league-2-greece-692997"]
["12:45","Gre2","Ierapetra - Chania","0 - 0","https://primatips.com/tip/of-ierapetra-pae-chania-super-league-2-greece-693004"]
["12:45","Gre2","Iraklis - Kavala","1 - 2","https://primatips.com/tip/iraklis-thessaloniki-kavala-super-league-2-greece-692998"]
["12:45","Gre2","Irodotos - Ergotelis","1 - 2","https://primatips.com/tip/irodotos-ergotelis-heraklion-super-league-2-greece-693005"]
["12:45","Gre2","Kifisia - AEK Athens B","2 - 1","https://primatips.com/tip/kifisia-aek-athens-b-super-league-2-greece-692794"]
["12:45","Gre2","Levadiakos - Karaiskakis","3 - 0","https://primatips.com/tip/levadiakos-karaiskakis-arta-super-league-2-greece-693003"]
["12:45","Gre2","Olympiacos B - Niki Volos","2 - 0","https://primatips.com/tip/olympiacos-piraeus-b-niki-volou-super-league-2-greece-692792"]
["12:45","Gre2","Panserraikos - Almopos Aridea","1 - 3","https://primatips.com/tip/panserraikos-almopos-aridea-super-league-2-greece-693000"]
["12:45","Gre2","Rodos FC - Panathinaikos B","0 - 0","https://primatips.com/tip/rodos-fc-panathinaikos-b-super-league-2-greece-693006"]
["12:45","Gre2","Veria - Thesprotos","2 - 1","https://primatips.com/tip/veria-fc-thesprotos-igoumenitsa-super-league-2-greece-692999"]
["12:45","Por2","Rio Ave - Varzim","1 - 1","https://primatips.com/tip/rio-ave-varzim-segunda-liga-portugal-693060"]
["13:00","Bdi1","Bumamuru - Les Crocos","1 - 0","https://primatips.com/tip/bumamuru-les-crocos-premier-league-burundi-693118"]
["13:00","Fr","Slavia Prague - Banik Ostrava","4 - 2","https://primatips.com/tip/slavia-prague-banik-ostrava-club-friendly-693446"]
["13:00","Ger3","Meppen - Waldhof Mannheim","1 - 1","https://primatips.com/tip/meppen-waldhof-mannheim-3-liga-germany-692994"]
["13:00","Gre1","Panetolikos - Aris","0 - 2","https://primatips.com/tip/panetolikos-aris-thessaloniki-super-league-greece-692946"]
["13:00","Gre1","PAS Giannina - Apollon Smyrnis","2 - 0","https://primatips.com/tip/pas-giannina-apollon-smyrni-super-league-greece-692945"]
["13:00","Mlt1","Hamrun Spartans - Floriana","2 - 2","https://primatips.com/tip/hamrun-spartans-floriana-premier-league-malta-693042"]
["13:00","Spa2","Leganes - Alcorcon","1 - 0","https://primatips.com/tip/leganes-alcorcon-segunda-division-spain-692934"]
["13:00","Zam1","Green Eagles - Nkwazi","2 - 1","https://primatips.com/tip/green-eagles-nkwazi-super-league-zambia-693148"]
["13:15","Sui1","Lausanne - St. Gallen","1 - 5","https://primatips.com/tip/lausanne-st-gallen-swiss-super-league-switzerland-692949"]
["13:15","Sui2","Wil - Vaduz","4 - 4","https://primatips.com/tip/wil-vaduz-challenge-league-switzerland-693077"]
["13:15","Sui2","Winterthur - Kriens","3 - 0","https://primatips.com/tip/winterthur-kriens-challenge-league-switzerland-693078"]
["13:30","Alg1","CS Constantine - JS Kabylie","2 - 1","https://primatips.com/tip/cs-constantine-js-kabylie-championnat-national-algeria-692750"]
["13:30","Eng2","Derby County - Birmingham City","2 - 2","https://primatips.com/tip/derby-county-birmingham-championship-england-692920"]
["13:30","Idn1","Persija Jakarta - Persiraja B. Aceh","0 - 1","https://primatips.com/tip/persija-jakarta-persiraja-banda-aceh-liga-1-indonesia-693020"]
["13:30","Ita2","Cittadella - Cosenza","1 - 1","https://primatips.com/tip/cittadella-cosenza-serie-b-italy-692939"]
["13:30","Ita2","L.R. Vicenza - Alessandria","2 - 1","https://primatips.com/tip/vicenza-virtus-alessandria-serie-b-italy-692940"]
["13:30","Ita2","Parma - Crotone","1 - 1","https://primatips.com/tip/parma-crotone-serie-b-italy-692941"]
["13:30","Ita3","Aquila 1902 - Pontedera","0 - 0","https://primatips.com/tip/montevarchi-aquila-pontedera-serie-c-group-b-italy-693025"]
["13:30","Ita3","Entella - Modena","0 - 2","https://primatips.com/tip/entella-modena-serie-c-group-b-italy-693031"]
["13:30","Ita3","Fermana - Carrarese","0 - 0","https://primatips.com/tip/fermana-carrarese-serie-c-group-b-italy-693026"]
["13:30","Ita3","Gubbio - Grosseto","0 - 0","https://primatips.com/tip/gubbio-grosseto-serie-c-group-b-italy-693027"]
["13:30","Ita3","Imolese - Teramo","1 - 0","https://primatips.com/tip/imolese-teramo-serie-c-group-b-italy-693028"]
["13:30","Ita3","Lucchese - Ancona-Matelica","2 - 2","https://primatips.com/tip/lucchese-ancona-serie-c-group-b-italy-693029"]
["13:30","Ita3","Pistoiese - Vis Pesaro 1898","0 - 1","https://primatips.com/tip/pistoiese-vis-pesaro-1898-serie-c-group-b-italy-693030"]
["13:30","Ita3","Reggiana 1919 - Siena","1 - 0","https://primatips.com/tip/reggiana-1919-siena-serie-c-group-b-italy-693024"]
["13:30","Ita3","Viterbese - Pescara","1 - 3","https://primatips.com/tip/viterbese-pescara-serie-c-group-b-italy-693032"]
["13:30","Ita3","Messina - Picerno","1 - 1","https://primatips.com/tip/messina-picerno-serie-c-group-c-italy-693033"]
["13:30","Ita3","Paganese - Bari","1 - 2","https://primatips.com/tip/paganese-bari-serie-c-group-c-italy-693034"]
["13:30","Ned2","Almere City - Telstar","0 - 0","https://primatips.com/tip/almere-city-fc-telstar-velsen-eerste-divisie-netherlands-692943"]
["14:00","Cro1","Lok. Zagreb - Hrv. Dragovoljac","2 - 1","https://primatips.com/tip/lokomotiva-zagreb-hrvatski-dragovoljac-prva-hnl-croatia-692988"]
["14:00","Cyp1","APOEL Nicosia - Doxa Katokopia","2 - 0FT","https://primatips.com/tip/apoel-nicosia-doxa-katokopia-first-division-cyprus-692990"]
["14:00","Ind1","Kerala Blasters - Bengaluru","0 - 1","https://primatips.com/tip/kerala-blasters-bengaluru-fc-super-league-india-693016"]
["14:00","Por2","Chaves - Feirense","3 - 088'","https://primatips.com/tip/chaves-feirense-segunda-liga-portugal-693061"]
["14:15","Hun1","Mezokovesdi SE - MTK Budapest","1 - 185'","https://primatips.com/tip/mezokovesdi-se-mtk-budapest-nb-i-hungary-693014"]
["15:00","And1","Carroi - Atletic Escaldes"," ","https://primatips.com/tip/ce-carroi-atletic-club-d-escaldes-primera-divisio-andorra-692965"]
["15:00","Ang1","Primeiro Agosto - Sporting Benguela"," ","https://primatips.com/tip/primeiro-de-agosto-sporting-de-benguela-girabola-angola-693116"]
["15:00","Bel1","KAA Gent - Royal Antwerp","0 - 1HT","https://primatips.com/tip/kaa-gent-royal-antwerp-first-division-a-belgium-692931"]
["15:00","Bel2","Waasland-Beveren - Westerlo","1 - 0HT","https://primatips.com/tip/waasland-beveren-westerlo-first-division-b-belgium-692967"]
["15:00","CAN","Egypt - Morocco","0 - 1HT","https://primatips.com/tip/egypt-morocco-africa-cup-of-nations-final-stage-692923"]
["15:00","Fr","Valerenga Oslo - Krasnodar","0 - 1HT","https://primatips.com/tip/valerenga-oslo-fk-krasnodar-club-friendly-693153"]
["15:00","Gib1","Lincoln Red Imps - Europa FC"," ","https://primatips.com/tip/lincoln-red-imps-europa-fc-championship-group-gibraltar-693226"]
["15:00","Gre2","Kallithea - Diagoras","0 - 0HT","https://primatips.com/tip/kallithea-fc-diagoras-rodos-super-league-2-greece-693007"]
["15:00","Mlt1","Valletta - Gudja United"," ","https://primatips.com/tip/valletta-gudja-united-premier-league-malta-693043"]
["15:00","Nga1","Dakkada - Enugu Rangers","0 - 0HT","https://primatips.com/tip/dakkada-enugu-rangers-npfl-nigeria-693049"]
["15:00","Nga1","Kwara United - Gombe United","2 - 0HT","https://primatips.com/tip/kwara-united-gombe-united-npfl-nigeria-693052"]
["15:00","Nga1","MFM Lagos - Shooting Stars","0 - 1HT","https://primatips.com/tip/mfm-lagos-shooting-stars-npfl-nigeria-693053"]
["15:00","Nga1","Plateau United - Abia Warriors","0 - 0HT","https://primatips.com/tip/plateau-united-abia-warriors-npfl-nigeria-693055"]
["15:00","Nga1","Remo Stars - Rivers United","1 - 145'+","https://primatips.com/tip/remo-stars-rivers-united-npfl-nigeria-693056"]
["15:00","Nga1","Wikki Tourists - Nasarawa United","1 - 0HT","https://primatips.com/tip/wikki-tourists-nasarawa-united-npfl-nigeria-693057"]
["15:00","Rou1","U Craiova 1948 - Arges Pitesti","0 - 0HT","https://primatips.com/tip/u-craiova-1948-arges-pitesti-liga-i-romania-692955"]
["15:00","Spa2","Cartagena - Fuenlabrada","1 - 0HT","https://primatips.com/tip/cartagena-fuenlabrada-segunda-division-spain-692935"]
["15:15","Gre1","AEK Athens - Volos","1 - 140'","https://primatips.com/tip/aek-athens-volos-fc-super-league-greece-692947"]
["15:30","Por1","Portimonense - Tondela","0 - 027'","https://primatips.com/tip/portimonense-tondela-primeira-liga-portugal-692925"]
["15:30","Por1","Vizela - V. Guimaraes","0 - 128'","https://primatips.com/tip/vizela-vitoria-guimaraes-primeira-liga-portugal-692926"]
["15:30","Por2","Sp. Covilha - Vilafranquense","0 - 126'","https://primatips.com/tip/sporting-covilha-vilafranquense-segunda-liga-portugal-693062"]
["15:30","Sui1","Luzern - Basel","0 - 027'","https://primatips.com/tip/luzern-basel-swiss-super-league-switzerland-692950"]
["15:30","Sui1","Sion - Grasshopper","0 - 027'","https://primatips.com/tip/sion-grasshopper-swiss-super-league-switzerland-692951"]
["15:45","Alb1","KF Tirana - Kukesi","0 - 012'","https://primatips.com/tip/kf-tirana-kukesi-superliga-albania-692961"]
["15:45","Alb1","Skenderbeu Korce - Teuta Durres"," ","https://primatips.com/tip/skenderbeu-korce-teuta-durres-superliga-albania-692962"]
["15:45","Ned2","ADO Den Haag - De Graafschap","0 - 010'","https://primatips.com/tip/ado-den-haag-de-graafschap-eerste-divisie-netherlands-692944"]
["16:00","Eng2","Cardiff City - Nottingham Forest"," ","https://primatips.com/tip/cardiff-nottingham-championship-england-692921"]
["16:00","Spa3","Real Union - Valladolid B","-   -","https://primatips.com/tip/real-union-valladolid-promesas-primera-division-rfef-group-1-spain-693069"]
["16:00","Spa3","Talavera - Tudelano"," ","https://primatips.com/tip/talavera-de-la-reina-tudelano-primera-division-rfef-group-1-spain-693068"]
["16:00","Spa3","Alcoyano - Atl. Sanluqueno"," ","https://primatips.com/tip/cd-alcoyano-atletico-sanluqueno-primera-division-rfef-group-2-spain-693074"]
["16:00","Spa3","Betis B - Gimnastic"," ","https://primatips.com/tip/betis-deportivo-balompie-gimnastic-de-tarragona-primera-division-rfef-group-2-spain-693075"]
["16:30","Cro1","Dinamo Zagreb - Rijeka"," ","https://primatips.com/tip/dinamo-zagreb-hnk-rijeka-prva-hnl-croatia-692989"]
["16:30","Ita3","Catania - Catanzaro"," ","https://primatips.com/tip/catania-catanzaro-serie-c-group-c-italy-693035"]
["16:30","Ita3","Fidelis Andria - Campobasso"," ","https://primatips.com/tip/fidelis-andria-citta-di-campobasso-serie-c-group-c-italy-693036"]
["16:30","Ita3","Latina - Taranto"," ","https://primatips.com/tip/latina-taranto-serie-c-group-c-italy-693037"]
["16:30","Ita3","Monopoli 1966 - V. Francavilla"," ","https://primatips.com/tip/monopoli-1966-virtus-francavilla-serie-c-group-c-italy-693038"]
["16:30","Ita3","Palermo - Monterosi"," ","https://primatips.com/tip/palermo-monterosi-serie-c-group-c-italy-693039"]
["16:30","Ita3","Potenza - Avellino"," ","https://primatips.com/tip/potenza-avellino-serie-c-group-c-italy-693040"]
["16:30","Ita3","Turris - Vibonese"," ","https://primatips.com/tip/turris-vibonese-serie-c-group-c-italy-693041"]
["17:00","Cyp1","Apollon Limassol - Ol. Nicosia"," ","https://primatips.com/tip/apollon-limassol-olympiakos-nicosia-first-division-cyprus-692991"]
["17:00","Gua1","Solola - Municipal"," ","https://primatips.com/tip/solola-municipal-liga-nacional-guatemala-693010"]
["17:00","Isr2","M. Ahi Nazareth - Hapoel Acre"," ","https://primatips.com/tip/maccabi-ahi-nazareth-hapoel-acre-liga-leumit-israel-693238"]
["17:00","Mlt1","Birkirkara - Gzira United"," ","https://primatips.com/tip/birkirkara-gzira-united-premier-league-malta-693044"]
["17:15","Spa2","Las Palmas - Real Sociedad B"," ","https://primatips.com/tip/las-palmas-real-sociedad-b-segunda-division-spain-692936"]
["17:15","Spa2","Mirandes - Malaga"," ","https://primatips.com/tip/mirandes-malaga-segunda-division-spain-692937"]
["17:30","And1","Sant Julia - Ordino"," ","https://primatips.com/tip/sant-julia-fc-ordino-primera-divisio-andorra-692966"]
["17:30","Bel1","Standard Liege - Mechelen"," ","https://primatips.com/tip/standard-liege-mechelen-first-division-a-belgium-692932"]
["17:30","Gre1","PAOK - Olympiacos"," ","https://primatips.com/tip/paok-thessaloniki-olympiacos-piraeus-super-league-greece-692948"]
["17:30","Por2","Acad. Coimbra - Leixoes"," ","https://primatips.com/tip/academica-coimbra-leixoes-segunda-liga-portugal-693063"]
["18:00","Gua1","Malacateco - Coban Imperial"," ","https://primatips.com/tip/deportivo-malacateco-coban-imperial-liga-nacional-guatemala-693011"]
["18:00","Isr1","Hapoel Tel Aviv - Hapoel Hadera"," ","https://primatips.com/tip/hapoel-tel-aviv-hapoel-hadera-premier-league-israel-693021"]
["18:00","Mex2","Tapatio - Tampico Madero"," ","https://primatips.com/tip/tapatio-tampico-madero-liga-de-expansion-mx-mexico-693048"]
["18:00","Por1","SC Braga - Moreirense"," ","https://primatips.com/tip/sc-braga-moreirense-primeira-liga-portugal-692927"]
["18:00","Rou1","Din. Bucuresti - FC FCSB"," ","https://primatips.com/tip/dinamo-bucuresti-fc-fcsb-liga-i-romania-692956"]
["18:00","Spa3","Dep. La Coruna - R. Santander","-   -","https://primatips.com/tip/deportivo-la-coruna-racing-santander-primera-division-rfef-group-1-spain-693070"]
["18:00","Spa3","Castellon - UCAM Murcia"," ","https://primatips.com/tip/castellon-ucam-murcia-primera-division-rfef-group-2-spain-693076"]
["18:30","Isr1","Maccabi Netanya - Maccabi Haifa"," ","https://primatips.com/tip/maccabi-netanya-maccabi-haifa-premier-league-israel-693022"]
["19:00","Bel2","RWD Molenbeek - RE Mouscron"," ","https://primatips.com/tip/rwd-molenbeek-47-royal-excel-mouscron-first-division-b-belgium-692968"]
["19:00","Bra","CSA AL - Botafogo PB"," ","https://primatips.com/tip/centro-sportivo-alagoano-al-botafogo-pb-brazil-692972"]
["19:00","CAN","Senegal - Equat. Guinea"," ","https://primatips.com/tip/senegal-equatorial-guinea-africa-cup-of-nations-final-stage-692924"]
["19:00","Col1","Patriotas - Dep. Pereira"," ","https://primatips.com/tip/patriotas-boyaca-deportivo-pereira-categoria-primera-a-colombia-692986"]
["19:00","Hun1","Ujpest - Ferencvaros"," ","https://primatips.com/tip/ujpest-ferencvarosi-nb-i-hungary-693015"]
["20:00","Bel1","Kortrijk - Club Brugge"," ","https://primatips.com/tip/kortrijk-club-brugge-first-division-a-belgium-692933"]
["20:00","Fra","Lens - Monaco"," ","https://primatips.com/tip/lens-monaco-coupe-de-france-692929"]
["20:00","Spa2","Ponferradina - Tenerife"," ","https://primatips.com/tip/ponferradina-tenerife-segunda-division-spain-692938"]
["20:05","WCup","Canada - USA"," ","https://primatips.com/tip/canada-usa-world-cup-qualification-692922"]
["20:30","Por1","Porto - Maritimo"," ","https://primatips.com/tip/porto-maritimo-primeira-liga-portugal-692928"]
["21:00","Bra","Sampaio Correa - Altos PI"," ","https://primatips.com/tip/sampaio-correa-ma-altos-pi-brazil-692973"]
["21:00","Els1","Mun. Limeno - Aguila"," ","https://primatips.com/tip/municipal-limeno-aguila-san-miguel-primera-division-el-salvador-692780"]
["21:00","Gua1","Guastatoya - Dep. Achuapa"," ","https://primatips.com/tip/deportivo-guastatoya-deportivo-achuapa-liga-nacional-guatemala-693012"]
["21:05","Col1","Ind. Medellin - Deportivo Cali"," ","https://primatips.com/tip/independiente-medellin-deportivo-cali-categoria-primera-a-colombia-692987"]
["22:00","Uru","Plaza Colonia - Penarol"," ","https://primatips.com/tip/plaza-colonia-penarol-montevideo-super-cup-uruguay-693218"]
["23:00","WCup","Mexico - Costa Rica"," ","https://primatips.com/tip/mexico-costa-rica-world-cup-qualification-693154"]
["23:05","WCup","Panama - Jamaica"," ","https://primatips.com/tip/panama-jamaica-world-cup-qualification-693155"]
["23:10","Col1","America de Cali - CA Bucaramanga"," ","https://primatips.com/tip/america-de-cali-atletico-bucaramanga-categoria-primera-a-colombia-693169"]

{"sheet":"table","index":2,"n_rows":21,"n_cols":2,"rows_kept":21,"cut":false,"hidden":true,"merged":[]}
["Jaguares Cordoba",6]
["J. Barranquilla",6]
["Santa Fe Bogota",5]
["Once Caldas",5]
["Atl. Nacional",4]
["Alianza Petr.",4]
["America de Cali",4]
["Millonarios",4]
["Patriotas",3]
["Deportes Tolima",3]
["Envigado",3]
["Ind. Medellin",3]
["CA Bucaramanga",2]
["Union Magdalena",2]
["Cortulua Tulua",2]
["Rionegro",2]
["Dep. Pereira",1]
["La Equidad",1]
["Deportivo Cali",0]
["Dep. Pasto",0]
["Jaguares Cordoba"]

{"sheet":"getlinkteams","index":3,"n_rows":2,"n_cols":1,"rows_kept":2,"cut":false,"hidden":true,"merged":[]}
["https://primatips.com/teams/colombia/america-de-cali/no-links"]
["https://primatips.com/teams/colombia/atletico-bucaramanga/no-links"]

{"sheet":"home","index":4,"n_rows":3,"n_cols":4,"rows_kept":3,"cut":false,"hidden":true,"merged":[]}
["2022-01-28","Dep. Pereira","1 - 1","America de Cali"]
["2022-01-21","America de Cali","1 - 0","Envigado"]
[null,null,"-"]

{"sheet":"away","index":5,"n_rows":3,"n_cols":4,"rows_kept":3,"cut":false,"hidden":true,"merged":[]}
["2022-01-26","CA Bucaramanga","0 - 0","Millonarios"]
["2022-01-20","Rionegro","1 - 1","CA Bucaramanga"]
[null,null,"-"]

{"sheet":"match","index":6,"n_rows":22,"n_cols":40,"rows_kept":22,"cut":false,"hidden":true,"merged":[]}
["05.12.21","Royal Pari - Blooming","04:03:00","05.12.21","Real Potosi - Guabira","01:03:00",{"$f":"IF($K$7=K1,\"H\",\"A\")","v":"A"},{"$f":"A1","v":"05.12.21"},{"$f":"B1","v":"Royal Pari - Blooming"},{"$f":"analyze!D3","v":"1 - 1"},{"$f":"analyze!C3","v":"Dep. Pereira"},{"$f":"analyze!E3","v":"America de Cali"},{"$f":"IFERROR(LEFT(J1,SEARCH(\" - \",J1)-1)*1,\"\")","v":1},{"$f":"IFERROR(MID(J1,SEARCH(\" - \",J1)+3,100)*1,\"\")","v":1},{"$f":"IF($K$7=K1,M1,N1)","v":1},{"$f":"IF($K$7=L1,M1,N1)","v":1},{"$f":"IF(P1=\"\",\"\",IF(O1>P1,\"W\",IF(O1=P1,\"D\",IF(O1<P1,\"L\",\"\"))))","v":"D"},{"$f":"IFERROR(IF((O1+P1)>2,\"2,5 O\",\"2,5 U\"),\"\")","v":"2,5 U"},{"$f":"IF(R1=\"\",\"\",IF(AND(O1>0,P1>0),\"BTS Y\",\"BTS N\"))","v":"BTS Y"},1,{"$f":"IF(Q1=\"W\",1,IF(Q1=\"D\",0.5,IF(Q1=\"L\",0,\"\")))","v":0.5},{"$f":"IFERROR(O1-P1,\"\")","v":0},{"$f":"IF(V1=\"\",\"\",IF(O1>0,\"OK\",\"NO\"))","v":"OK"},null,"G","W","D","L","2,5 O","2,5 U","BTS Y","BTS N","TEAM TEMP","POINTS","GOALS","GOAL S","GOAL NS"]
["01.12.21","Blooming - Always Ready","01:02:00","02.12.21","Real Potosi - Petrolero","00:05:00",{"$f":"IF($K$7=K2,\"H\",\"A\")","v":"H"},{"$f":"A2","v":"01.12.21"},"Blooming - Always Ready",{"$f":"analyze!D4","v":"1 - 0"},{"$f":"analyze!C4","v":"America de Cali"},{"$f":"analyze!E4","v":"Envigado"},{"$f":"IFERROR(LEFT(J2,SEARCH(\" - \",J2)-1)*1,\"\")","v":1},{"$f":"IFERROR(MID(J2,SEARCH(\" - \",J2)+3,100)*1,\"\")","v":0},{"$f":"IF($K$7=K2,M2,N2)","v":1},{"$f":"IF($K$7=L2,M2,N2)","v":0},{"$f":"IF(P2=\"\",\"\",IF(O2>P2,\"W\",IF(O2=P2,\"D\",IF(O2<P2,\"L\",\"\"))))","v":"W"},{"$f":"IFERROR(IF((O2+P2)>2,\"2,5 O\",\"2,5 U\"),\"\")","v":"2,5 U"},{"$f":"IF(R2=\"\",\"\",IF(AND(O2>0,P2>0),\"BTS Y\",\"BTS N\"))","v":"BTS N"},{"$f":"IF(S2=\"\",T1,T1+1)","v":2},{"$f":"IF(Q2=\"W\",1,IF(Q2=\"D\",0.5,IF(Q2=\"L\",0,\"\")))","v":1},{"$f":"IFERROR(O2-P2,\"\")","v":1},{"$f":"IF(V2=\"\",\"\",IF(O2>0,\"OK\",\"NO\"))","v":"OK"},null,{"$f":"T6","v":2},{"$f":"COUNTIF($Q$1:$S$6,Z1)","v":1},{"$f":"COUNTIF($Q$1:$S$6,AA1)","v":1},0,0,2,1,1,{"$f":"U7","v":0.75},{"$f":"SUM(U1:U6)","v":1.5},{"$f":"V7","v":1},{"$f":"COUNTIF($W$1:$W$6,\"OK\")","v":2},{"$f":"COUNTIF($W$1:$W$6,\"NO\")","v":0}]
["27.11.21","Atletico Palmaflor - Blooming","03:00:00","28.11.21","Royal Pari - Real Potosi","05:00:00","A","27.11.21","Atletico Palmaflor - Blooming",{"$f":"analyze!D5","v":"-"},{"$f":"analyze!C5","v":0},{"$f":"analyze!E5","v":0},"","","","","","","",{"$f":"IF(S3=\"\",T2,T2+1)","v":2},"","","",null,{"$f":"T14","v":2},{"$f":"COUNTIF($Q$9:$S$14,Z1)","v":0},{"$f":"COUNTIF($Q$9:$S$14,AA1)","v":2},0,0,2,1,1,{"$f":"U8","v":0.5},{"$f":"SUM(U9:U14)","v":1},{"$f":"V8","v":0},{"$f":"COUNTIF($W$9:$W$14,\"OK\")","v":1},{"$f":"COUNTIF($W$9:$W$14,\"NO\")","v":1}]
["22.11.21","Blooming - Wilstermann","02:02:00","21.11.21","Real Potosi - Always Ready","03:02:00","A","22.11.21","Blooming - Wilstermann",{"$f":"analyze!D6","v":0},{"$f":"analyze!C6","v":0},{"$f":"analyze!E6","v":0},"","","","","","","",2,"","",""]
["30.10.21","The Strongest - Blooming","02:01:00","02.11.21","Atletico Palmaflor - Real Potosi","00:01:00","A","30.10.21","The Strongest - Blooming",{"$f":"analyze!D7","v":0},{"$f":"analyze!C7","v":0},{"$f":"analyze!E7","v":0},"","","","","","","",2,"","","",null,null,{"$f":"Z2/$Y$2","v":0.5},{"$f":"AA2/$Y$2","v":0.5},0,0,1,0.5,0.5,null,null,null,{"$f":"AJ2/$Y$2","v":1},0]
["28.10.21","Blooming - Oriente Petrolero","01:01:00","27.10.21","Real Potosi - Wilstermann","02:02:00","A","28.10.21","Blooming - Oriente Petrolero",{"$f":"analyze!D8","v":0},{"$f":"analyze!C8","v":0},{"$f":"analyze!E8","v":0},"","","","","","","",2,"","","",null,null,{"$f":"Z3/$Y$3","v":0},{"$f":"AA3/$Y$3","v":1},0,0,1,0.5,0.5,null,null,null,0.5,0.5]
[null,null,null,null,null,null,null,null,null,null,{"$f":"IF(COUNTIF(K1:L6,K1)>COUNTIF(K1:L6,L1),K1,L1)","v":"America de Cali"},null,null,null,null,null,null,null,null,null,{"$f":"AVERAGE(U1:U6)","v":0.75},{"$f":"SUM(V1:V6)","v":1}]
[null,null,null,null,null,null,null,null,null,null,null,null,null,null,null,null,null,null,null,null,{"$f":"IFERROR(AVERAGE(U9:U14),\"NG\")","v":0.5},{"$f":"SUM(V9:V14)","v":0},null,null,null,{"$f":"AVERAGE(Z5,AB6)","v":0.25},{"$f":"AVERAGE(AA5:AA6)","v":0.75},{"$f":"AVERAGE(Z6,AB5)","v":0},{"$f":"AVERAGE(AC5:AC6)","v":0},{"$f":"AVERAGE(AD5:AD6)","v":1},0.5,0.5,null,null,null,{"$f":"AVERAGE(AJ5:AJ6)","v":0.75},{"$f":"AVERAGE(AK5:AK6)","v":0.25}]
[null,null,null,null,null,null,{"$f":"IF($K$15=K9,\"H\",\"A\")","v":"H"},{"$f":"D1","v":"05.12.21"},{"$f":"E1","v":"Real Potosi - Guabira"},{"$f":"analyze!D13","v":"0 - 0"},{"$f":"analyze!C13","v":"CA Bucaramanga"},{"$f":"analyze!E13","v":"Millonarios"},{"$f":"IFERROR(LEFT(J9,SEARCH(\" - \",J9)-1)*1,\"\")","v":0},{"$f":"IFERROR(MID(J9,SEARCH(\" - \",J9)+3,100)*1,\"\")","v":0},{"$f":"IF($K$15=K9,M9,N9)","v":0},{"$f":"IF($K$15=L9,M9,N9)","v":0},{"$f":"IF(P9=\"\",\"\",IF(O9>P9,\"W\",IF(O9=P9,\"D\",IF(O9<P9,\"L\",\"\"))))","v":"D"},{"$f":"IF(Q9=\"\",\"\",IF((O9+P9)>2,\"2,5 O\",\"2,5 U\"))","v":"2,5 U"},{"$f":"IF(R9=\"\",\"\",IF(AND(O9>0,P9>0),\"BTS Y\",\"BTS N\"))","v":"BTS N"},1,{"$f":"IF(Q9=\"W\",1,IF(Q9=\"D\",0.5,IF(Q9=\"L\",0,\"\")))","v":0.5},{"$f":"IFERROR(O9-P9,\"\")","v":0},{"$f":"IF(V9=\"\",\"\",IF(O9>0,\"OK\",\"NO\"))","v":"NO"}]
[null,null,null,null,null,null,{"$f":"IF($K$15=K10,\"H\",\"A\")","v":"A"},{"$f":"D2","v":"02.12.21"},"Real Potosi - Petrolero",{"$f":"analyze!D14","v":"1 - 1"},{"$f":"analyze!C14","v":"Rionegro"},{"$f":"analyze!E14","v":"CA Bucaramanga"},{"$f":"IFERROR(LEFT(J10,SEARCH(\" - \",J10)-1)*1,\"\")","v":1},{"$f":"IFERROR(MID(J10,SEARCH(\" - \",J10)+3,100)*1,\"\")","v":1},{"$f":"IF($K$15=K10,M10,N10)","v":1},{"$f":"IF($K$15=L10,M10,N10)","v":1},{"$f":"IF(P10=\"\",\"\",IF(O10>P10,\"W\",IF(O10=P10,\"D\",IF(O10<P10,\"L\",\"\"))))","v":"D"},{"$f":"IF(Q10=\"\",\"\",IF((O10+P10)>2,\"2,5 O\",\"2,5 U\"))","v":"2,5 U"},{"$f":"IF(R10=\"\",\"\",IF(AND(O10>0,P10>0),\"BTS Y\",\"BTS N\"))","v":"BTS Y"},{"$f":"IF(S10=\"\",T9,T9+1)","v":2},{"$f":"IF(Q10=\"W\",1,IF(Q10=\"D\",0.5,IF(Q10=\"L\",0,\"\")))","v":0.5},{"$f":"IFERROR(O10-P10,\"\")","v":0},{"$f":"IF(V10=\"\",\"\",IF(O10>0,\"OK\",\"NO\"))","v":"OK"}]
[null,null,null,null,null,null,"A","28.11.21","Royal Pari - Real Potosi",{"$f":"analyze!D15","v":"-"},{"$f":"analyze!C15","v":0},{"$f":"analyze!E15","v":0},{"$f":"IFERROR(LEFT(J11,SEARCH(\" - \",J11)-1)*1,\"\")","v":""},{"$f":"IFERROR(MID(J11,SEARCH(\" - \",J11)+3,100)*1,\"\")","v":""},"","",{"$f":"IF(P11=\"\",\"\",IF(O11>P11,\"W\",IF(O11=P11,\"D\",IF(O11<P11,\"L\",\"\"))))","v":""},{"$f":"IF(Q11=\"\",\"\",IF((O11+P11)>2,\"2,5 O\",\"2,5 U\"))","v":""},"",{"$f":"IF(S11=\"\",T10,T10+1)","v":2},"","",""]
[null,null,null,null,null,null,"A","21.11.21","Real Potosi - Always Ready",{"$f":"analyze!D16","v":0},{"$f":"analyze!C16","v":0},{"$f":"analyze!E16","v":0},"","","","","","","",2,"","",""]
[null,null,null,null,null,null,"A","02.11.21","Atletico Palmaflor - Real Potosi",{"$f":"analyze!D17","v":0},{"$f":"analyze!C17","v":0},{"$f":"analyze!E17","v":0},"","","","","","","",2,"","",""]
[null,null,null,null,null,null,"A","27.10.21","Real Potosi - Wilstermann",{"$f":"analyze!D18","v":0},{"$f":"analyze!C18","v":0},{"$f":"analyze!E18","v":0},"","","","","","","",2,"","",""]
[null,null,null,null,null,null,null,null,null,null,{"$f":"IF(COUNTIF(K9:L14,K9)>COUNTIF(K9:L14,L9),K9,L9)","v":"CA Bucaramanga"}]
[]
[]
[]
[]
[]
[]
[null,null,null,null,null,null,null,null,null,null,null,null,null,null,null,null,null,null,null,null,null,{"$f":"set!A2","v":158},{"$f":"set!D2","v":"Col1"},{"$f":"set!C2","v":"03:10"},{"$f":"AG2","v":0.75},{"$f":"AH2","v":1.5},{"$f":"AI2","v":1},{"$f":"set!E2","v":"America de Cali - CA Bucaramanga"},{"$f":"AI3","v":0},{"$f":"AH3","v":1},{"$f":"AG3","v":0.5},{"$f":"Z8","v":0.25},{"$f":"AA8","v":0.75},0,0,1,0.5,{"$f":"AF8","v":0.5},{"$f":"AJ8","v":0.75},{"$f":"AK8","v":0.25}]

{"sheet":"analyze","index":7,"n_rows":18,"n_cols":34,"rows_kept":18,"cut":false,"hidden":true,"merged":[[0,1,0,4],[10,1,10,4]]}
[null,{"$f":"IF(COUNTIF(C3:E7,C3)>COUNTIF(C3:E7,E3),C3,E3)","v":"America de Cali"},null,null,null,{"$f":"IFERROR(VLOOKUP(B1,table!$A:$B,2,0),\"-\")","v":4},null,null,null,null,null,null,null,null,null,{"$f":"set!J1","v":"2022-01-30"},{"$f":"match!X22","v":"03:10"},{"$f":"match!W22","v":"Col1"},{"$f":"match!Y22","v":0.75},{"$f":"match!Z22","v":1.5},{"$f":"match!AA22","v":1},{"$f":"set!E2","v":"America de Cali - CA Bucaramanga"},{"$f":"match!AC22","v":0},{"$f":"match!AD22","v":1},{"$f":"match!AE22","v":0.5},{"$f":"match!AF22","v":0.25},{"$f":"match!AG22","v":0.75},{"$f":"match!AH22","v":0},{"$f":"match!AI22","v":0},{"$f":"match!AJ22","v":1},{"$f":"match!AK22","v":0.5},{"$f":"match!AL22","v":0.5},{"$f":"match!AM22","v":0.75},{"$f":"match!AN22","v":0.25}]
[null,1,2,3,4]
[1,{"$f":"INDEX(home!$A:$D,$A3,B$2)","v":"2022-01-28"},{"$f":"INDEX(home!$A:$D,$A3,C$2)","v":"Dep. Pereira"},{"$f":"INDEX(home!$A:$D,$A3,D$2)","v":"1 - 1"},{"$f":"INDEX(home!$A:$D,$A3,E$2)","v":"America de Cali"},{"$f":"IFERROR(LEFT(D3,SEARCH(\"-\",D3)-2)*1,\"\")","v":1},{"$f":"IFERROR(MID(D3,SEARCH(\"-\",D3)+2,10)*1,\"\")","v":1},{"$f":"IF($B$1=C3,F3,G3)","v":1},{"$f":"IF($B$1=E3,F3,G3)","v":1},{"$f":"IF(I3=\"\",\"\",IF(H3>I3,\"W\",IF(H3=I3,\"D\",IF(H3<I3,\"L\",\"\"))))","v":"D"},{"$f":"IF(J3=\"\",\"\",IF((H3+I3)>2,\"O\",\"U\"))","v":"U"},{"$f":"IF(K3=\"\",\"\",IF(AND(H3>0,I3>0),\"Y\",\"N\")\n)","v":"Y"}]
[{"$f":"A3+1","v":2},{"$f":"INDEX(home!$A:$D,$A4,B$2)","v":"2022-01-21"},{"$f":"INDEX(home!$A:$D,$A4,C$2)","v":"America de Cali"},{"$f":"INDEX(home!$A:$D,$A4,D$2)","v":"1 - 0"},{"$f":"INDEX(home!$A:$D,$A4,E$2)","v":"Envigado"},{"$f":"IFERROR(LEFT(D4,SEARCH(\"-\",D4)-2)*1,\"\")","v":1},{"$f":"IFERROR(MID(D4,SEARCH(\"-\",D4)+2,10)*1,\"\")","v":0},{"$f":"IF($B$1=C4,F4,G4)","v":1},{"$f":"IF($B$1=E4,F4,G4)","v":0},{"$f":"IF(I4=\"\",\"\",IF(H4>I4,\"W\",IF(H4=I4,\"D\",IF(H4<I4,\"L\",\"\"))))","v":"W"},{"$f":"IF(J4=\"\",\"\",IF((H4+I4)>2,\"O\",\"U\"))","v":"U"},{"$f":"IF(K4=\"\",\"\",IF(AND(H4>0,I4>0),\"Y\",\"N\")\n)","v":"N"}]
[{"$f":"A4+1","v":3},{"$f":"INDEX(home!$A:$D,$A5,B$2)","v":0},{"$f":"INDEX(home!$A:$D,$A5,C$2)","v":0},{"$f":"INDEX(home!$A:$D,$A5,D$2)","v":"-"},{"$f":"INDEX(home!$A:$D,$A5,E$2)","v":0},"","","","","","",""]
[4,{"$f":"INDEX(home!$A:$D,$A6,B$2)","v":0},{"$f":"INDEX(home!$A:$D,$A6,C$2)","v":0},{"$f":"INDEX(home!$A:$D,$A6,D$2)","v":0},{"$f":"INDEX(home!$A:$D,$A6,E$2)","v":0},"","","","","","",""]
[5,{"$f":"INDEX(home!$A:$D,$A7,B$2)","v":0},{"$f":"INDEX(home!$A:$D,$A7,C$2)","v":0},{"$f":"INDEX(home!$A:$D,$A7,D$2)","v":0},{"$f":"INDEX(home!$A:$D,$A7,E$2)","v":0},"","","","","","",""]
[null,{"$f":"INDEX(home!$A:$D,$A8,B$2)","v":0},{"$f":"INDEX(home!$A:$D,$A8,C$2)","v":0},{"$f":"INDEX(home!$A:$D,$A8,D$2)","v":0},{"$f":"INDEX(home!$A:$D,$A8,E$2)","v":0},{"$f":"IFERROR(LEFT(D8,SEARCH(\"-\",D8)-2)*1,\"\")","v":""},{"$f":"IFERROR(MID(D8,SEARCH(\"-\",D8)+2,10)*1,\"\")","v":""},{"$f":"IF($B$1=C8,F8,G8)","v":""},{"$f":"IF($B$1=E8,F8,G8)","v":""},{"$f":"IF(I8=\"\",\"\",IF(H8>I8,\"W\",IF(H8=I8,\"D\",IF(H8<I8,\"L\",\"\"))))","v":""},{"$f":"IF(J8=\"\",\"\",IF((H8+I8)>2,\"O\",\"U\"))","v":""},{"$f":"IF(K8=\"\",\"\",IF(AND(H8>0,I8>0),\"Y\",\"N\")\n)","v":""}]
[]
[]
[null,{"$f":"IF(COUNTIF(C13:E17,C13)>COUNTIF(C13:E17,E13),C13,E13)","v":"CA Bucaramanga"},null,null,null,{"$f":"IFERROR(VLOOKUP(B11,table!$A:$B,2,0),\"-\")","v":2}]
[null,{"$f":"B2","v":1},{"$f":"C2","v":2},{"$f":"D2","v":3},{"$f":"E2","v":4}]
[{"$f":"A3","v":1},{"$f":"INDEX(away!$A:$D,$A13,B$12)","v":"2022-01-26"},{"$f":"INDEX(away!$A:$D,$A13,C$12)","v":"CA Bucaramanga"},{"$f":"INDEX(away!$A:$D,$A13,D$12)","v":"0 - 0"},{"$f":"INDEX(away!$A:$D,$A13,E$12)","v":"Millonarios"},{"$f":"IFERROR(LEFT(D13,SEARCH(\"-\",D13)-2)*1,\"\")","v":0},{"$f":"IFERROR(MID(D13,SEARCH(\"-\",D13)+2,10)*1,\"\")","v":0},{"$f":"IF($B$11=C13,F13,G13)","v":0},{"$f":"IF($B$11=E13,F13,G13)","v":0},{"$f":"IF(I13=\"\",\"\",IF(H13>I13,\"W\",IF(H13=I13,\"D\",IF(H13<I13,\"L\",\"\"))))","v":"D"},{"$f":"IF(J13=\"\",\"\",IF((H13+I13)>2,\"O\",\"U\"))","v":"U"},{"$f":"IF(K13=\"\",\"\",IF(AND(H13>0,I13>0),\"Y\",\"N\")\n)","v":"N"}]
[{"$f":"A4","v":2},{"$f":"INDEX(away!$A:$D,$A14,B$12)","v":"2022-01-20"},{"$f":"INDEX(away!$A:$D,$A14,C$12)","v":"Rionegro"},{"$f":"INDEX(away!$A:$D,$A14,D$12)","v":"1 - 1"},{"$f":"INDEX(away!$A:$D,$A14,E$12)","v":"CA Bucaramanga"},{"$f":"IFERROR(LEFT(D14,SEARCH(\"-\",D14)-2)*1,\"\")","v":1},{"$f":"IFERROR(MID(D14,SEARCH(\"-\",D14)+2,10)*1,\"\")","v":1},{"$f":"IF($B$11=C14,F14,G14)","v":1},{"$f":"IF($B$11=E14,F14,G14)","v":1},{"$f":"IF(I14=\"\",\"\",IF(H14>I14,\"W\",IF(H14=I14,\"D\",IF(H14<I14,\"L\",\"\"))))","v":"D"},{"$f":"IF(J14=\"\",\"\",IF((H14+I14)>2,\"O\",\"U\"))","v":"U"},{"$f":"IF(K14=\"\",\"\",IF(AND(H14>0,I14>0),\"Y\",\"N\")\n)","v":"Y"}]
[3,{"$f":"INDEX(away!$A:$D,$A15,B$12)","v":0},{"$f":"INDEX(away!$A:$D,$A15,C$12)","v":0},{"$f":"INDEX(away!$A:$D,$A15,D$12)","v":"-"},{"$f":"INDEX(away!$A:$D,$A15,E$12)","v":0},"","","","","","",""]
[4,{"$f":"INDEX(away!$A:$D,$A16,B$12)","v":0},{"$f":"INDEX(away!$A:$D,$A16,C$12)","v":0},{"$f":"INDEX(away!$A:$D,$A16,D$12)","v":0},{"$f":"INDEX(away!$A:$D,$A16,E$12)","v":0},"","","","","","",""]
[5,{"$f":"INDEX(away!$A:$D,$A17,B$12)","v":0},{"$f":"INDEX(away!$A:$D,$A17,C$12)","v":0},{"$f":"INDEX(away!$A:$D,$A17,D$12)","v":0},{"$f":"INDEX(away!$A:$D,$A17,E$12)","v":0},"","","","","","",""]
[null,{"$f":"INDEX(away!$A:$D,$A18,B$12)","v":0},{"$f":"INDEX(away!$A:$D,$A18,C$12)","v":0},{"$f":"INDEX(away!$A:$D,$A18,D$12)","v":0},{"$f":"INDEX(away!$A:$D,$A18,E$12)","v":0},{"$f":"IFERROR(LEFT(D18,SEARCH(\"-\",D18)-2)*1,\"\")","v":""},{"$f":"IFERROR(MID(D18,SEARCH(\"-\",D18)+2,10)*1,\"\")","v":""},{"$f":"IF($B$11=C18,F18,G18)","v":""},{"$f":"IF($B$11=E18,F18,G18)","v":""},{"$f":"IF(I18=\"\",\"\",IF(H18>I18,\"W\",IF(H18=I18,\"D\",IF(H18<I18,\"L\",\"\"))))","v":""},{"$f":"IF(J18=\"\",\"\",IF((H18+I18)>2,\"O\",\"U\"))","v":""},{"$f":"IF(K18=\"\",\"\",IF(AND(H18>0,I18>0),\"Y\",\"N\")\n)","v":""}]

{"sheet":"analyzematch","index":8,"n_rows":18,"n_cols":19,"rows_kept":18,"cut":false,"hidden":true,"merged":[[1,6,1,8],[1,10,1,14],[12,3,14,9],[12,12,14,18],[17,4,19,7],[17,13,19,16]]}
[]
[null,null,null,null,null,null,{"$f":"set!B32","v":0},null,null,{"$f":"set!C32","v":0},{"$f":"set!D32","v":0}]
[]
[null,null,null,{"$f":"match!K1","v":"Dep. Pereira"},{"$f":"match!L1","v":"America de Cali"},{"$f":"IF(G4=\"\",\"\",match!G1)","v":"A"},{"$f":"IF(match!M1=\"\",\"\",CONCATENATE(match!M1,\" : \",match!N1))","v":"1 : 1"},{"$f":"match!Q1","v":"D"},{"$f":"match!R1","v":"2,5 U"},{"$f":"match!S1","v":"BTS Y"},null,null,{"$f":"match!K9","v":"CA Bucaramanga"},{"$f":"match!L9","v":"Millonarios"},{"$f":"IF(P4=\"\",\"\",match!G9)","v":"H"},{"$f":"IF(match!N9=\"\",\"\",CONCATENATE(match!M9,\" : \",match!N9))","v":"0 : 0"},{"$f":"match!Q9","v":"D"},{"$f":"match!R9","v":"2,5 U"},{"$f":"match!S9","v":"BTS N"}]
[null,null,null,{"$f":"match!K2","v":"America de Cali"},{"$f":"match!L2","v":"Envigado"},{"$f":"IF(G5=\"\",\"\",match!G2)","v":"H"},{"$f":"IF(match!M2=\"\",\"\",CONCATENATE(match!M2,\" : \",match!N2))","v":"1 : 0"},{"$f":"match!Q2","v":"W"},{"$f":"match!R2","v":"2,5 U"},{"$f":"match!S2","v":"BTS N"},null,null,{"$f":"match!K10","v":"Rionegro"},{"$f":"match!L10","v":"CA Bucaramanga"},{"$f":"IF(P5=\"\",\"\",match!G10)","v":"A"},{"$f":"IF(match!N10=\"\",\"\",CONCATENATE(match!M10,\" : \",match!N10))","v":"1 : 1"},{"$f":"match!Q10","v":"D"},{"$f":"match!R10","v":"2,5 U"},{"$f":"match!S10","v":"BTS Y"}]
[null,null,null,{"$f":"match!K3","v":0},{"$f":"match!L3","v":0},{"$f":"IF(G6=\"\",\"\",match!G3)","v":""},{"$f":"IF(match!M3=\"\",\"\",CONCATENATE(match!M3,\" : \",match!N3))","v":""},{"$f":"match!Q3","v":""},{"$f":"match!R3","v":""},{"$f":"match!S3","v":""},null,null,{"$f":"match!K11","v":0},{"$f":"match!L11","v":0},{"$f":"IF(P6=\"\",\"\",match!G11)","v":""},{"$f":"IF(match!N11=\"\",\"\",CONCATENATE(match!M11,\" : \",match!N11))","v":""},{"$f":"match!Q11","v":""},{"$f":"match!R11","v":""},{"$f":"match!S11","v":""}]
[null,null,null,{"$f":"match!K4","v":0},{"$f":"match!L4","v":0},{"$f":"IF(G7=\"\",\"\",match!G4)","v":""},{"$f":"IF(match!M4=\"\",\"\",CONCATENATE(match!M4,\" : \",match!N4))","v":""},{"$f":"match!Q4","v":""},{"$f":"match!R4","v":""},{"$f":"match!S4","v":""},null,null,{"$f":"match!K12","v":0},{"$f":"match!L12","v":0},{"$f":"IF(P7=\"\",\"\",match!G12)","v":""},{"$f":"IF(match!N12=\"\",\"\",CONCATENATE(match!M12,\" : \",match!N12))","v":""},{"$f":"match!Q12","v":""},{"$f":"match!R12","v":""},{"$f":"match!S12","v":""}]
[null,null,null,{"$f":"match!K5","v":0},{"$f":"match!L5","v":0},{"$f":"IF(G8=\"\",\"\",match!G5)","v":""},{"$f":"IF(match!M5=\"\",\"\",CONCATENATE(match!M5,\" : \",match!N5))","v":""},{"$f":"match!Q5","v":""},{"$f":"match!R5","v":""},{"$f":"match!S5","v":""},null,null,{"$f":"match!K13","v":0},{"$f":"match!L13","v":0},{"$f":"IF(P8=\"\",\"\",match!G13)","v":""},{"$f":"IF(match!N13=\"\",\"\",CONCATENATE(match!M13,\" : \",match!N13))","v":""},{"$f":"match!Q13","v":""},{"$f":"match!R13","v":""},{"$f":"match!S13","v":""}]
[null,null,null,{"$f":"match!K6","v":0},{"$f":"match!L6","v":0},{"$f":"IF(G9=\"\",\"\",match!G6)","v":""},{"$f":"IF(match!M6=\"\",\"\",CONCATENATE(match!M6,\" : \",match!N6))","v":""},{"$f":"match!Q6","v":""},{"$f":"match!R6","v":""},{"$f":"match!S6","v":""},null,null,{"$f":"match!K14","v":0},{"$f":"match!L14","v":0},{"$f":"IF(P9=\"\",\"\",match!G14)","v":""},{"$f":"IF(match!N14=\"\",\"\",CONCATENATE(match!M14,\" : \",match!N14))","v":""},{"$f":"match!Q14","v":""},{"$f":"match!R14","v":""},{"$f":"match!S14","v":""}]
[]
[]
[]
[null,null,null,{"$f":"match!U7","v":0.75},null,null,null,null,null,null,null,null,{"$f":"match!U8","v":0.5}]
[]
[]
[]
[]
[null,null,null,null,{"$f":"match!K7","v":"America de Cali"},null,null,null,null,null,null,null,null,{"$f":"match!K15","v":"CA Bucaramanga"}]

{"sheet":"result","index":9,"n_rows":856,"n_cols":20,"rows_kept":856,"cut":false,"hidden":false,"merged":[[0,0,0,19]]}
[]
["DATE","TIME","LEAGUE","TEMPO","POINTS","GOALS","HOME-AWAY",{"$f":"F2","v":"GOALS"},{"$f":"E2","v":"POINTS"},{"$f":"D2","v":"TEMPO"},"W","D","L","2,5 O","2,5 U","BTS Y","BTS N","G S","G NS","RESULT"]
["2022-01-30","04:00:00","Bra",{"$error":"#DIV/0!"},0,0,"Luverdense MT - Cuiaba MT",-2,2.5,0.41666666666666669,0.16666666666666666,0.25,8.3333333333333329E-2,0.16666666666666666,0.33333333333333331,0.25,0.25,0.33333333333333331,0.16666666666666666,{"$f":"IFERROR(VLOOKUP(G3,site!$C:$D,2,0),\"\")","v":"2 - 1"}]
["2022-01-30","05:00:00","Els1",0.16666666666666666,-3,0.5,"Chalatenango - Firpo Usulutan",0,1.5,0.5,0.16666666666666666,0.33333333333333331,0.5,0.5,0.5,0.5,0.5,0.66666666666666663,0.33333333333333331,{"$f":"IFERROR(VLOOKUP(G4,site!$C:$D,2,0),\"\")","v":"2 - 1"}]
["2022-01-30","05:00:00","Els1",0.83333333333333337,3,2.5,"Isidro Metapan - Platense Zac.",-2,0.5,0.16666666666666666,0.66666666666666663,0.33333333333333331,0,0.33333333333333331,0.66666666666666663,0.5,0.5,0.66666666666666663,0.33333333333333331,{"$f":"IFERROR(VLOOKUP(G5,site!$C:$D,2,0),\"\")","v":"1 - 1"}]
["2022-01-30","05:05:00","Mex2",0.5,2,2,"Correcaminos - Cimarrones",1,1,0.33333333333333331,0.45833333333333331,0.25,0.29166666666666663,0.41666666666666663,0.58333333333333326,0.25,0.75,0.54166666666666663,0.45833333333333331,{"$f":"IFERROR(VLOOKUP(G6,site!$C:$D,2,0),\"\")","v":"0 - 2"}]
["2022-01-30","05:15:00","Col1",0.75,1,1.5,"Millonarios - Atl. Nacional",2,1.5,0.75,0.25,0.5,0.25,0.25,0.75,0.5,0.5,0.75,0.25,{"$f":"IFERROR(VLOOKUP(G7,site!$C:$D,2,0),\"\")","v":"0 - 2"}]
["2022-01-30","05:15:00","Els1",0.5,-2,1.5,"Santa Tecla - Jocoro FC",1,2,0.66666666666666663,0.16666666666666666,0.5,0.33333333333333331,0.5,0.5,0.66666666666666663,0.33333333333333331,0.83333333333333326,0.16666666666666666,{"$f":"IFERROR(VLOOKUP(G8,site!$C:$D,2,0),\"\")","v":"3 - 0"}]
["2022-01-30","06:00:00","Gua1",0.25,-2,0.5,"Xelaju MC - Nueva Concepcion",-7,0.5,0.25,0.25,0.5,0.25,0.5,0.5,0.25,0.75,0.25,0.75,{"$f":"IFERROR(VLOOKUP(G9,site!$C:$D,2,0),\"\")","v":"2 - 1"}]
["2022-01-30","07:05:00","Mex2",0.33333333333333331,-2,1,"Celaya - Raya2 Expansion",3,3,0.75,0.125,0.33333333333333331,0.54166666666666663,0,1,0.33333333333333331,0.66666666666666663,0.70833333333333326,0.29166666666666663,{"$f":"IFERROR(VLOOKUP(G10,site!$C:$D,2,0),\"\")","v":"2 - 1"}]
["2022-01-30","09:05:00","Aus1",0.5,2,3,"Sydney - CC Mariners",0,2,0.4,0.46666666666666667,0.16666666666666666,0.3666666666666667,0.53333333333333333,0.46666666666666667,0.53333333333333333,0.46666666666666667,0.81666666666666665,0.18333333333333335,{"$f":"IFERROR(VLOOKUP(G11,site!$C:$D,2,0),\"\")","v":"3 - 2"}]
["2022-01-30","11:45:00","Aus1",0.4,2,2,"Newcastle Jets - Adelaide Utd",5,3,0.6,0.2,0.4,0.4,0.8,0.2,0.7,0.30000000000000004,0.9,0.1,{"$f":"IFERROR(VLOOKUP(G12,site!$C:$D,2,0),\"\")","v":"1 - 2"}]
["2022-01-30","14:00:00","And1",0.16666666666666666,-7,1,"UE Engordany - UE Santa Coloma",-3,2,0.4,0.28333333333333333,0.2,0.51666666666666672,0.8,0.2,0.81666666666666665,0.18333333333333335,0.91666666666666674,8.3333333333333329E-2,{"$f":"IFERROR(VLOOKUP(G13,site!$C:$D,2,0),\"\")","v":"1 - 1"}]
["2022-01-30","14:00:00","Fr",{"$error":"#DIV/0!"},0,0,"KFUM Oslo - Skeid",0,0,"NG",0,0,0,0,0,0,0,0,0,{"$f":"IFERROR(VLOOKUP(G14,site!$C:$D,2,0),\"\")","v":"2 - 0"}]
["2022-01-30","15:00:00","Por2",0.58333333333333337,2,3.5,"Mafra - Academico Viseu",-4,2,0.33333333333333331,0.41666666666666663,0.41666666666666663,0.16666666666666666,0.5,0.5,0.58333333333333326,0.41666666666666663,0.66666666666666663,0.33333333333333331,{"$f":"IFERROR(VLOOKUP(G15,site!$C:$D,2,0),\"\")","v":"0 - 0"}]
["2022-01-30","15:00:00","Por2",0.5,1,3,"Nacional Madeira - Porto B",0,3.5,0.58333333333333337,0.41666666666666663,8.3333333333333329E-2,0.5,0.75,0.25,0.58333333333333326,0.41666666666666663,0.75,0.25,{"$f":"IFERROR(VLOOKUP(G16,site!$C:$D,2,0),\"\")","v":"1 - 0"}]
["2022-01-30","15:00:00","Spa3",0.5,1,3,"Calahorra - Zamora CF",0,3.5,0.58333333333333337,0.33333333333333331,0.25,0.41666666666666663,0.41666666666666663,0.58333333333333337,0.58333333333333326,0.41666666666666663,0.83333333333333337,0.16666666666666666,{"$f":"IFERROR(VLOOKUP(G17,site!$C:$D,2,0),\"\")","v":"0 - 0"}]
["2022-01-30","15:00:00","Spa3",0.5,1,3,"Inter de Madrid - Extremadura",-7,2,0.33333333333333331,0.5,0.16666666666666666,0.33333333333333331,0.58333333333333326,0.41666666666666663,0.33333333333333331,0.66666666666666663,0.58333333333333326,0.41666666666666663,{"$f":"IFERROR(VLOOKUP(G18,site!$C:$D,2,0),\"\")","v":"4 - 2"}]
["2022-01-30","15:00:00","Spa3",0.41666666666666669,-6,2.5,"SS Reyes - UD Logrones",-1,3.5,0.58333333333333337,0.33333333333333331,0.16666666666666666,0.5,0.5,0.5,0.33333333333333331,0.66666666666666663,0.58333333333333326,0.41666666666666663,{"$f":"IFERROR(VLOOKUP(G19,site!$C:$D,2,0),\"\")","v":"1 - 1"}]
["2022-01-30","15:00:00","Spa3",0.5,-3,3,"Atl. Baleares - Costa Brava",1,3.5,0.58333333333333337,0.25,0.41666666666666669,0.33333333333333331,0.33333333333333331,0.66666666666666674,0.5,0.5,0.66666666666666663,0.33333333333333331,{"$f":"IFERROR(VLOOKUP(G20,site!$C:$D,2,0),\"\")","v":"1 - 0"}]
["2022-01-30","15:00:00","Spa3",0.33333333333333331,-5,2,"Cornella - Linares Dep.",4,3.5,0.58333333333333337,0.25,0.25,0.5,0.5,0.5,0.41666666666666663,0.58333333333333326,0.75,0.25,{"$f":"IFERROR(VLOOKUP(G21,site!$C:$D,2,0),\"\")","v":"2 - 1"}]
["2022-01-30","15:00:00","Spa3",0.5,0,3,"Linense - Sabadell",5,4,0.66666666666666663,0.25,0.33333333333333331,0.41666666666666663,0.25,0.75,0.25,0.75,0.5,0.5,{"$f":"IFERROR(VLOOKUP(G22,site!$C:$D,2,0),\"\")","v":"1 - 1"}]
["2022-01-30","15:00:00","Tha1",0.66666666666666663,5,4,"Chonburi - Port Bangkok",6,4,0.8,0.25,0.3666666666666667,0.3833333333333333,0.35,0.65,0.35,0.65,0.81666666666666665,0.18333333333333335,{"$f":"IFERROR(VLOOKUP(G23,site!$C:$D,2,0),\"\")","v":"3 - 2"}]
["2022-01-30","15:00:00","Tha1",0.66666666666666663,1,4,"Nakhon Ratch. - PT Prachuap",-4,1.5,0.25,0.5,0.41666666666666663,8.3333333333333329E-2,0.5,0.5,0.58333333333333326,0.41666666666666663,0.75,0.25,{"$f":"IFERROR(VLOOKUP(G24,site!$C:$D,2,0),\"\")","v":"2 - 3"}]
["2022-01-30","15:15:00","Ned2",0.33333333333333331,-4,2,"VVV-Venlo - Dordrecht",4,3.5,0.58333333333333337,0.33333333333333331,8.3333333333333329E-2,0.58333333333333326,0.66666666666666663,0.33333333333333331,0.66666666666666663,0.33333333333333331,0.91666666666666674,8.3333333333333329E-2,{"$f":"IFERROR(VLOOKUP(G25,site!$C:$D,2,0),\"\")","v":"4 - 2"}]
["2022-01-30","15:30:00","Ita3",0.58333333333333337,0,3.5,"Cesena - Olbia",0,3,0.5,0.33333333333333331,0.41666666666666663,0.25,0.25,0.75,0.41666666666666663,0.58333333333333326,0.66666666666666663,0.33333333333333331,{"$f":"IFERROR(VLOOKUP(G26,site!$C:$D,2,0),\"\")","v":"3 - 0"}]
["2022-01-30","16:00:00","Egy",0.66666666666666663,4,4,"El Masry - Eastern Company",-11,0.5,0.1,0.65,0.26666666666666666,8.3333333333333329E-2,0.55000000000000004,0.45,0.35,0.65,0.51666666666666672,0.48333333333333334,{"$f":"IFERROR(VLOOKUP(G27,site!$C:$D,2,0),\"\")","v":"1 - 2"}]
["2022-01-30","16:00:00","Egy",0.8,9,4,"Pyramids - Misr Elmaqasah",-3,1.5,0.3,0.5,0.5,0,0.5,0.5,0.30000000000000004,0.7,0.6,0.4,{"$f":"IFERROR(VLOOKUP(G28,site!$C:$D,2,0),\"\")","v":"2 - 0"}]
["2022-01-30","16:00:00","Fr",0.58333333333333337,1,3.5,"Gornik Leczna - Motor Lublin",0,0,"NG",0.25,8.3333333333333329E-2,0.16666666666666666,0.33333333333333331,0.16666666666666666,0.41666666666666669,8.3333333333333329E-2,0.5,0,{"$f":"IFERROR(VLOOKUP(G29,site!$C:$D,2,0),\"\")","v":" "}]
["2022-01-30","16:00:00","Fr",0.75,9,4.5,"Horsens - Sonderjyske",-11,0.5,0.1,0.73333333333333339,0.18333333333333335,8.3333333333333329E-2,0.65,0.35,0.65,0.35,0.73333333333333339,0.26666666666666666,{"$f":"IFERROR(VLOOKUP(G30,site!$C:$D,2,0),\"\")","v":"3 - 1"}]
["2022-01-30","16:00:00","Ger3",0.5,-3,3,"Viktoria Koln - Munchen 1860",-2,3,0.5,0.5,0,0.5,0.83333333333333337,0.16666666666666666,0.58333333333333326,0.41666666666666663,0.83333333333333337,0.16666666666666666,{"$f":"IFERROR(VLOOKUP(G31,site!$C:$D,2,0),\"\")","v":"0 - 1"}]
["2022-01-30","16:00:00","Gre2",0.58333333333333337,1,3.5,"Episkopi FC - Kalamata",9,4,0.8,0.16666666666666666,0.45,0.3833333333333333,0.1,0.9,0.16666666666666666,0.83333333333333326,0.6333333333333333,0.3666666666666667,{"$f":"IFERROR(VLOOKUP(G32,site!$C:$D,2,0),\"\")","v":"0 - 0"}]
["2022-01-30","16:00:00","Hun1",0.75,6,4.5,"Puskas Akademia - MOL Fehervar",0,3,0.6,0.45,0.25,0.3,0.46666666666666667,0.53333333333333333,0.53333333333333333,0.46666666666666667,0.9,0.1,{"$f":"IFERROR(VLOOKUP(G33,site!$C:$D,2,0),\"\")","v":"1 - 0"}]
["2022-01-30","16:00:00","Rou1",0.25,-5,1.5,"Chindia - CS Mioveni",1,3.5,0.58333333333333337,0.25,0.16666666666666666,0.58333333333333326,0.25,0.75,0.16666666666666666,0.83333333333333326,0.33333333333333331,0.66666666666666674,{"$f":"IFERROR(VLOOKUP(G34,site!$C:$D,2,0),\"\")","v":"0 - 0"}]
["2022-01-30","16:30:00","And1",0.75,6,4.5,"FC Santa Coloma - Inter Escaldes",5,3.5,0.7,0.33333333333333331,0.3833333333333333,0.28333333333333333,0.71666666666666667,0.28333333333333333,0.6333333333333333,0.3666666666666667,0.81666666666666665,0.18333333333333335,{"$f":"IFERROR(VLOOKUP(G35,site!$C:$D,2,0),\"\")","v":"3 - 2"}]
["2022-01-30","16:30:00","Bel1",0.83333333333333337,7,5,"Saint-Gilloise - Anderlecht",7,4,0.66666666666666663,0.41666666666666663,0.33333333333333331,0.25,0.5,0.5,0.41666666666666663,0.58333333333333326,0.75,0.25,{"$f":"IFERROR(VLOOKUP(G36,site!$C:$D,2,0),\"\")","v":"1 - 0"}]
["2022-01-30","16:30:00","Tha1",0.41666666666666669,-2,2.5,"Ratchaburi - Samut Prakan City",-3,1,0.2,0.46666666666666667,0.28333333333333333,0.25,0.3666666666666667,0.6333333333333333,0.46666666666666667,0.53333333333333333,0.55000000000000004,0.45,{"$f":"IFERROR(VLOOKUP(G37,site!$C:$D,2,0),\"\")","v":"0 - 0"}]
["2022-01-30","16:45:00","Alb1",0.41666666666666669,-1,2.5,"Kastrioti Kruje - Vllaznia",2,3,0.6,0.16666666666666666,0.48333333333333334,0.35,8.3333333333333329E-2,0.91666666666666674,0.28333333333333333,0.71666666666666667,0.55000000000000004,0.45,{"$f":"IFERROR(VLOOKUP(G38,site!$C:$D,2,0),\"\")","v":"0 - 1"}]
["2022-01-30","16:45:00","Gre2",0.75,7,4.5,"Anag. Karditsas - Pierikos",-3,2,0.4,0.53333333333333333,0.28333333333333333,0.18333333333333335,0.45,0.55000000000000004,0.46666666666666667,0.53333333333333333,0.81666666666666665,0.18333333333333335,{"$f":"IFERROR(VLOOKUP(G39,site!$C:$D,2,0),\"\")","v":"2 - 0"}]
["2022-01-30","16:45:00","Gre2",0.5,-2,3,"Apollon Larissa - Ol. Volos",2,1.5,0.3,0.3833333333333333,0.43333333333333335,0.18333333333333335,0.28333333333333333,0.71666666666666667,0.3666666666666667,0.6333333333333333,0.55000000000000004,0.45,{"$f":"IFERROR(VLOOKUP(G40,site!$C:$D,2,0),\"\")","v":"1 - 1"}]
["2022-01-30","16:45:00","Gre2",0.41666666666666669,1,2.5,"Apollon Pontou - Xanthi",-1,2.5,0.5,0.3666666666666667,0.18333333333333335,0.45,0.6333333333333333,0.3666666666666667,0.25,0.75,0.53333333333333333,0.46666666666666667,{"$f":"IFERROR(VLOOKUP(G41,site!$C:$D,2,0),\"\")","v":"0 - 0"}]
["2022-01-30","16:45:00","Gre2",0.58333333333333337,1,3.5,"Ierapetra - Chania",9,3.5,0.7,0.35,0.18333333333333335,0.46666666666666667,0.65,0.35,0.55000000000000004,0.45,0.83333333333333326,0.16666666666666666,{"$f":"IFERROR(VLOOKUP(G42,site!$C:$D,2,0),\"\")","v":"0 - 0"}]
["2022-01-30","16:45:00","Gre2",0.58333333333333337,3,3.5,"Iraklis - Kavala",-6,2.5,0.5,0.26666666666666666,0.55000000000000004,0.18333333333333335,0.3833333333333333,0.6166666666666667,0.3666666666666667,0.6333333333333333,0.55000000000000004,0.45,{"$f":"IFERROR(VLOOKUP(G43,site!$C:$D,2,0),\"\")","v":"1 - 2"}]
["2022-01-30","16:45:00","Gre2",8.3333333333333329E-2,-7,0.5,"Irodotos - Ergotelis",0,2.5,0.5,0.2,0.18333333333333335,0.6166666666666667,0.28333333333333333,0.71666666666666667,0.28333333333333333,0.71666666666666667,0.48333333333333334,0.51666666666666672,{"$f":"IFERROR(VLOOKUP(G44,site!$C:$D,2,0),\"\")","v":"1 - 2"}]
["2022-01-30","16:45:00","Gre2",0.5,2,3,"Kifisia - AEK Athens B",2,3.5,0.7,0.35,0.1,0.55000000000000004,0.26666666666666666,0.73333333333333339,0.28333333333333333,0.71666666666666667,0.73333333333333339,0.26666666666666666,{"$f":"IFERROR(VLOOKUP(G45,site!$C:$D,2,0),\"\")","v":"2 - 1"}]
["2022-01-30","16:45:00","Gre2",0.66666666666666663,7,4,"Levadiakos - Karaiskakis",-6,1.5,0.3,0.55000000000000004,0.26666666666666666,0.18333333333333335,0.45,0.55000000000000004,0.26666666666666666,0.73333333333333339,0.43333333333333335,0.56666666666666665,{"$f":"IFERROR(VLOOKUP(G46,site!$C:$D,2,0),\"\")","v":"3 - 0"}]
["2022-01-30","16:45:00","Gre2",0.33333333333333331,-4,2,"Olympiacos B - Niki Volos",1,2.5,0.5,0.28333333333333333,0.26666666666666666,0.45,0.43333333333333335,0.56666666666666665,0.25,0.75,0.45,0.55000000000000004,{"$f":"IFERROR(VLOOKUP(G47,site!$C:$D,2,0),\"\")","v":"2 - 0"}]
["2022-01-30","16:45:00","Gre2",0.41666666666666669,-4,2.5,"Panserraikos - Almopos Aridea",1,2,0.4,0.28333333333333333,0.45,0.26666666666666666,0.53333333333333333,0.46666666666666667,0.53333333333333333,0.46666666666666667,0.71666666666666667,0.28333333333333333,{"$f":"IFERROR(VLOOKUP(G48,site!$C:$D,2,0),\"\")","v":"1 - 3"}]
["2022-01-30","16:45:00","Gre2",0.5,-2,3,"Rodos FC - Panathinaikos B",0,2.5,0.5,0.3666666666666667,0.26666666666666666,0.3666666666666667,0.45,0.55000000000000004,0.3666666666666667,0.6333333333333333,0.6333333333333333,0.3666666666666667,{"$f":"IFERROR(VLOOKUP(G49,site!$C:$D,2,0),\"\")","v":"0 - 0"}]
["2022-01-30","16:45:00","Gre2",0.75,13,4.5,"Veria - Thesprotos",-4,2,0.4,0.53333333333333333,0.28333333333333333,0.18333333333333335,0.73333333333333339,0.26666666666666666,0.56666666666666665,0.43333333333333335,0.81666666666666665,0.18333333333333335,{"$f":"IFERROR(VLOOKUP(G50,site!$C:$D,2,0),\"\")","v":"2 - 1"}]
["2022-01-30","16:45:00","Por2",0.5,-1,3,"Rio Ave - Varzim",-3,1.5,0.3,0.55000000000000004,0.1,0.35,0.43333333333333335,0.56666666666666665,0.43333333333333335,0.56666666666666665,0.6166666666666667,0.3833333333333333,{"$f":"IFERROR(VLOOKUP(G51,site!$C:$D,2,0),\"\")","v":"1 - 1"}]
["2022-01-30","17:00:00","Bdi1",0.58333333333333337,3,3.5,"Bumamuru - Les Crocos",0,2.5,0.41666666666666669,0.41666666666666663,0.33333333333333331,0.25,0.41666666666666663,0.58333333333333337,0.5,0.5,0.75,0.25,{"$f":"IFERROR(VLOOKUP(G52,site!$C:$D,2,0),\"\")","v":"1 - 0"}]
["2022-01-30","17:00:00","Fr",0.91666666666666663,12,5.5,"Slavia Prague - Banik Ostrava",11,5,0.83333333333333337,0.41666666666666669,0.25,0.33333333333333331,0.75,0.25,0.5,0.5,1,0,{"$f":"IFERROR(VLOOKUP(G53,site!$C:$D,2,0),\"\")","v":"4 - 2"}]
["2022-01-30","17:00:00","Ger3",0.66666666666666663,5,4,"Meppen - Waldhof Mannheim",-5,2,0.33333333333333331,0.66666666666666663,0,0.33333333333333331,0.75,0.25,0.41666666666666663,0.58333333333333326,0.66666666666666674,0.33333333333333331,{"$f":"IFERROR(VLOOKUP(G54,site!$C:$D,2,0),\"\")","v":"1 - 1"}]
["2022-01-30","17:00:00","Gre1",0.5,-1,3,"Panetolikos - Aris",-1,3,0.5,0.33333333333333331,0.33333333333333331,0.33333333333333331,0.25,0.75,0.33333333333333331,0.66666666666666674,0.41666666666666663,0.58333333333333326,{"$f":"IFERROR(VLOOKUP(G55,site!$C:$D,2,0),\"\")","v":"0 - 2"}]
["2022-01-30","17:00:00","Gre1",0.5,-2,3,"PAS Giannina - Apollon Smyrnis",-5,1,0.2,0.46666666666666667,0.3666666666666667,0.16666666666666666,0.1,0.9,0.16666666666666666,0.83333333333333326,0.33333333333333331,0.66666666666666663,{"$f":"IFERROR(VLOOKUP(G56,site!$C:$D,2,0),\"\")","v":"2 - 0"}]
["2022-01-30","17:00:00","Mlt1",0.83333333333333337,5,5,"Hamrun Spartans - Floriana",7,4.5,0.9,0.33333333333333331,0.26666666666666666,0.4,0.26666666666666666,0.73333333333333339,0.26666666666666666,0.73333333333333339,0.81666666666666665,0.18333333333333335,{"$f":"IFERROR(VLOOKUP(G57,site!$C:$D,2,0),\"\")","v":"2 - 2"}]
["2022-01-30","17:00:00","Spa2",0.5,-1,3,"Leganes - Alcorcon",-7,1.5,0.25,0.41666666666666663,0.41666666666666663,0.16666666666666666,0.16666666666666666,0.83333333333333337,0.33333333333333331,0.66666666666666663,0.5,0.5,{"$f":"IFERROR(VLOOKUP(G58,site!$C:$D,2,0),\"\")","v":"1 - 0"}]
["2022-01-30","17:00:00","Zam1",0.58333333333333337,0,3.5,"Green Eagles - Nkwazi",0,3.5,0.58333333333333337,0.33333333333333331,0.33333333333333331,0.33333333333333331,8.3333333333333329E-2,0.91666666666666674,0.33333333333333331,0.66666666666666674,0.66666666666666663,0.33333333333333331,{"$f":"IFERROR(VLOOKUP(G59,site!$C:$D,2,0),\"\")","v":"2 - 1"}]
["2022-01-30","17:15:00","Sui1",0.25,-7,1.5,"Lausanne - St. Gallen",-8,1.5,0.25,0.41666666666666663,0.16666666666666666,0.41666666666666663,0.58333333333333326,0.41666666666666663,0.58333333333333326,0.41666666666666663,0.66666666666666663,0.33333333333333331,{"$f":"IFERROR(VLOOKUP(G60,site!$C:$D,2,0),\"\")","v":"1 - 5"}]
["2022-01-30","17:15:00","Sui2",0.58333333333333337,1,3.5,"Wil - Vaduz",4,4.5,0.75,0.33333333333333331,0.16666666666666666,0.5,1,0,1,0,1,0,{"$f":"IFERROR(VLOOKUP(G61,site!$C:$D,2,0),\"\")","v":"4 - 4"}]
["2022-01-30","17:15:00","Sui2",0.33333333333333331,0,2,"Winterthur - Kriens",-8,0.5,8.3333333333333329E-2,0.58333333333333337,8.3333333333333329E-2,0.33333333333333331,0.66666666666666674,0.33333333333333331,0.75,0.25,0.75,0.25,{"$f":"IFERROR(VLOOKUP(G62,site!$C:$D,2,0),\"\")","v":"3 - 0"}]
["2022-01-30","17:30:00","Alg1",0.66666666666666663,1,4,"CS Constantine - JS Kabylie",6,4.5,0.9,0.25,0.26666666666666666,0.48333333333333334,0.1,0.9,0.26666666666666666,0.73333333333333339,0.91666666666666674,8.3333333333333329E-2,{"$f":"IFERROR(VLOOKUP(G63,site!$C:$D,2,0),\"\")","v":"2 - 1"}]
["2022-01-30","17:30:00","Eng2",0.58333333333333337,2,3.5,"Derby County - Birmingham City",-7,2,0.33333333333333331,0.5,0.25,0.25,0.75,0.25,0.75,0.25,0.91666666666666674,8.3333333333333329E-2,{"$f":"IFERROR(VLOOKUP(G64,site!$C:$D,2,0),\"\")","v":"2 - 2"}]
["2022-01-30","17:30:00","Idn1",0.5,0,3,"Persija Jakarta - Persiraja B. Aceh",-5,1.5,0.25,0.41666666666666663,0.41666666666666663,0.16666666666666666,0.58333333333333326,0.41666666666666663,0.66666666666666674,0.33333333333333331,0.66666666666666674,0.33333333333333331,{"$f":"IFERROR(VLOOKUP(G65,site!$C:$D,2,0),\"\")","v":"0 - 1"}]
["2022-01-30","17:30:00","Ita2",0.75,5,4.5,"Cittadella - Cosenza",-13,0.5,8.3333333333333329E-2,0.66666666666666674,0.33333333333333331,0,0.41666666666666663,0.58333333333333326,0.58333333333333326,0.41666666666666663,0.83333333333333326,0.16666666666666666,{"$f":"IFERROR(VLOOKUP(G66,site!$C:$D,2,0),\"\")","v":"1 - 1"}]
["2022-01-30","17:30:00","Ita2",8.3333333333333329E-2,-5,0.5,"L.R. Vicenza - Alessandria",-1,2,0.33333333333333331,0.33333333333333331,8.3333333333333329E-2,0.58333333333333337,0.41666666666666663,0.58333333333333337,0.33333333333333331,0.66666666666666663,0.5,0.5,{"$f":"IFERROR(VLOOKUP(G67,site!$C:$D,2,0),\"\")","v":"2 - 1"}]
["2022-01-30","17:30:00","Ita2",0.33333333333333331,-4,2,"Parma - Crotone",-2,1.5,0.25,0.41666666666666663,0.25,0.33333333333333331,0.41666666666666663,0.58333333333333337,0.5,0.5,0.58333333333333337,0.41666666666666663,{"$f":"IFERROR(VLOOKUP(G68,site!$C:$D,2,0),\"\")","v":"1 - 1"}]
["2022-01-30","17:30:00","Ita3",0.25,-4,1.5,"Aquila 1902 - Pontedera",-12,1,0.16666666666666666,0.5,8.3333333333333329E-2,0.41666666666666663,0.58333333333333326,0.41666666666666663,0.41666666666666663,0.58333333333333337,0.5,0.5,{"$f":"IFERROR(VLOOKUP(G69,site!$C:$D,2,0),\"\")","v":"0 - 0"}]
["2022-01-30","17:30:00","Ita3",0.75,9,4.5,"Entella - Modena",10,6,1,0.33333333333333331,8.3333333333333329E-2,0.58333333333333337,0.58333333333333337,0.41666666666666663,0.5,0.5,0.91666666666666674,8.3333333333333329E-2,{"$f":"IFERROR(VLOOKUP(G70,site!$C:$D,2,0),\"\")","v":"0 - 2"}]
["2022-01-30","17:30:00","Ita3",0.41666666666666669,-2,2.5,"Fermana - Carrarese",3,4,0.66666666666666663,8.3333333333333329E-2,0.58333333333333326,0.33333333333333331,0.16666666666666666,0.83333333333333337,0.33333333333333331,0.66666666666666663,0.5,0.5,{"$f":"IFERROR(VLOOKUP(G71,site!$C:$D,2,0),\"\")","v":"0 - 0"}]
["2022-01-30","17:30:00","Ita3",0.58333333333333337,0,3.5,"Gubbio - Grosseto",-4,1,0.16666666666666666,0.58333333333333326,0.25,0.16666666666666666,0.58333333333333326,0.41666666666666663,0.5,0.5,0.58333333333333326,0.41666666666666663,{"$f":"IFERROR(VLOOKUP(G72,site!$C:$D,2,0),\"\")","v":"0 - 0"}]
["2022-01-30","17:30:00","Ita3",0.25,-5,1.5,"Imolese - Teramo",-7,2,0.33333333333333331,0.33333333333333331,0.25,0.41666666666666663,0.66666666666666663,0.33333333333333331,0.41666666666666663,0.58333333333333337,0.58333333333333326,0.41666666666666663,{"$f":"IFERROR(VLOOKUP(G73,site!$C:$D,2,0),\"\")","v":"1 - 0"}]
["2022-01-30","17:30:00","Ita3",0.41666666666666669,-1,2.5,"Lucchese - Ancona-Matelica",14,5.5,0.91666666666666663,0,0.5,0.5,0.41666666666666663,0.58333333333333337,0.33333333333333331,0.66666666666666674,0.58333333333333337,0.41666666666666669,{"$f":"IFERROR(VLOOKUP(G74,site!$C:$D,2,0),\"\")","v":"2 - 2"}]
["2022-01-30","17:30:00","Ita3",0.16666666666666666,-6,1,"Pistoiese - Vis Pesaro 1898",-1,3.5,0.58333333333333337,0.16666666666666666,0.25,0.58333333333333326,0.41666666666666663,0.58333333333333326,0.5,0.5,0.58333333333333326,0.41666666666666663,{"$f":"IFERROR(VLOOKUP(G75,site!$C:$D,2,0),\"\")","v":"0 - 1"}]
["2022-01-30","17:30:00","Ita3",0.91666666666666663,11,5.5,"Reggiana 1919 - Siena",-4,1,0.16666666666666666,0.75,0.25,0,0.58333333333333326,0.41666666666666663,0.5,0.5,0.66666666666666674,0.33333333333333331,{"$f":"IFERROR(VLOOKUP(G76,site!$C:$D,2,0),\"\")","v":"1 - 0"}]
["2022-01-30","17:30:00","Ita3",0.33333333333333331,-4,2,"Viterbese - Pescara",7,5.5,0.91666666666666663,0,0.41666666666666663,0.58333333333333337,0.41666666666666663,0.58333333333333326,0.5,0.5,0.66666666666666663,0.33333333333333331,{"$f":"IFERROR(VLOOKUP(G77,site!$C:$D,2,0),\"\")","v":"1 - 3"}]
["2022-01-30","17:30:00","Ita3",0.33333333333333331,-9,2,"Messina - Picerno",2,4,0.66666666666666663,0.25,0.16666666666666666,0.58333333333333326,0.5,0.5,0.41666666666666663,0.58333333333333326,0.58333333333333326,0.41666666666666663,{"$f":"IFERROR(VLOOKUP(G78,site!$C:$D,2,0),\"\")","v":"1 - 1"}]
["2022-01-30","17:30:00","Ita3",0.33333333333333331,-2,2,"Paganese - Bari",5,4.5,0.75,8.3333333333333329E-2,0.41666666666666663,0.5,0.5,0.5,0.75,0.25,0.83333333333333337,0.16666666666666666,{"$f":"IFERROR(VLOOKUP(G79,site!$C:$D,2,0),\"\")","v":"1 - 2"}]
["2022-01-30","17:30:00","Ned2",8.3333333333333329E-2,-12,0.5,"Almere City - Telstar",1,3.5,0.58333333333333337,8.3333333333333329E-2,0.33333333333333331,0.58333333333333337,0.41666666666666663,0.58333333333333326,0.58333333333333326,0.41666666666666663,0.66666666666666674,0.33333333333333331,{"$f":"IFERROR(VLOOKUP(G80,site!$C:$D,2,0),\"\")","v":"0 - 0"}]
["2022-01-30","18:00:00","Cro1",0.25,-5,1.5,"Lok. Zagreb - Hrv. Dragovoljac",-11,0,0,0.5,0.25,0.25,0.66666666666666663,0.33333333333333331,0.66666666666666674,0.33333333333333331,0.66666666666666674,0.33333333333333331,{"$f":"IFERROR(VLOOKUP(G81,site!$C:$D,2,0),\"\")","v":"2 - 1"}]
["2022-01-30","18:00:00","Cyp1",0.75,8,4.5,"APOEL Nicosia - Doxa Katokopia",-1,2.5,0.5,0.45,0.35,0.2,0.35,0.65,0.43333333333333335,0.56666666666666665,0.7,0.3,{"$f":"IFERROR(VLOOKUP(G82,site!$C:$D,2,0),\"\")","v":"2 - 0FT"}]
["2022-01-30","18:00:00","Ind1",0.83333333333333337,7,5,"Kerala Blasters - Bengaluru",8,4,0.8,0.33333333333333331,0.3666666666666667,0.3,0.55000000000000004,0.45,0.55000000000000004,0.45,1,0,{"$f":"IFERROR(VLOOKUP(G83,site!$C:$D,2,0),\"\")","v":"0 - 1"}]
["2022-01-30","18:00:00","Por2",0.83333333333333337,6,5,"Chaves - Feirense",3,4.5,0.75,0.41666666666666663,0.25,0.33333333333333331,0.5,0.5,0.58333333333333326,0.41666666666666663,0.91666666666666674,8.3333333333333329E-2,{"$f":"IFERROR(VLOOKUP(G84,site!$C:$D,2,0),\"\")","v":"3 - 088'"}]
["2022-01-30","18:15:00","Hun1",0.41666666666666669,-4,2.5,"Mezokovesdi SE - MTK Budapest",-12,1,0.2,0.56666666666666665,8.3333333333333329E-2,0.35,0.56666666666666665,0.43333333333333335,0.3666666666666667,0.6333333333333333,0.45,0.55000000000000004,{"$f":"IFERROR(VLOOKUP(G85,site!$C:$D,2,0),\"\")","v":"1 - 185'"}]
["2022-01-30","19:00:00","And1",0,-18,0,"Carroi - Atletic Escaldes",6,3.5,0.7,0.1,0.1,0.8,0.6333333333333333,0.3666666666666667,0.46666666666666667,0.53333333333333333,0.56666666666666665,0.43333333333333335,{"$f":"IFERROR(VLOOKUP(G86,site!$C:$D,2,0),\"\")","v":" "}]
["2022-01-30","19:00:00","Ang1",0.83333333333333337,5,5,"Primeiro Agosto - Sporting Benguela",-9,0.5,0.1,0.73333333333333339,0.26666666666666666,0,0.46666666666666667,0.53333333333333333,0.3666666666666667,0.6333333333333333,0.53333333333333333,0.46666666666666667,{"$f":"IFERROR(VLOOKUP(G87,site!$C:$D,2,0),\"\")","v":" "}]
["2022-01-30","19:00:00","Bel1",0.66666666666666663,2,4,"KAA Gent - Royal Antwerp",7,5,0.83333333333333337,0.16666666666666666,0.5,0.33333333333333331,0.41666666666666663,0.58333333333333326,0.58333333333333326,0.41666666666666663,0.83333333333333326,0.16666666666666666,{"$f":"IFERROR(VLOOKUP(G88,site!$C:$D,2,0),\"\")","v":"0 - 1HT"}]
["2022-01-30","19:00:00","Bel2",0.58333333333333337,7,3.5,"Waasland-Beveren - Westerlo",8,4.5,0.9,0.25,0.18333333333333335,0.56666666666666665,0.6166666666666667,0.3833333333333333,0.6333333333333333,0.3666666666666667,1,0,{"$f":"IFERROR(VLOOKUP(G89,site!$C:$D,2,0),\"\")","v":"1 - 0HT"}]
["2022-01-30","19:00:00","CAN",0.58333333333333337,1,3.5,"Egypt - Morocco",4,4.5,0.75,0.16666666666666666,0.5,0.33333333333333331,0.16666666666666666,0.83333333333333326,0.33333333333333331,0.66666666666666674,0.66666666666666674,0.33333333333333331,{"$f":"IFERROR(VLOOKUP(G90,site!$C:$D,2,0),\"\")","v":"0 - 1HT"}]
["2022-01-30","19:00:00","Fr",{"$error":"#DIV/0!"},0,0,"Valerenga Oslo - Krasnodar",4,4,0.66666666666666663,8.3333333333333329E-2,0.16666666666666666,0.25,0.33333333333333331,0.16666666666666666,0.25,0.25,0.33333333333333331,0.16666666666666666,{"$f":"IFERROR(VLOOKUP(G91,site!$C:$D,2,0),\"\")","v":"0 - 1HT"}]
["2022-01-30","19:00:00","Gib1",1,22,6,"Lincoln Red Imps - Europa FC",19,5,1,0.5,0,0.5,0.83333333333333326,0.16666666666666666,0.3833333333333333,0.6166666666666667,1,0,{"$f":"IFERROR(VLOOKUP(G92,site!$C:$D,2,0),\"\")","v":" "}]
["2022-01-30","19:00:00","Gre2",1,9,6,"Kallithea - Diagoras",0,2.5,0.5,0.6,0.3,0.1,0.18333333333333335,0.81666666666666665,0.18333333333333335,0.81666666666666665,0.7,0.3,{"$f":"IFERROR(VLOOKUP(G93,site!$C:$D,2,0),\"\")","v":"0 - 0HT"}]
["2022-01-30","19:00:00","Mlt1",0.33333333333333331,-2,2,"Valletta - Gudja United",6,3.5,0.7,0.18333333333333335,0.26666666666666666,0.55000000000000004,0.46666666666666667,0.53333333333333333,0.35,0.65,0.65,0.35,{"$f":"IFERROR(VLOOKUP(G94,site!$C:$D,2,0),\"\")","v":" "}]
["2022-01-30","19:00:00","Nga1",0.33333333333333331,-8,2,"Dakkada - Enugu Rangers",9,4,0.8,8.3333333333333329E-2,0.3666666666666667,0.55000000000000004,0.45,0.55000000000000004,0.35,0.65,0.65,0.35,{"$f":"IFERROR(VLOOKUP(G95,site!$C:$D,2,0),\"\")","v":"0 - 0HT"}]
["2022-01-30","19:00:00","Nga1",0.5,0,3,"Kwara United - Gombe United",1,2.5,0.5,0.3666666666666667,0.26666666666666666,0.3666666666666667,0.45,0.55000000000000004,0.35,0.65,0.71666666666666667,0.28333333333333333,{"$f":"IFERROR(VLOOKUP(G96,site!$C:$D,2,0),\"\")","v":"2 - 0HT"}]
["2022-01-30","19:00:00","Nga1",0.16666666666666666,-9,1,"MFM Lagos - Shooting Stars",-1,2.5,0.5,0.28333333333333333,0.1,0.6166666666666667,0.45,0.55000000000000004,0.3666666666666667,0.6333333333333333,0.46666666666666667,0.53333333333333333,{"$f":"IFERROR(VLOOKUP(G97,site!$C:$D,2,0),\"\")","v":"0 - 1HT"}]
["2022-01-30","19:00:00","Nga1",0.5,6,3,"Plateau United - Abia Warriors",-1,2,0.4,0.45,0.2,0.35,0.43333333333333335,0.56666666666666665,0.46666666666666667,0.53333333333333333,0.73333333333333339,0.26666666666666666,{"$f":"IFERROR(VLOOKUP(G98,site!$C:$D,2,0),\"\")","v":"0 - 0HT"}]
["2022-01-30","19:00:00","Nga1",0.83333333333333337,5,5,"Remo Stars - Rivers United",7,4,0.8,0.33333333333333331,0.3666666666666667,0.3,0.3833333333333333,0.6166666666666667,0.3666666666666667,0.6333333333333333,0.71666666666666667,0.28333333333333333,{"$f":"IFERROR(VLOOKUP(G99,site!$C:$D,2,0),\"\")","v":"1 - 145'+"}]
["2022-01-30","19:00:00","Nga1",0.6,3,3,"Wikki Tourists - Nasarawa United",2,3,0.6,0.5,0,0.5,0.6,0.4,0.5,0.5,0.9,0.1,{"$f":"IFERROR(VLOOKUP(G100,site!$C:$D,2,0),\"\")","v":"1 - 0HT"}]
["2022-01-30","19:00:00","Rou1",0.33333333333333331,-1,2,"U Craiova 1948 - Arges Pitesti",-1,2.5,0.41666666666666669,0.33333333333333331,0.25,0.41666666666666663,0.41666666666666663,0.58333333333333326,0.5,0.5,0.66666666666666663,0.33333333333333331,{"$f":"IFERROR(VLOOKUP(G101,site!$C:$D,2,0),\"\")","v":"0 - 0HT"}]
["2022-01-30","19:00:00","Spa2",0.75,3,4.5,"Cartagena - Fuenlabrada",-2,2.5,0.41666666666666669,0.58333333333333326,0.16666666666666666,0.25,0.58333333333333326,0.41666666666666663,0.5,0.5,0.75,0.25,{"$f":"IFERROR(VLOOKUP(G102,site!$C:$D,2,0),\"\")","v":"1 - 0HT"}]
["2022-01-30","19:15:00","Gre1",0.66666666666666663,4,4,"AEK Athens - Volos",-1,3.5,0.58333333333333337,0.5,8.3333333333333329E-2,0.41666666666666663,0.58333333333333326,0.41666666666666663,0.5,0.5,0.83333333333333326,0.16666666666666666,{"$f":"IFERROR(VLOOKUP(G103,site!$C:$D,2,0),\"\")","v":"1 - 140'"}]
["2022-01-30","19:30:00","Por1",0.33333333333333331,0,2,"Portimonense - Tondela",-4,2,0.33333333333333331,0.33333333333333331,0.33333333333333331,0.33333333333333331,0.66666666666666674,0.33333333333333331,0.75,0.25,0.83333333333333337,0.16666666666666666,{"$f":"IFERROR(VLOOKUP(G104,site!$C:$D,2,0),\"\")","v":"0 - 027'"}]
["2022-01-30","19:30:00","Por1",0.33333333333333331,-5,2,"Vizela - V. Guimaraes",0,2.5,0.41666666666666669,0.33333333333333331,0.25,0.41666666666666663,0.33333333333333331,0.66666666666666663,0.5,0.5,0.58333333333333326,0.41666666666666663,{"$f":"IFERROR(VLOOKUP(G105,site!$C:$D,2,0),\"\")","v":"0 - 128'"}]
["2022-01-30","19:30:00","Por2",0.41666666666666669,-2,2.5,"Sp. Covilha - Vilafranquense",-4,2.5,0.41666666666666669,0.33333333333333331,0.33333333333333331,0.33333333333333331,0.58333333333333326,0.41666666666666663,0.58333333333333326,0.41666666666666663,0.66666666666666674,0.33333333333333331,{"$f":"IFERROR(VLOOKUP(G106,site!$C:$D,2,0),\"\")","v":"0 - 126'"}]
["2022-01-30","19:30:00","Sui1",0.25,-8,1.5,"Luzern - Basel",4,4,0.66666666666666663,8.3333333333333329E-2,0.41666666666666663,0.5,0.5,0.5,0.66666666666666674,0.33333333333333331,0.83333333333333326,0.16666666666666666,{"$f":"IFERROR(VLOOKUP(G107,site!$C:$D,2,0),\"\")","v":"0 - 027'"}]
["2022-01-30","19:30:00","Sui1",0.5,1,3,"Sion - Grasshopper",0,2,0.33333333333333331,0.5,0.16666666666666666,0.33333333333333331,0.5,0.5,0.5,0.5,0.66666666666666663,0.33333333333333331,{"$f":"IFERROR(VLOOKUP(G108,site!$C:$D,2,0),\"\")","v":"0 - 027'"}]
["2022-01-30","19:45:00","Alb1",0.66666666666666663,2,4,"KF Tirana - Kukesi",1,3,0.6,0.35,0.3666666666666667,0.28333333333333333,0.26666666666666666,0.73333333333333339,0.3666666666666667,0.6333333333333333,0.55000000000000004,0.45,{"$f":"IFERROR(VLOOKUP(G109,site!$C:$D,2,0),\"\")","v":"0 - 012'"}]
["2022-01-30","19:45:00","Alb1",0.41666666666666669,-2,2.5,"Skenderbeu Korce - Teuta Durres",-6,0.5,0.1,0.48333333333333334,0.35,0.16666666666666666,0.3833333333333333,0.6166666666666667,0.3833333333333333,0.6166666666666667,0.3833333333333333,0.6166666666666667,{"$f":"IFERROR(VLOOKUP(G110,site!$C:$D,2,0),\"\")","v":" "}]
["2022-01-30","19:45:00","Ned2",0.83333333333333337,4,5,"ADO Den Haag - De Graafschap",0,2.5,0.41666666666666669,0.66666666666666674,8.3333333333333329E-2,0.25,0.5,0.5,0.41666666666666663,0.58333333333333326,0.75,0.25,{"$f":"IFERROR(VLOOKUP(G111,site!$C:$D,2,0),\"\")","v":"0 - 010'"}]
["2022-01-30","20:00:00","Eng2",0.16666666666666666,-6,1,"Cardiff City - Nottingham Forest",5,4,0.66666666666666663,0.16666666666666666,0.16666666666666666,0.66666666666666663,0.5,0.5,0.33333333333333331,0.66666666666666674,0.58333333333333326,0.41666666666666663,{"$f":"IFERROR(VLOOKUP(G112,site!$C:$D,2,0),\"\")","v":" "}]
["2022-01-30","20:00:00","Spa3",0.58333333333333337,1,3.5,"Real Union - Valladolid B",-9,1,0.16666666666666666,0.66666666666666674,8.3333333333333329E-2,0.25,0.66666666666666674,0.33333333333333331,0.58333333333333326,0.41666666666666663,0.66666666666666663,0.33333333333333331,{"$f":"IFERROR(VLOOKUP(G113,site!$C:$D,2,0),\"\")","v":"-   -"}]
["2022-01-30","20:00:00","Spa3",0.33333333333333331,-3,2,"Talavera - Tudelano",-3,2,0.33333333333333331,0.5,0,0.5,0.25,0.75,0.16666666666666666,0.83333333333333337,0.5,0.5,{"$f":"IFERROR(VLOOKUP(G114,site!$C:$D,2,0),\"\")","v":" "}]
["2022-01-30","20:00:00","Spa3",0.16666666666666666,-7,1,"Alcoyano - Atl. Sanluqueno",0,2.5,0.41666666666666669,0.25,0.25,0.5,0.33333333333333331,0.66666666666666674,0.25,0.75,0.33333333333333331,0.66666666666666674,{"$f":"IFERROR(VLOOKUP(G115,site!$C:$D,2,0),\"\")","v":" "}]
["2022-01-30","20:00:00","Spa3",0.16666666666666666,-8,1,"Betis B - Gimnastic",-1,3,0.5,0.25,0.16666666666666666,0.58333333333333337,0.41666666666666663,0.58333333333333337,0.25,0.75,0.41666666666666663,0.58333333333333326,{"$f":"IFERROR(VLOOKUP(G116,site!$C:$D,2,0),\"\")","v":" "}]
["2022-01-30","20:30:00","Cro1",0.83333333333333337,8,5,"Dinamo Zagreb - Rijeka",4,4,0.66666666666666663,0.5,0.16666666666666666,0.33333333333333331,0.5,0.5,0.41666666666666663,0.58333333333333337,0.83333333333333337,0.16666666666666666,{"$f":"IFERROR(VLOOKUP(G117,site!$C:$D,2,0),\"\")","v":" "}]
["2022-01-30","20:30:00","Ita3",0.33333333333333331,-2,2,"Catania - Catanzaro",2,3.5,0.58333333333333337,0.16666666666666666,0.41666666666666663,0.41666666666666663,0.41666666666666663,0.58333333333333326,0.5,0.5,0.66666666666666663,0.33333333333333331,{"$f":"IFERROR(VLOOKUP(G118,site!$C:$D,2,0),\"\")","v":" "}]
["2022-01-30","20:30:00","Ita3",0.33333333333333331,-2,2,"Fidelis Andria - Campobasso",-5,2,0.33333333333333331,0.33333333333333331,0.33333333333333331,0.33333333333333331,0.33333333333333331,0.66666666666666663,0.33333333333333331,0.66666666666666674,0.5,0.5,{"$f":"IFERROR(VLOOKUP(G119,site!$C:$D,2,0),\"\")","v":" "}]
["2022-01-30","20:30:00","Ita3",0.83333333333333337,7,5,"Latina - Taranto",0,3,0.5,0.5,0.33333333333333331,0.16666666666666666,0.5,0.5,0.58333333333333326,0.41666666666666663,0.83333333333333337,0.16666666666666666,{"$f":"IFERROR(VLOOKUP(G120,site!$C:$D,2,0),\"\")","v":" "}]
["2022-01-30","20:30:00","Ita3",0.66666666666666663,4,4,"Monopoli 1966 - V. Francavilla",7,4,0.66666666666666663,0.41666666666666663,0.16666666666666666,0.41666666666666663,0.5,0.5,0.41666666666666663,0.58333333333333326,0.75,0.25,{"$f":"IFERROR(VLOOKUP(G121,site!$C:$D,2,0),\"\")","v":" "}]
["2022-01-30","20:30:00","Ita3",0.5,0,3,"Palermo - Monterosi",2,3.5,0.58333333333333337,0.25,0.41666666666666663,0.33333333333333331,0.25,0.75,0.41666666666666663,0.58333333333333337,0.58333333333333337,0.41666666666666663,{"$f":"IFERROR(VLOOKUP(G122,site!$C:$D,2,0),\"\")","v":" "}]
["2022-01-30","20:30:00","Ita3",8.3333333333333329E-2,-10,0.5,"Potenza - Avellino",4,4,0.66666666666666663,0,0.41666666666666663,0.58333333333333337,0.41666666666666663,0.58333333333333326,0.33333333333333331,0.66666666666666674,0.5,0.5,{"$f":"IFERROR(VLOOKUP(G123,site!$C:$D,2,0),\"\")","v":" "}]
["2022-01-30","20:30:00","Ita3",0.66666666666666663,6,4,"Turris - Vibonese",0,2.5,0.41666666666666669,0.41666666666666663,0.41666666666666663,0.16666666666666666,0.16666666666666666,0.83333333333333326,0.33333333333333331,0.66666666666666663,0.66666666666666674,0.33333333333333331,{"$f":"IFERROR(VLOOKUP(G124,site!$C:$D,2,0),\"\")","v":" "}]
["2022-01-30","21:00:00","Cyp1",0.58333333333333337,2,3.5,"Apollon Limassol - Ol. Nicosia",-5,1,0.2,0.55000000000000004,0.28333333333333333,0.16666666666666666,0.3666666666666667,0.6333333333333333,0.45,0.55000000000000004,0.6166666666666667,0.3833333333333333,{"$f":"IFERROR(VLOOKUP(G125,site!$C:$D,2,0),\"\")","v":" "}]
["2022-01-30","21:00:00","Gua1",0.5,0,1,"Solola - Municipal",2,1.5,0.75,0,0.75,0.25,0.25,0.75,0.25,0.75,0.5,0.5,{"$f":"IFERROR(VLOOKUP(G126,site!$C:$D,2,0),\"\")","v":" "}]
["2022-01-30","21:00:00","Isr2",0.66666666666666663,1,4,"M. Ahi Nazareth - Hapoel Acre",2,3.5,0.58333333333333337,0.25,0.58333333333333337,0.16666666666666666,0.41666666666666663,0.58333333333333337,0.66666666666666663,0.33333333333333331,0.75,0.25,{"$f":"IFERROR(VLOOKUP(G127,site!$C:$D,2,0),\"\")","v":" "}]
["2022-01-30","21:00:00","Mlt1",0.5,0,3,"Birkirkara - Gzira United",2,3,0.6,0.18333333333333335,0.53333333333333333,0.28333333333333333,0.56666666666666665,0.43333333333333335,0.75,0.25,0.75,0.25,{"$f":"IFERROR(VLOOKUP(G128,site!$C:$D,2,0),\"\")","v":" "}]
["2022-01-30","21:15:00","Spa2",0.33333333333333331,-2,2,"Las Palmas - Real Sociedad B",-8,0.5,8.3333333333333329E-2,0.5,0.25,0.25,0.33333333333333331,0.66666666666666663,0.58333333333333326,0.41666666666666663,0.66666666666666674,0.33333333333333331,{"$f":"IFERROR(VLOOKUP(G129,site!$C:$D,2,0),\"\")","v":" "}]
["2022-01-30","21:15:00","Spa2",0.5,0,3,"Mirandes - Malaga",-7,2,0.33333333333333331,0.41666666666666663,0.33333333333333331,0.25,0.5,0.5,0.41666666666666663,0.58333333333333326,0.66666666666666663,0.33333333333333331,{"$f":"IFERROR(VLOOKUP(G130,site!$C:$D,2,0),\"\")","v":" "}]
["2022-01-30","21:30:00","And1",0.83333333333333337,10,5,"Sant Julia - Ordino",-3,2,0.4,0.6333333333333333,0.16666666666666666,0.2,0.55000000000000004,0.45,0.35,0.65,0.6166666666666667,0.3833333333333333,{"$f":"IFERROR(VLOOKUP(G131,site!$C:$D,2,0),\"\")","v":" "}]
["2022-01-30","21:30:00","Bel1",0.33333333333333331,-2,2,"Standard Liege - Mechelen",1,3,0.5,0.33333333333333331,0.16666666666666666,0.5,0.5,0.5,0.58333333333333326,0.41666666666666663,0.75,0.25,{"$f":"IFERROR(VLOOKUP(G132,site!$C:$D,2,0),\"\")","v":" "}]
["2022-01-30","21:30:00","Gre1",0.83333333333333337,13,5,"PAOK - Olympiacos",6,4.5,0.75,0.41666666666666669,0.25,0.33333333333333331,0.41666666666666663,0.58333333333333337,8.3333333333333329E-2,0.91666666666666674,0.66666666666666674,0.33333333333333331,{"$f":"IFERROR(VLOOKUP(G133,site!$C:$D,2,0),\"\")","v":" "}]
["2022-01-30","21:30:00","Por2",0.16666666666666666,-4,1,"Acad. Coimbra - Leixoes",1,3.5,0.58333333333333337,0.16666666666666666,0.25,0.58333333333333326,0.5,0.5,0.66666666666666674,0.33333333333333331,0.75,0.25,{"$f":"IFERROR(VLOOKUP(G134,site!$C:$D,2,0),\"\")","v":" "}]
["2022-01-30","22:00:00","Gua1",0.75,2,1.5,"Malacateco - Coban Imperial",2,1.5,0.75,0.25,0.5,0.25,0.25,0.75,0.25,0.75,0.75,0.25,{"$f":"IFERROR(VLOOKUP(G135,site!$C:$D,2,0),\"\")","v":" "}]
["2022-01-30","22:00:00","Isr1",0.83333333333333337,7,5,"Hapoel Tel Aviv - Hapoel Hadera",2,3.5,0.58333333333333337,0.41666666666666663,0.41666666666666663,0.16666666666666666,0.41666666666666663,0.58333333333333326,0.66666666666666674,0.33333333333333331,1,0,{"$f":"IFERROR(VLOOKUP(G136,site!$C:$D,2,0),\"\")","v":" "}]
["2022-01-30","22:00:00","Mex2",0.875,5,3.5,"Tapatio - Tampico Madero",-2,1,0.33333333333333331,0.54166666666666663,0.45833333333333331,0,0,1,0.33333333333333331,0.66666666666666663,0.70833333333333326,0.29166666666666663,{"$f":"IFERROR(VLOOKUP(G137,site!$C:$D,2,0),\"\")","v":" "}]
["2022-01-30","22:00:00","Por1",0.75,10,4.5,"SC Braga - Moreirense",-1,3,0.5,0.5,0.25,0.25,0.5,0.5,0.5,0.5,0.83333333333333337,0.16666666666666666,{"$f":"IFERROR(VLOOKUP(G138,site!$C:$D,2,0),\"\")","v":" "}]
["2022-01-30","22:00:00","Rou1",0.16666666666666666,-7,1,"Din. Bucuresti - FC FCSB",3,4,0.66666666666666663,0.16666666666666666,0.16666666666666666,0.66666666666666674,0.5,0.5,0.41666666666666663,0.58333333333333326,0.58333333333333326,0.41666666666666663,{"$f":"IFERROR(VLOOKUP(G139,site!$C:$D,2,0),\"\")","v":" "}]
["2022-01-30","22:00:00","Spa3",1,8,6,"Dep. La Coruna - R. Santander",9,5.5,0.91666666666666663,0.5,8.3333333333333329E-2,0.41666666666666669,0.58333333333333326,0.41666666666666663,0.5,0.5,0.91666666666666674,8.3333333333333329E-2,{"$f":"IFERROR(VLOOKUP(G140,site!$C:$D,2,0),\"\")","v":"-   -"}]
["2022-01-30","22:00:00","Spa3",0.41666666666666669,-2,2.5,"Castellon - UCAM Murcia",4,3.5,0.58333333333333337,0.33333333333333331,0.16666666666666666,0.5,0.58333333333333326,0.41666666666666663,0.58333333333333326,0.41666666666666663,0.91666666666666674,8.3333333333333329E-2,{"$f":"IFERROR(VLOOKUP(G141,site!$C:$D,2,0),\"\")","v":" "}]
["2022-01-30","22:30:00","Isr1",0.58333333333333337,1,3.5,"Maccabi Netanya - Maccabi Haifa",13,5.5,0.91666666666666663,0.16666666666666666,0.33333333333333331,0.5,0.58333333333333337,0.41666666666666663,0.58333333333333326,0.41666666666666663,0.91666666666666674,8.3333333333333329E-2,{"$f":"IFERROR(VLOOKUP(G142,site!$C:$D,2,0),\"\")","v":" "}]
["2022-01-30","23:00:00","Bel2",0.75,3,4.5,"RWD Molenbeek - RE Mouscron",1,3,0.6,0.43333333333333335,0.28333333333333333,0.28333333333333333,0.65,0.35,0.65,0.35,0.81666666666666665,0.18333333333333335,{"$f":"IFERROR(VLOOKUP(G143,site!$C:$D,2,0),\"\")","v":" "}]
["2022-01-30","23:00:00","Bra",0.66666666666666663,5,4,"CSA AL - Botafogo PB",0,3,0.6,0.35,0.3666666666666667,0.28333333333333333,0.26666666666666666,0.73333333333333339,0.26666666666666666,0.73333333333333339,0.71666666666666667,0.28333333333333333,{"$f":"IFERROR(VLOOKUP(G144,site!$C:$D,2,0),\"\")","v":" "}]
["2022-01-30","23:00:00","CAN",0.83333333333333337,8,5,"Senegal - Equat. Guinea",1,3.5,0.58333333333333337,0.41666666666666663,0.41666666666666663,0.16666666666666666,8.3333333333333329E-2,0.91666666666666674,0.25,0.75,0.66666666666666663,0.33333333333333331,{"$f":"IFERROR(VLOOKUP(G145,site!$C:$D,2,0),\"\")","v":" "}]
["2022-01-30","23:00:00","Col1",0.5,0,1,"Patriotas - Dep. Pereira",-1,0.5,0.25,0.5,0.25,0.25,0.5,0.5,0.75,0.25,1,0,{"$f":"IFERROR(VLOOKUP(G146,site!$C:$D,2,0),\"\")","v":" "}]
["2022-01-30","23:00:00","Hun1",0.66666666666666663,2,4,"Ujpest - Ferencvaros",1,2.5,0.5,0.53333333333333333,0.1,0.3666666666666667,0.43333333333333335,0.56666666666666665,0.43333333333333335,0.56666666666666665,0.71666666666666667,0.28333333333333333,{"$f":"IFERROR(VLOOKUP(G147,site!$C:$D,2,0),\"\")","v":" "}]
["2022-01-30","00:00:00","Bel1",0.66666666666666663,4,4,"Kortrijk - Club Brugge",3,3.5,0.58333333333333337,0.25,0.58333333333333326,0.16666666666666666,0.41666666666666663,0.58333333333333326,0.5,0.5,0.83333333333333326,0.16666666666666666,{"$f":"IFERROR(VLOOKUP(G148,site!$C:$D,2,0),\"\")","v":" "}]
["2022-01-30","00:00:00","Fra",0.41666666666666669,-2,2.5,"Lens - Monaco",0,2.5,0.41666666666666669,0.41666666666666663,0.16666666666666666,0.41666666666666663,0.58333333333333326,0.41666666666666663,0.5,0.5,0.66666666666666674,0.33333333333333331,{"$f":"IFERROR(VLOOKUP(G149,site!$C:$D,2,0),\"\")","v":" "}]
["2022-01-30","00:00:00","Spa2",0.58333333333333337,2,3.5,"Ponferradina - Tenerife",3,3,0.5,0.33333333333333331,0.41666666666666663,0.25,0.33333333333333331,0.66666666666666663,0.58333333333333326,0.41666666666666663,0.75,0.25,{"$f":"IFERROR(VLOOKUP(G150,site!$C:$D,2,0),\"\")","v":" "}]
["2022-01-30","00:05:00","WCup",0.83333333333333337,7,5,"Canada - USA",5,5,0.83333333333333337,0.33333333333333331,0.33333333333333331,0.33333333333333331,0.33333333333333331,0.66666666666666663,0.5,0.5,0.91666666666666674,8.3333333333333329E-2,{"$f":"IFERROR(VLOOKUP(G151,site!$C:$D,2,0),\"\")","v":" "}]
["2022-01-30","00:30:00","Por1",1,13,6,"Porto - Maritimo",-1,4.5,0.75,0.58333333333333337,8.3333333333333329E-2,0.33333333333333331,0.75,0.25,0.75,0.25,1,0,{"$f":"IFERROR(VLOOKUP(G152,site!$C:$D,2,0),\"\")","v":" "}]
["2022-01-30","01:00:00","Bra",0.41666666666666669,-1,2.5,"Sampaio Correa - Altos PI",0,0,"NG",0.16666666666666666,8.3333333333333329E-2,0.25,0.41666666666666669,8.3333333333333329E-2,0.33333333333333331,0.16666666666666666,0.41666666666666669,8.3333333333333329E-2,{"$f":"IFERROR(VLOOKUP(G153,site!$C:$D,2,0),\"\")","v":" "}]
["2022-01-30","01:00:00","Els1",0.33333333333333331,-1,1,"Mun. Limeno - Aguila",6,2.5,0.83333333333333337,0.16666666666666666,0.16666666666666666,0.66666666666666663,0.66666666666666663,0.33333333333333331,0.5,0.5,0.66666666666666663,0.33333333333333331,{"$f":"IFERROR(VLOOKUP(G154,site!$C:$D,2,0),\"\")","v":" "}]
["2022-01-30","01:00:00","Gua1",0.75,3,1.5,"Guastatoya - Dep. Achuapa",-4,0,0,0.75,0.25,0,0.5,0.5,0,1,0.25,0.75,{"$f":"IFERROR(VLOOKUP(G155,site!$C:$D,2,0),\"\")","v":" "}]
["2022-01-30","01:05:00","Col1",0.5,-1,1,"Ind. Medellin - Deportivo Cali",-2,0,0,0.75,0,0.25,0.25,0.75,0.25,0.75,0.5,0.5,{"$f":"IFERROR(VLOOKUP(G156,site!$C:$D,2,0),\"\")","v":" "}]
["2022-01-30","02:00:00","Uru",0.41666666666666669,-2,2.5,"Plaza Colonia - Penarol",3,3.5,0.7,0.16666666666666666,0.3833333333333333,0.45,0.28333333333333333,0.71666666666666667,0.46666666666666667,0.53333333333333333,0.65,0.35,{"$f":"IFERROR(VLOOKUP(G157,site!$C:$D,2,0),\"\")","v":" "}]
["2022-01-30","03:00:00","WCup",0.33333333333333331,-3,2,"Mexico - Costa Rica",0,3,0.5,0.33333333333333331,0.16666666666666666,0.5,0.58333333333333326,0.41666666666666663,0.66666666666666674,0.33333333333333331,0.75,0.25,{"$f":"IFERROR(VLOOKUP(G158,site!$C:$D,2,0),\"\")","v":" "}]
["2022-01-30","03:05:00","WCup",0.5,-2,3,"Panama - Jamaica",-5,2,0.33333333333333331,0.41666666666666663,0.33333333333333331,0.25,0.5,0.5,0.66666666666666674,0.33333333333333331,0.75,0.25,{"$f":"IFERROR(VLOOKUP(G159,site!$C:$D,2,0),\"\")","v":" "}]
["2022-01-30","03:10:00","Col1",0.75,1,1.5,"America de Cali - CA Bucaramanga",0,1,0.5,0.25,0.75,0,0,1,0.5,0.5,0.75,0.25,{"$f":"IFERROR(VLOOKUP(G160,site!$C:$D,2,0),\"\")","v":" "}]
[null,null,null,null,null,null,null,null,null,null,null,null,null,null,null,null,null,null,null,{"$f":"IFERROR(VLOOKUP(G161,site!$C:$D,2,0),\"\")","v":""}]
[null,null,null,null,null,null,null,null,null,null,null,null,null,null,null,null,null,null,null,{"$f":"IFERROR(VLOOKUP(G162,site!$C:$D,2,0),\"\")","v":""}]
[null,null,null,null,null,null,null,null,null,null,null,null,null,null,null,null,null,null,null,{"$f":"IFERROR(VLOOKUP(G163,site!$C:$D,2,0),\"\")","v":""}]
[null,null,null,null,null,null,null,null,null,null,null,null,null,null,null,null,null,null,null,{"$f":"IFERROR(VLOOKUP(G164,site!$C:$D,2,0),\"\")","v":""}]
[null,null,null,null,null,null,null,null,null,null,null,null,null,null,null,null,null,null,null,{"$f":"IFERROR(VLOOKUP(G165,site!$C:$D,2,0),\"\")","v":""}]
[null,null,null,null,null,null,null,null,null,null,null,null,null,null,null,null,null,null,null,{"$f":"IFERROR(VLOOKUP(G166,site!$C:$D,2,0),\"\")","v":""}]
[null,null,null,null,null,null,null,null,null,null,null,null,null,null,null,null,null,null,null,{"$f":"IFERROR(VLOOKUP(G167,site!$C:$D,2,0),\"\")","v":""}]
[null,null,null,null,null,null,null,null,null,null,null,null,null,null,null,null,null,null,null,{"$f":"IFERROR(VLOOKUP(G168,site!$C:$D,2,0),\"\")","v":""}]
[null,null,null,null,null,null,null,null,null,null,null,null,null,null,null,null,null,null,null,{"$f":"IFERROR(VLOOKUP(G169,site!$C:$D,2,0),\"\")","v":""}]
[null,null,null,null,null,null,null,null,null,null,null,null,null,null,null,null,null,null,null,{"$f":"IFERROR(VLOOKUP(G170,site!$C:$D,2,0),\"\")","v":""}]
[null,null,null,null,null,null,null,null,null,null,null,null,null,null,null,null,null,null,null,{"$f":"IFERROR(VLOOKUP(G171,site!$C:$D,2,0),\"\")","v":""}]
[null,null,null,null,null,null,null,null,null,null,null,null,null,null,null,null,null,null,null,{"$f":"IFERROR(VLOOKUP(G172,site!$C:$D,2,0),\"\")","v":""}]
[null,null,null,null,null,null,null,null,null,null,null,null,null,null,null,null,null,null,null,{"$f":"IFERROR(VLOOKUP(G173,site!$C:$D,2,0),\"\")","v":""}]
[null,null,null,null,null,null,null,null,null,null,null,null,null,null,null,null,null,null,null,{"$f":"IFERROR(VLOOKUP(G174,site!$C:$D,2,0),\"\")","v":""}]
[null,null,null,null,null,null,null,null,null,null,null,null,null,null,null,null,null,null,null,{"$f":"IFERROR(VLOOKUP(G175,site!$C:$D,2,0),\"\")","v":""}]
[null,null,null,null,null,null,null,null,null,null,null,null,null,null,null,null,null,null,null,{"$f":"IFERROR(VLOOKUP(G176,site!$C:$D,2,0),\"\")","v":""}]
[null,null,null,null,null,null,null,null,null,null,null,null,null,null,null,null,null,null,null,{"$f":"IFERROR(VLOOKUP(G177,site!$C:$D,2,0),\"\")","v":""}]
[null,null,null,null,null,null,null,null,null,null,null,null,null,null,null,null,null,null,null,{"$f":"IFERROR(VLOOKUP(G178,site!$C:$D,2,0),\"\")","v":""}]
[null,null,null,null,null,null,null,null,null,null,null,null,null,null,null,null,null,null,null,{"$f":"IFERROR(VLOOKUP(G179,site!$C:$D,2,0),\"\")","v":""}]
[null,null,null,null,null,null,null,null,null,null,null,null,null,null,null,null,null,null,null,{"$f":"IFERROR(VLOOKUP(G180,site!$C:$D,2,0),\"\")","v":""}]
[null,null,null,null,null,null,null,null,null,null,null,null,null,null,null,null,null,null,null,{"$f":"IFERROR(VLOOKUP(G181,site!$C:$D,2,0),\"\")","v":""}]
[null,null,null,null,null,null,null,null,null,null,null,null,null,null,null,null,null,null,null,{"$f":"IFERROR(VLOOKUP(G182,site!$C:$D,2,0),\"\")","v":""}]
[null,null,null,null,null,null,null,null,null,null,null,null,null,null,null,null,null,null,null,{"$f":"IFERROR(VLOOKUP(G183,site!$C:$D,2,0),\"\")","v":""}]
[null,null,null,null,null,null,null,null,null,null,null,null,null,null,null,null,null,null,null,{"$f":"IFERROR(VLOOKUP(G184,site!$C:$D,2,0),\"\")","v":""}]
[null,null,null,null,null,null,null,null,null,null,null,null,null,null,null,null,null,null,null,{"$f":"IFERROR(VLOOKUP(G185,site!$C:$D,2,0),\"\")","v":""}]
[null,null,null,null,null,null,null,null,null,null,null,null,null,null,null,null,null,null,null,{"$f":"IFERROR(VLOOKUP(G186,site!$C:$D,2,0),\"\")","v":""}]
[null,null,null,null,null,null,null,null,null,null,null,null,null,null,null,null,null,null,null,{"$f":"IFERROR(VLOOKUP(G187,site!$C:$D,2,0),\"\")","v":""}]
[null,null,null,null,null,null,null,null,null,null,null,null,null,null,null,null,null,null,null,{"$f":"IFERROR(VLOOKUP(G188,site!$C:$D,2,0),\"\")","v":""}]
[null,null,null,null,null,null,null,null,null,null,null,null,null,null,null,null,null,null,null,{"$f":"IFERROR(VLOOKUP(G189,site!$C:$D,2,0),\"\")","v":""}]
[null,null,null,null,null,null,null,null,null,null,null,null,null,null,null,null,null,null,null,{"$f":"IFERROR(VLOOKUP(G190,site!$C:$D,2,0),\"\")","v":""}]
[null,null,null,null,null,null,null,null,null,null,null,null,null,null,null,null,null,null,null,{"$f":"IFERROR(VLOOKUP(G191,site!$C:$D,2,0),\"\")","v":""}]
[null,null,null,null,null,null,null,null,null,null,null,null,null,null,null,null,null,null,null,{"$f":"IFERROR(VLOOKUP(G192,site!$C:$D,2,0),\"\")","v":""}]
[null,null,null,null,null,null,null,null,null,null,null,null,null,null,null,null,null,null,null,{"$f":"IFERROR(VLOOKUP(G193,site!$C:$D,2,0),\"\")","v":""}]
[null,null,null,null,null,null,null,null,null,null,null,null,null,null,null,null,null,null,null,{"$f":"IFERROR(VLOOKUP(G194,site!$C:$D,2,0),\"\")","v":""}]
[null,null,null,null,null,null,null,null,null,null,null,null,null,null,null,null,null,null,null,{"$f":"IFERROR(VLOOKUP(G195,site!$C:$D,2,0),\"\")","v":""}]
[null,null,null,null,null,null,null,null,null,null,null,null,null,null,null,null,null,null,null,{"$f":"IFERROR(VLOOKUP(G196,site!$C:$D,2,0),\"\")","v":""}]
[null,null,null,null,null,null,null,null,null,null,null,null,null,null,null,null,null,null,null,{"$f":"IFERROR(VLOOKUP(G197,site!$C:$D,2,0),\"\")","v":""}]
[null,null,null,null,null,null,null,null,null,null,null,null,null,null,null,null,null,null,null,{"$f":"IFERROR(VLOOKUP(G198,site!$C:$D,2,0),\"\")","v":""}]
[null,null,null,null,null,null,null,null,null,null,null,null,null,null,null,null,null,null,null,{"$f":"IFERROR(VLOOKUP(G199,site!$C:$D,2,0),\"\")","v":""}]
[null,null,null,null,null,null,null,null,null,null,null,null,null,null,null,null,null,null,null,{"$f":"IFERROR(VLOOKUP(G200,site!$C:$D,2,0),\"\")","v":""}]
[null,null,null,null,null,null,null,null,null,null,null,null,null,null,null,null,null,null,null,{"$f":"IFERROR(VLOOKUP(G201,site!$C:$D,2,0),\"\")","v":""}]
[null,null,null,null,null,null,null,null,null,null,null,null,null,null,null,null,null,null,null,{"$f":"IFERROR(VLOOKUP(G202,site!$C:$D,2,0),\"\")","v":""}]
[null,null,null,null,null,null,null,null,null,null,null,null,null,null,null,null,null,null,null,{"$f":"IFERROR(VLOOKUP(G203,site!$C:$D,2,0),\"\")","v":""}]
[null,null,null,null,null,null,null,null,null,null,null,null,null,null,null,null,null,null,null,{"$f":"IFERROR(VLOOKUP(G204,site!$C:$D,2,0),\"\")","v":""}]
[null,null,null,null,null,null,null,null,null,null,null,null,null,null,null,null,null,null,null,{"$f":"IFERROR(VLOOKUP(G205,site!$C:$D,2,0),\"\")","v":""}]
[null,null,null,null,null,null,null,null,null,null,null,null,null,null,null,null,null,null,null,{"$f":"IFERROR(VLOOKUP(G206,site!$C:$D,2,0),\"\")","v":""}]
[null,null,null,null,null,null,null,null,null,null,null,null,null,null,null,null,null,null,null,{"$f":"IFERROR(VLOOKUP(G207,site!$C:$D,2,0),\"\")","v":""}]
[null,null,null,null,null,null,null,null,null,null,null,null,null,null,null,null,null,null,null,{"$f":"IFERROR(VLOOKUP(G208,site!$C:$D,2,0),\"\")","v":""}]
[null,null,null,null,null,null,null,null,null,null,null,null,null,null,null,null,null,null,null,{"$f":"IFERROR(VLOOKUP(G209,site!$C:$D,2,0),\"\")","v":""}]
[null,null,null,null,null,null,null,null,null,null,null,null,null,null,null,null,null,null,null,{"$f":"IFERROR(VLOOKUP(G210,site!$C:$D,2,0),\"\")","v":""}]
[null,null,null,null,null,null,null,null,null,null,null,null,null,null,null,null,null,null,null,{"$f":"IFERROR(VLOOKUP(G211,site!$C:$D,2,0),\"\")","v":""}]
[null,null,null,null,null,null,null,null,null,null,null,null,null,null,null,null,null,null,null,{"$f":"IFERROR(VLOOKUP(G212,site!$C:$D,2,0),\"\")","v":""}]
[null,null,null,null,null,null,null,null,null,null,null,null,null,null,null,null,null,null,null,{"$f":"IFERROR(VLOOKUP(G213,site!$C:$D,2,0),\"\")","v":""}]
[null,null,null,null,null,null,null,null,null,null,null,null,null,null,null,null,null,null,null,{"$f":"IFERROR(VLOOKUP(G214,site!$C:$D,2,0),\"\")","v":""}]
[null,null,null,null,null,null,null,null,null,null,null,null,null,null,null,null,null,null,null,{"$f":"IFERROR(VLOOKUP(G215,site!$C:$D,2,0),\"\")","v":""}]
[null,null,null,null,null,null,null,null,null,null,null,null,null,null,null,null,null,null,null,{"$f":"IFERROR(VLOOKUP(G216,site!$C:$D,2,0),\"\")","v":""}]
[null,null,null,null,null,null,null,null,null,null,null,null,null,null,null,null,null,null,null,{"$f":"IFERROR(VLOOKUP(G217,site!$C:$D,2,0),\"\")","v":""}]
[null,null,null,null,null,null,null,null,null,null,null,null,null,null,null,null,null,null,null,{"$f":"IFERROR(VLOOKUP(G218,site!$C:$D,2,0),\"\")","v":""}]
[null,null,null,null,null,null,null,null,null,null,null,null,null,null,null,null,null,null,null,{"$f":"IFERROR(VLOOKUP(G219,site!$C:$D,2,0),\"\")","v":""}]
[null,null,null,null,null,null,null,null,null,null,null,null,null,null,null,null,null,null,null,{"$f":"IFERROR(VLOOKUP(G220,site!$C:$D,2,0),\"\")","v":""}]
[null,null,null,null,null,null,null,null,null,null,null,null,null,null,null,null,null,null,null,{"$f":"IFERROR(VLOOKUP(G221,site!$C:$D,2,0),\"\")","v":""}]
[null,null,null,null,null,null,null,null,null,null,null,null,null,null,null,null,null,null,null,{"$f":"IFERROR(VLOOKUP(G222,site!$C:$D,2,0),\"\")","v":""}]
[null,null,null,null,null,null,null,null,null,null,null,null,null,null,null,null,null,null,null,{"$f":"IFERROR(VLOOKUP(G223,site!$C:$D,2,0),\"\")","v":""}]
[null,null,null,null,null,null,null,null,null,null,null,null,null,null,null,null,null,null,null,{"$f":"IFERROR(VLOOKUP(G224,site!$C:$D,2,0),\"\")","v":""}]
[null,null,null,null,null,null,null,null,null,null,null,null,null,null,null,null,null,null,null,{"$f":"IFERROR(VLOOKUP(G225,site!$C:$D,2,0),\"\")","v":""}]
[null,null,null,null,null,null,null,null,null,null,null,null,null,null,null,null,null,null,null,{"$f":"IFERROR(VLOOKUP(G226,site!$C:$D,2,0),\"\")","v":""}]
[null,null,null,null,null,null,null,null,null,null,null,null,null,null,null,null,null,null,null,{"$f":"IFERROR(VLOOKUP(G227,site!$C:$D,2,0),\"\")","v":""}]
[null,null,null,null,null,null,null,null,null,null,null,null,null,null,null,null,null,null,null,{"$f":"IFERROR(VLOOKUP(G228,site!$C:$D,2,0),\"\")","v":""}]
[null,null,null,null,null,null,null,null,null,null,null,null,null,null,null,null,null,null,null,{"$f":"IFERROR(VLOOKUP(G229,site!$C:$D,2,0),\"\")","v":""}]
[null,null,null,null,null,null,null,null,null,null,null,null,null,null,null,null,null,null,null,{"$f":"IFERROR(VLOOKUP(G230,site!$C:$D,2,0),\"\")","v":""}]
[null,null,null,null,null,null,null,null,null,null,null,null,null,null,null,null,null,null,null,{"$f":"IFERROR(VLOOKUP(G231,site!$C:$D,2,0),\"\")","v":""}]
[null,null,null,null,null,null,null,null,null,null,null,null,null,null,null,null,null,null,null,{"$f":"IFERROR(VLOOKUP(G232,site!$C:$D,2,0),\"\")","v":""}]
[null,null,null,null,null,null,null,null,null,null,null,null,null,null,null,null,null,null,null,{"$f":"IFERROR(VLOOKUP(G233,site!$C:$D,2,0),\"\")","v":""}]
[null,null,null,null,null,null,null,null,null,null,null,null,null,null,null,null,null,null,null,{"$f":"IFERROR(VLOOKUP(G234,site!$C:$D,2,0),\"\")","v":""}]
[null,null,null,null,null,null,null,null,null,null,null,null,null,null,null,null,null,null,null,{"$f":"IFERROR(VLOOKUP(G235,site!$C:$D,2,0),\"\")","v":""}]
[null,null,null,null,null,null,null,null,null,null,null,null,null,null,null,null,null,null,null,{"$f":"IFERROR(VLOOKUP(G236,site!$C:$D,2,0),\"\")","v":""}]
[null,null,null,null,null,null,null,null,null,null,null,null,null,null,null,null,null,null,null,{"$f":"IFERROR(VLOOKUP(G237,site!$C:$D,2,0),\"\")","v":""}]
[null,null,null,null,null,null,null,null,null,null,null,null,null,null,null,null,null,null,null,{"$f":"IFERROR(VLOOKUP(G238,site!$C:$D,2,0),\"\")","v":""}]
[null,null,null,null,null,null,null,null,null,null,null,null,null,null,null,null,null,null,null,{"$f":"IFERROR(VLOOKUP(G239,site!$C:$D,2,0),\"\")","v":""}]
[null,null,null,null,null,null,null,null,null,null,null,null,null,null,null,null,null,null,null,{"$f":"IFERROR(VLOOKUP(G240,site!$C:$D,2,0),\"\")","v":""}]
[null,null,null,null,null,null,null,null,null,null,null,null,null,null,null,null,null,null,null,{"$f":"IFERROR(VLOOKUP(G241,site!$C:$D,2,0),\"\")","v":""}]
[null,null,null,null,null,null,null,null,null,null,null,null,null,null,null,null,null,null,null,{"$f":"IFERROR(VLOOKUP(G242,site!$C:$D,2,0),\"\")","v":""}]
[null,null,null,null,null,null,null,null,null,null,null,null,null,null,null,null,null,null,null,{"$f":"IFERROR(VLOOKUP(G243,site!$C:$D,2,0),\"\")","v":""}]
[null,null,null,null,null,null,null,null,null,null,null,null,null,null,null,null,null,null,null,{"$f":"IFERROR(VLOOKUP(G244,site!$C:$D,2,0),\"\")","v":""}]
[null,null,null,null,null,null,null,null,null,null,null,null,null,null,null,null,null,null,null,{"$f":"IFERROR(VLOOKUP(G245,site!$C:$D,2,0),\"\")","v":""}]
[null,null,null,null,null,null,null,null,null,null,null,null,null,null,null,null,null,null,null,{"$f":"IFERROR(VLOOKUP(G246,site!$C:$D,2,0),\"\")","v":""}]
[null,null,null,null,null,null,null,null,null,null,null,null,null,null,null,null,null,null,null,{"$f":"IFERROR(VLOOKUP(G247,site!$C:$D,2,0),\"\")","v":""}]
[null,null,null,null,null,null,null,null,null,null,null,null,null,null,null,null,null,null,null,{"$f":"IFERROR(VLOOKUP(G248,site!$C:$D,2,0),\"\")","v":""}]
[null,null,null,null,null,null,null,null,null,null,null,null,null,null,null,null,null,null,null,{"$f":"IFERROR(VLOOKUP(G249,site!$C:$D,2,0),\"\")","v":""}]
[null,null,null,null,null,null,null,null,null,null,null,null,null,null,null,null,null,null,null,{"$f":"IFERROR(VLOOKUP(G250,site!$C:$D,2,0),\"\")","v":""}]
[null,null,null,null,null,null,null,null,null,null,null,null,null,null,null,null,null,null,null,{"$f":"IFERROR(VLOOKUP(G251,site!$C:$D,2,0),\"\")","v":""}]
[null,null,null,null,null,null,null,null,null,null,null,null,null,null,null,null,null,null,null,{"$f":"IFERROR(VLOOKUP(G252,site!$C:$D,2,0),\"\")","v":""}]
[null,null,null,null,null,null,null,null,null,null,null,null,null,null,null,null,null,null,null,{"$f":"IFERROR(VLOOKUP(G253,site!$C:$D,2,0),\"\")","v":""}]
[null,null,null,null,null,null,null,null,null,null,null,null,null,null,null,null,null,null,null,{"$f":"IFERROR(VLOOKUP(G254,site!$C:$D,2,0),\"\")","v":""}]
[null,null,null,null,null,null,null,null,null,null,null,null,null,null,null,null,null,null,null,{"$f":"IFERROR(VLOOKUP(G255,site!$C:$D,2,0),\"\")","v":""}]
[null,null,null,null,null,null,null,null,null,null,null,null,null,null,null,null,null,null,null,{"$f":"IFERROR(VLOOKUP(G256,site!$C:$D,2,0),\"\")","v":""}]
[null,null,null,null,null,null,null,null,null,null,null,null,null,null,null,null,null,null,null,{"$f":"IFERROR(VLOOKUP(G257,site!$C:$D,2,0),\"\")","v":""}]
[null,null,null,null,null,null,null,null,null,null,null,null,null,null,null,null,null,null,null,{"$f":"IFERROR(VLOOKUP(G258,site!$C:$D,2,0),\"\")","v":""}]
[null,null,null,null,null,null,null,null,null,null,null,null,null,null,null,null,null,null,null,{"$f":"IFERROR(VLOOKUP(G259,site!$C:$D,2,0),\"\")","v":""}]
[null,null,null,null,null,null,null,null,null,null,null,null,null,null,null,null,null,null,null,{"$f":"IFERROR(VLOOKUP(G260,site!$C:$D,2,0),\"\")","v":""}]
[null,null,null,null,null,null,null,null,null,null,null,null,null,null,null,null,null,null,null,{"$f":"IFERROR(VLOOKUP(G261,site!$C:$D,2,0),\"\")","v":""}]
[null,null,null,null,null,null,null,null,null,null,null,null,null,null,null,null,null,null,null,{"$f":"IFERROR(VLOOKUP(G262,site!$C:$D,2,0),\"\")","v":""}]
[null,null,null,null,null,null,null,null,null,null,null,null,null,null,null,null,null,null,null,{"$f":"IFERROR(VLOOKUP(G263,site!$C:$D,2,0),\"\")","v":""}]
[null,null,null,null,null,null,null,null,null,null,null,null,null,null,null,null,null,null,null,{"$f":"IFERROR(VLOOKUP(G264,site!$C:$D,2,0),\"\")","v":""}]
[null,null,null,null,null,null,null,null,null,null,null,null,null,null,null,null,null,null,null,{"$f":"IFERROR(VLOOKUP(G265,site!$C:$D,2,0),\"\")","v":""}]
[null,null,null,null,null,null,null,null,null,null,null,null,null,null,null,null,null,null,null,{"$f":"IFERROR(VLOOKUP(G266,site!$C:$D,2,0),\"\")","v":""}]
[null,null,null,null,null,null,null,null,null,null,null,null,null,null,null,null,null,null,null,{"$f":"IFERROR(VLOOKUP(G267,site!$C:$D,2,0),\"\")","v":""}]
[null,null,null,null,null,null,null,null,null,null,null,null,null,null,null,null,null,null,null,{"$f":"IFERROR(VLOOKUP(G268,site!$C:$D,2,0),\"\")","v":""}]
[null,null,null,null,null,null,null,null,null,null,null,null,null,null,null,null,null,null,null,{"$f":"IFERROR(VLOOKUP(G269,site!$C:$D,2,0),\"\")","v":""}]
[null,null,null,null,null,null,null,null,null,null,null,null,null,null,null,null,null,null,null,{"$f":"IFERROR(VLOOKUP(G270,site!$C:$D,2,0),\"\")","v":""}]
[null,null,null,null,null,null,null,null,null,null,null,null,null,null,null,null,null,null,null,{"$f":"IFERROR(VLOOKUP(G271,site!$C:$D,2,0),\"\")","v":""}]
[null,null,null,null,null,null,null,null,null,null,null,null,null,null,null,null,null,null,null,{"$f":"IFERROR(VLOOKUP(G272,site!$C:$D,2,0),\"\")","v":""}]
[null,null,null,null,null,null,null,null,null,null,null,null,null,null,null,null,null,null,null,{"$f":"IFERROR(VLOOKUP(G273,site!$C:$D,2,0),\"\")","v":""}]
[null,null,null,null,null,null,null,null,null,null,null,null,null,null,null,null,null,null,null,{"$f":"IFERROR(VLOOKUP(G274,site!$C:$D,2,0),\"\")","v":""}]
[null,null,null,null,null,null,null,null,null,null,null,null,null,null,null,null,null,null,null,{"$f":"IFERROR(VLOOKUP(G275,site!$C:$D,2,0),\"\")","v":""}]
[null,null,null,null,null,null,null,null,null,null,null,null,null,null,null,null,null,null,null,{"$f":"IFERROR(VLOOKUP(G276,site!$C:$D,2,0),\"\")","v":""}]
[null,null,null,null,null,null,null,null,null,null,null,null,null,null,null,null,null,null,null,{"$f":"IFERROR(VLOOKUP(G277,site!$C:$D,2,0),\"\")","v":""}]
[null,null,null,null,null,null,null,null,null,null,null,null,null,null,null,null,null,null,null,{"$f":"IFERROR(VLOOKUP(G278,site!$C:$D,2,0),\"\")","v":""}]
[null,null,null,null,null,null,null,null,null,null,null,null,null,null,null,null,null,null,null,{"$f":"IFERROR(VLOOKUP(G279,site!$C:$D,2,0),\"\")","v":""}]
[null,null,null,null,null,null,null,null,null,null,null,null,null,null,null,null,null,null,null,{"$f":"IFERROR(VLOOKUP(G280,site!$C:$D,2,0),\"\")","v":""}]
[null,null,null,null,null,null,null,null,null,null,null,null,null,null,null,null,null,null,null,{"$f":"IFERROR(VLOOKUP(G281,site!$C:$D,2,0),\"\")","v":""}]
[null,null,null,null,null,null,null,null,null,null,null,null,null,null,null,null,null,null,null,{"$f":"IFERROR(VLOOKUP(G282,site!$C:$D,2,0),\"\")","v":""}]
[null,null,null,null,null,null,null,null,null,null,null,null,null,null,null,null,null,null,null,{"$f":"IFERROR(VLOOKUP(G283,site!$C:$D,2,0),\"\")","v":""}]
[null,null,null,null,null,null,null,null,null,null,null,null,null,null,null,null,null,null,null,{"$f":"IFERROR(VLOOKUP(G284,site!$C:$D,2,0),\"\")","v":""}]
[null,null,null,null,null,null,null,null,null,null,null,null,null,null,null,null,null,null,null,{"$f":"IFERROR(VLOOKUP(G285,site!$C:$D,2,0),\"\")","v":""}]
[null,null,null,null,null,null,null,null,null,null,null,null,null,null,null,null,null,null,null,{"$f":"IFERROR(VLOOKUP(G286,site!$C:$D,2,0),\"\")","v":""}]
[null,null,null,null,null,null,null,null,null,null,null,null,null,null,null,null,null,null,null,{"$f":"IFERROR(VLOOKUP(G287,site!$C:$D,2,0),\"\")","v":""}]
[null,null,null,null,null,null,null,null,null,null,null,null,null,null,null,null,null,null,null,{"$f":"IFERROR(VLOOKUP(G288,site!$C:$D,2,0),\"\")","v":""}]
[null,null,null,null,null,null,null,null,null,null,null,null,null,null,null,null,null,null,null,{"$f":"IFERROR(VLOOKUP(G289,site!$C:$D,2,0),\"\")","v":""}]
[null,null,null,null,null,null,null,null,null,null,null,null,null,null,null,null,null,null,null,{"$f":"IFERROR(VLOOKUP(G290,site!$C:$D,2,0),\"\")","v":""}]
[null,null,null,null,null,null,null,null,null,null,null,null,null,null,null,null,null,null,null,{"$f":"IFERROR(VLOOKUP(G291,site!$C:$D,2,0),\"\")","v":""}]
[null,null,null,null,null,null,null,null,null,null,null,null,null,null,null,null,null,null,null,{"$f":"IFERROR(VLOOKUP(G292,site!$C:$D,2,0),\"\")","v":""}]
[null,null,null,null,null,null,null,null,null,null,null,null,null,null,null,null,null,null,null,{"$f":"IFERROR(VLOOKUP(G293,site!$C:$D,2,0),\"\")","v":""}]
[null,null,null,null,null,null,null,null,null,null,null,null,null,null,null,null,null,null,null,{"$f":"IFERROR(VLOOKUP(G294,site!$C:$D,2,0),\"\")","v":""}]
[null,null,null,null,null,null,null,null,null,null,null,null,null,null,null,null,null,null,null,{"$f":"IFERROR(VLOOKUP(G295,site!$C:$D,2,0),\"\")","v":""}]
[null,null,null,null,null,null,null,null,null,null,null,null,null,null,null,null,null,null,null,{"$f":"IFERROR(VLOOKUP(G296,site!$C:$D,2,0),\"\")","v":""}]
[null,null,null,null,null,null,null,null,null,null,null,null,null,null,null,null,null,null,null,{"$f":"IFERROR(VLOOKUP(G297,site!$C:$D,2,0),\"\")","v":""}]
[null,null,null,null,null,null,null,null,null,null,null,null,null,null,null,null,null,null,null,{"$f":"IFERROR(VLOOKUP(G298,site!$C:$D,2,0),\"\")","v":""}]
[null,null,null,null,null,null,null,null,null,null,null,null,null,null,null,null,null,null,null,{"$f":"IFERROR(VLOOKUP(G299,site!$C:$D,2,0),\"\")","v":""}]
[null,null,null,null,null,null,null,null,null,null,null,null,null,null,null,null,null,null,null,{"$f":"IFERROR(VLOOKUP(G300,site!$C:$D,2,0),\"\")","v":""}]
[null,null,null,null,null,null,null,null,null,null,null,null,null,null,null,null,null,null,null,{"$f":"IFERROR(VLOOKUP(G301,site!$C:$D,2,0),\"\")","v":""}]
[null,null,null,null,null,null,null,null,null,null,null,null,null,null,null,null,null,null,null,{"$f":"IFERROR(VLOOKUP(G302,site!$C:$D,2,0),\"\")","v":""}]
[null,null,null,null,null,null,null,null,null,null,null,null,null,null,null,null,null,null,null,{"$f":"IFERROR(VLOOKUP(G303,site!$C:$D,2,0),\"\")","v":""}]
[null,null,null,null,null,null,null,null,null,null,null,null,null,null,null,null,null,null,null,{"$f":"IFERROR(VLOOKUP(G304,site!$C:$D,2,0),\"\")","v":""}]
[null,null,null,null,null,null,null,null,null,null,null,null,null,null,null,null,null,null,null,{"$f":"IFERROR(VLOOKUP(G305,site!$C:$D,2,0),\"\")","v":""}]
[null,null,null,null,null,null,null,null,null,null,null,null,null,null,null,null,null,null,null,{"$f":"IFERROR(VLOOKUP(G306,site!$C:$D,2,0),\"\")","v":""}]
[null,null,null,null,null,null,null,null,null,null,null,null,null,null,null,null,null,null,null,{"$f":"IFERROR(VLOOKUP(G307,site!$C:$D,2,0),\"\")","v":""}]
[null,null,null,null,null,null,null,null,null,null,null,null,null,null,null,null,null,null,null,{"$f":"IFERROR(VLOOKUP(G308,site!$C:$D,2,0),\"\")","v":""}]
[null,null,null,null,null,null,null,null,null,null,null,null,null,null,null,null,null,null,null,{"$f":"IFERROR(VLOOKUP(G309,site!$C:$D,2,0),\"\")","v":""}]
[null,null,null,null,null,null,null,null,null,null,null,null,null,null,null,null,null,null,null,{"$f":"IFERROR(VLOOKUP(G310,site!$C:$D,2,0),\"\")","v":""}]
[null,null,null,null,null,null,null,null,null,null,null,null,null,null,null,null,null,null,null,{"$f":"IFERROR(VLOOKUP(G311,site!$C:$D,2,0),\"\")","v":""}]
[null,null,null,null,null,null,null,null,null,null,null,null,null,null,null,null,null,null,null,{"$f":"IFERROR(VLOOKUP(G312,site!$C:$D,2,0),\"\")","v":""}]
[null,null,null,null,null,null,null,null,null,null,null,null,null,null,null,null,null,null,null,{"$f":"IFERROR(VLOOKUP(G313,site!$C:$D,2,0),\"\")","v":""}]
[null,null,null,null,null,null,null,null,null,null,null,null,null,null,null,null,null,null,null,{"$f":"IFERROR(VLOOKUP(G314,site!$C:$D,2,0),\"\")","v":""}]
[null,null,null,null,null,null,null,null,null,null,null,null,null,null,null,null,null,null,null,{"$f":"IFERROR(VLOOKUP(G315,site!$C:$D,2,0),\"\")","v":""}]
[null,null,null,null,null,null,null,null,null,null,null,null,null,null,null,null,null,null,null,{"$f":"IFERROR(VLOOKUP(G316,site!$C:$D,2,0),\"\")","v":""}]
[null,null,null,null,null,null,null,null,null,null,null,null,null,null,null,null,null,null,null,{"$f":"IFERROR(VLOOKUP(G317,site!$C:$D,2,0),\"\")","v":""}]
[null,null,null,null,null,null,null,null,null,null,null,null,null,null,null,null,null,null,null,{"$f":"IFERROR(VLOOKUP(G318,site!$C:$D,2,0),\"\")","v":""}]
[null,null,null,null,null,null,null,null,null,null,null,null,null,null,null,null,null,null,null,{"$f":"IFERROR(VLOOKUP(G319,site!$C:$D,2,0),\"\")","v":""}]
[null,null,null,null,null,null,null,null,null,null,null,null,null,null,null,null,null,null,null,{"$f":"IFERROR(VLOOKUP(G320,site!$C:$D,2,0),\"\")","v":""}]
[null,null,null,null,null,null,null,null,null,null,null,null,null,null,null,null,null,null,null,{"$f":"IFERROR(VLOOKUP(G321,site!$C:$D,2,0),\"\")","v":""}]
[null,null,null,null,null,null,null,null,null,null,null,null,null,null,null,null,null,null,null,{"$f":"IFERROR(VLOOKUP(G322,site!$C:$D,2,0),\"\")","v":""}]
[null,null,null,null,null,null,null,null,null,null,null,null,null,null,null,null,null,null,null,{"$f":"IFERROR(VLOOKUP(G323,site!$C:$D,2,0),\"\")","v":""}]
[null,null,null,null,null,null,null,null,null,null,null,null,null,null,null,null,null,null,null,{"$f":"IFERROR(VLOOKUP(G324,site!$C:$D,2,0),\"\")","v":""}]
[null,null,null,null,null,null,null,null,null,null,null,null,null,null,null,null,null,null,null,{"$f":"IFERROR(VLOOKUP(G325,site!$C:$D,2,0),\"\")","v":""}]
[null,null,null,null,null,null,null,null,null,null,null,null,null,null,null,null,null,null,null,{"$f":"IFERROR(VLOOKUP(G326,site!$C:$D,2,0),\"\")","v":""}]
[null,null,null,null,null,null,null,null,null,null,null,null,null,null,null,null,null,null,null,{"$f":"IFERROR(VLOOKUP(G327,site!$C:$D,2,0),\"\")","v":""}]
[null,null,null,null,null,null,null,null,null,null,null,null,null,null,null,null,null,null,null,{"$f":"IFERROR(VLOOKUP(G328,site!$C:$D,2,0),\"\")","v":""}]
[null,null,null,null,null,null,null,null,null,null,null,null,null,null,null,null,null,null,null,{"$f":"IFERROR(VLOOKUP(G329,site!$C:$D,2,0),\"\")","v":""}]
[null,null,null,null,null,null,null,null,null,null,null,null,null,null,null,null,null,null,null,{"$f":"IFERROR(VLOOKUP(G330,site!$C:$D,2,0),\"\")","v":""}]
[null,null,null,null,null,null,null,null,null,null,null,null,null,null,null,null,null,null,null,{"$f":"IFERROR(VLOOKUP(G331,site!$C:$D,2,0),\"\")","v":""}]
[null,null,null,null,null,null,null,null,null,null,null,null,null,null,null,null,null,null,null,{"$f":"IFERROR(VLOOKUP(G332,site!$C:$D,2,0),\"\")","v":""}]
[null,null,null,null,null,null,null,null,null,null,null,null,null,null,null,null,null,null,null,{"$f":"IFERROR(VLOOKUP(G333,site!$C:$D,2,0),\"\")","v":""}]
[null,null,null,null,null,null,null,null,null,null,null,null,null,null,null,null,null,null,null,{"$f":"IFERROR(VLOOKUP(G334,site!$C:$D,2,0),\"\")","v":""}]
[null,null,null,null,null,null,null,null,null,null,null,null,null,null,null,null,null,null,null,{"$f":"IFERROR(VLOOKUP(G335,site!$C:$D,2,0),\"\")","v":""}]
[null,null,null,null,null,null,null,null,null,null,null,null,null,null,null,null,null,null,null,{"$f":"IFERROR(VLOOKUP(G336,site!$C:$D,2,0),\"\")","v":""}]
[null,null,null,null,null,null,null,null,null,null,null,null,null,null,null,null,null,null,null,{"$f":"IFERROR(VLOOKUP(G337,site!$C:$D,2,0),\"\")","v":""}]
[null,null,null,null,null,null,null,null,null,null,null,null,null,null,null,null,null,null,null,{"$f":"IFERROR(VLOOKUP(G338,site!$C:$D,2,0),\"\")","v":""}]
[null,null,null,null,null,null,null,null,null,null,null,null,null,null,null,null,null,null,null,{"$f":"IFERROR(VLOOKUP(G339,site!$C:$D,2,0),\"\")","v":""}]
[null,null,null,null,null,null,null,null,null,null,null,null,null,null,null,null,null,null,null,{"$f":"IFERROR(VLOOKUP(G340,site!$C:$D,2,0),\"\")","v":""}]
[null,null,null,null,null,null,null,null,null,null,null,null,null,null,null,null,null,null,null,{"$f":"IFERROR(VLOOKUP(G341,site!$C:$D,2,0),\"\")","v":""}]
[null,null,null,null,null,null,null,null,null,null,null,null,null,null,null,null,null,null,null,{"$f":"IFERROR(VLOOKUP(G342,site!$C:$D,2,0),\"\")","v":""}]
[null,null,null,null,null,null,null,null,null,null,null,null,null,null,null,null,null,null,null,{"$f":"IFERROR(VLOOKUP(G343,site!$C:$D,2,0),\"\")","v":""}]
[null,null,null,null,null,null,null,null,null,null,null,null,null,null,null,null,null,null,null,{"$f":"IFERROR(VLOOKUP(G344,site!$C:$D,2,0),\"\")","v":""}]
[null,null,null,null,null,null,null,null,null,null,null,null,null,null,null,null,null,null,null,{"$f":"IFERROR(VLOOKUP(G345,site!$C:$D,2,0),\"\")","v":""}]
[null,null,null,null,null,null,null,null,null,null,null,null,null,null,null,null,null,null,null,{"$f":"IFERROR(VLOOKUP(G346,site!$C:$D,2,0),\"\")","v":""}]
[null,null,null,null,null,null,null,null,null,null,null,null,null,null,null,null,null,null,null,{"$f":"IFERROR(VLOOKUP(G347,site!$C:$D,2,0),\"\")","v":""}]
[null,null,null,null,null,null,null,null,null,null,null,null,null,null,null,null,null,null,null,{"$f":"IFERROR(VLOOKUP(G348,site!$C:$D,2,0),\"\")","v":""}]
[null,null,null,null,null,null,null,null,null,null,null,null,null,null,null,null,null,null,null,{"$f":"IFERROR(VLOOKUP(G349,site!$C:$D,2,0),\"\")","v":""}]
[null,null,null,null,null,null,null,null,null,null,null,null,null,null,null,null,null,null,null,{"$f":"IFERROR(VLOOKUP(G350,site!$C:$D,2,0),\"\")","v":""}]
[null,null,null,null,null,null,null,null,null,null,null,null,null,null,null,null,null,null,null,{"$f":"IFERROR(VLOOKUP(G351,site!$C:$D,2,0),\"\")","v":""}]
[null,null,null,null,null,null,null,null,null,null,null,null,null,null,null,null,null,null,null,{"$f":"IFERROR(VLOOKUP(G352,site!$C:$D,2,0),\"\")","v":""}]
[null,null,null,null,null,null,null,null,null,null,null,null,null,null,null,null,null,null,null,{"$f":"IFERROR(VLOOKUP(G353,site!$C:$D,2,0),\"\")","v":""}]
[null,null,null,null,null,null,null,null,null,null,null,null,null,null,null,null,null,null,null,{"$f":"IFERROR(VLOOKUP(G354,site!$C:$D,2,0),\"\")","v":""}]
[null,null,null,null,null,null,null,null,null,null,null,null,null,null,null,null,null,null,null,{"$f":"IFERROR(VLOOKUP(G355,site!$C:$D,2,0),\"\")","v":""}]
[null,null,null,null,null,null,null,null,null,null,null,null,null,null,null,null,null,null,null,{"$f":"IFERROR(VLOOKUP(G356,site!$C:$D,2,0),\"\")","v":""}]
[null,null,null,null,null,null,null,null,null,null,null,null,null,null,null,null,null,null,null,{"$f":"IFERROR(VLOOKUP(G357,site!$C:$D,2,0),\"\")","v":""}]
[null,null,null,null,null,null,null,null,null,null,null,null,null,null,null,null,null,null,null,{"$f":"IFERROR(VLOOKUP(G358,site!$C:$D,2,0),\"\")","v":""}]
[null,null,null,null,null,null,null,null,null,null,null,null,null,null,null,null,null,null,null,{"$f":"IFERROR(VLOOKUP(G359,site!$C:$D,2,0),\"\")","v":""}]
[null,null,null,null,null,null,null,null,null,null,null,null,null,null,null,null,null,null,null,{"$f":"IFERROR(VLOOKUP(G360,site!$C:$D,2,0),\"\")","v":""}]
[null,null,null,null,null,null,null,null,null,null,null,null,null,null,null,null,null,null,null,{"$f":"IFERROR(VLOOKUP(G361,site!$C:$D,2,0),\"\")","v":""}]
[null,null,null,null,null,null,null,null,null,null,null,null,null,null,null,null,null,null,null,{"$f":"IFERROR(VLOOKUP(G362,site!$C:$D,2,0),\"\")","v":""}]
[null,null,null,null,null,null,null,null,null,null,null,null,null,null,null,null,null,null,null,{"$f":"IFERROR(VLOOKUP(G363,site!$C:$D,2,0),\"\")","v":""}]
[null,null,null,null,null,null,null,null,null,null,null,null,null,null,null,null,null,null,null,{"$f":"IFERROR(VLOOKUP(G364,site!$C:$D,2,0),\"\")","v":""}]
[null,null,null,null,null,null,null,null,null,null,null,null,null,null,null,null,null,null,null,{"$f":"IFERROR(VLOOKUP(G365,site!$C:$D,2,0),\"\")","v":""}]
[null,null,null,null,null,null,null,null,null,null,null,null,null,null,null,null,null,null,null,{"$f":"IFERROR(VLOOKUP(G366,site!$C:$D,2,0),\"\")","v":""}]
[null,null,null,null,null,null,null,null,null,null,null,null,null,null,null,null,null,null,null,{"$f":"IFERROR(VLOOKUP(G367,site!$C:$D,2,0),\"\")","v":""}]
[null,null,null,null,null,null,null,null,null,null,null,null,null,null,null,null,null,null,null,{"$f":"IFERROR(VLOOKUP(G368,site!$C:$D,2,0),\"\")","v":""}]
[null,null,null,null,null,null,null,null,null,null,null,null,null,null,null,null,null,null,null,{"$f":"IFERROR(VLOOKUP(G369,site!$C:$D,2,0),\"\")","v":""}]
[null,null,null,null,null,null,null,null,null,null,null,null,null,null,null,null,null,null,null,{"$f":"IFERROR(VLOOKUP(G370,site!$C:$D,2,0),\"\")","v":""}]
[null,null,null,null,null,null,null,null,null,null,null,null,null,null,null,null,null,null,null,{"$f":"IFERROR(VLOOKUP(G371,site!$C:$D,2,0),\"\")","v":""}]
[null,null,null,null,null,null,null,null,null,null,null,null,null,null,null,null,null,null,null,{"$f":"IFERROR(VLOOKUP(G372,site!$C:$D,2,0),\"\")","v":""}]
[null,null,null,null,null,null,null,null,null,null,null,null,null,null,null,null,null,null,null,{"$f":"IFERROR(VLOOKUP(G373,site!$C:$D,2,0),\"\")","v":""}]
[null,null,null,null,null,null,null,null,null,null,null,null,null,null,null,null,null,null,null,{"$f":"IFERROR(VLOOKUP(G374,site!$C:$D,2,0),\"\")","v":""}]
[null,null,null,null,null,null,null,null,null,null,null,null,null,null,null,null,null,null,null,{"$f":"IFERROR(VLOOKUP(G375,site!$C:$D,2,0),\"\")","v":""}]
[null,null,null,null,null,null,null,null,null,null,null,null,null,null,null,null,null,null,null,{"$f":"IFERROR(VLOOKUP(G376,site!$C:$D,2,0),\"\")","v":""}]
[null,null,null,null,null,null,null,null,null,null,null,null,null,null,null,null,null,null,null,{"$f":"IFERROR(VLOOKUP(G377,site!$C:$D,2,0),\"\")","v":""}]
[null,null,null,null,null,null,null,null,null,null,null,null,null,null,null,null,null,null,null,{"$f":"IFERROR(VLOOKUP(G378,site!$C:$D,2,0),\"\")","v":""}]
[null,null,null,null,null,null,null,null,null,null,null,null,null,null,null,null,null,null,null,{"$f":"IFERROR(VLOOKUP(G379,site!$C:$D,2,0),\"\")","v":""}]
[null,null,null,null,null,null,null,null,null,null,null,null,null,null,null,null,null,null,null,{"$f":"IFERROR(VLOOKUP(G380,site!$C:$D,2,0),\"\")","v":""}]
[null,null,null,null,null,null,null,null,null,null,null,null,null,null,null,null,null,null,null,{"$f":"IFERROR(VLOOKUP(G381,site!$C:$D,2,0),\"\")","v":""}]
[null,null,null,null,null,null,null,null,null,null,null,null,null,null,null,null,null,null,null,{"$f":"IFERROR(VLOOKUP(G382,site!$C:$D,2,0),\"\")","v":""}]
[null,null,null,null,null,null,null,null,null,null,null,null,null,null,null,null,null,null,null,{"$f":"IFERROR(VLOOKUP(G383,site!$C:$D,2,0),\"\")","v":""}]
[null,null,null,null,null,null,null,null,null,null,null,null,null,null,null,null,null,null,null,{"$f":"IFERROR(VLOOKUP(G384,site!$C:$D,2,0),\"\")","v":""}]
[null,null,null,null,null,null,null,null,null,null,null,null,null,null,null,null,null,null,null,{"$f":"IFERROR(VLOOKUP(G385,site!$C:$D,2,0),\"\")","v":""}]
[null,null,null,null,null,null,null,null,null,null,null,null,null,null,null,null,null,null,null,{"$f":"IFERROR(VLOOKUP(G386,site!$C:$D,2,0),\"\")","v":""}]
[null,null,null,null,null,null,null,null,null,null,null,null,null,null,null,null,null,null,null,{"$f":"IFERROR(VLOOKUP(G387,site!$C:$D,2,0),\"\")","v":""}]
[null,null,null,null,null,null,null,null,null,null,null,null,null,null,null,null,null,null,null,{"$f":"IFERROR(VLOOKUP(G388,site!$C:$D,2,0),\"\")","v":""}]
[null,null,null,null,null,null,null,null,null,null,null,null,null,null,null,null,null,null,null,{"$f":"IFERROR(VLOOKUP(G389,site!$C:$D,2,0),\"\")","v":""}]
[null,null,null,null,null,null,null,null,null,null,null,null,null,null,null,null,null,null,null,{"$f":"IFERROR(VLOOKUP(G390,site!$C:$D,2,0),\"\")","v":""}]
[null,null,null,null,null,null,null,null,null,null,null,null,null,null,null,null,null,null,null,{"$f":"IFERROR(VLOOKUP(G391,site!$C:$D,2,0),\"\")","v":""}]
[null,null,null,null,null,null,null,null,null,null,null,null,null,null,null,null,null,null,null,{"$f":"IFERROR(VLOOKUP(G392,site!$C:$D,2,0),\"\")","v":""}]
[null,null,null,null,null,null,null,null,null,null,null,null,null,null,null,null,null,null,null,{"$f":"IFERROR(VLOOKUP(G393,site!$C:$D,2,0),\"\")","v":""}]
[null,null,null,null,null,null,null,null,null,null,null,null,null,null,null,null,null,null,null,{"$f":"IFERROR(VLOOKUP(G394,site!$C:$D,2,0),\"\")","v":""}]
[null,null,null,null,null,null,null,null,null,null,null,null,null,null,null,null,null,null,null,{"$f":"IFERROR(VLOOKUP(G395,site!$C:$D,2,0),\"\")","v":""}]
[null,null,null,null,null,null,null,null,null,null,null,null,null,null,null,null,null,null,null,{"$f":"IFERROR(VLOOKUP(G396,site!$C:$D,2,0),\"\")","v":""}]
[null,null,null,null,null,null,null,null,null,null,null,null,null,null,null,null,null,null,null,{"$f":"IFERROR(VLOOKUP(G397,site!$C:$D,2,0),\"\")","v":""}]
[null,null,null,null,null,null,null,null,null,null,null,null,null,null,null,null,null,null,null,{"$f":"IFERROR(VLOOKUP(G398,site!$C:$D,2,0),\"\")","v":""}]
[null,null,null,null,null,null,null,null,null,null,null,null,null,null,null,null,null,null,null,{"$f":"IFERROR(VLOOKUP(G399,site!$C:$D,2,0),\"\")","v":""}]
[null,null,null,null,null,null,null,null,null,null,null,null,null,null,null,null,null,null,null,{"$f":"IFERROR(VLOOKUP(G400,site!$C:$D,2,0),\"\")","v":""}]
[null,null,null,null,null,null,null,null,null,null,null,null,null,null,null,null,null,null,null,{"$f":"IFERROR(VLOOKUP(G401,site!$C:$D,2,0),\"\")","v":""}]
[null,null,null,null,null,null,null,null,null,null,null,null,null,null,null,null,null,null,null,{"$f":"IFERROR(VLOOKUP(G402,site!$C:$D,2,0),\"\")","v":""}]
[null,null,null,null,null,null,null,null,null,null,null,null,null,null,null,null,null,null,null,{"$f":"IFERROR(VLOOKUP(G403,site!$C:$D,2,0),\"\")","v":""}]
[null,null,null,null,null,null,null,null,null,null,null,null,null,null,null,null,null,null,null,{"$f":"IFERROR(VLOOKUP(G404,site!$C:$D,2,0),\"\")","v":""}]
[null,null,null,null,null,null,null,null,null,null,null,null,null,null,null,null,null,null,null,{"$f":"IFERROR(VLOOKUP(G405,site!$C:$D,2,0),\"\")","v":""}]
[null,null,null,null,null,null,null,null,null,null,null,null,null,null,null,null,null,null,null,{"$f":"IFERROR(VLOOKUP(G406,site!$C:$D,2,0),\"\")","v":""}]
[null,null,null,null,null,null,null,null,null,null,null,null,null,null,null,null,null,null,null,{"$f":"IFERROR(VLOOKUP(G407,site!$C:$D,2,0),\"\")","v":""}]
[null,null,null,null,null,null,null,null,null,null,null,null,null,null,null,null,null,null,null,{"$f":"IFERROR(VLOOKUP(G408,site!$C:$D,2,0),\"\")","v":""}]
[null,null,null,null,null,null,null,null,null,null,null,null,null,null,null,null,null,null,null,{"$f":"IFERROR(VLOOKUP(G409,site!$C:$D,2,0),\"\")","v":""}]
[null,null,null,null,null,null,null,null,null,null,null,null,null,null,null,null,null,null,null,{"$f":"IFERROR(VLOOKUP(G410,site!$C:$D,2,0),\"\")","v":""}]
[null,null,null,null,null,null,null,null,null,null,null,null,null,null,null,null,null,null,null,{"$f":"IFERROR(VLOOKUP(G411,site!$C:$D,2,0),\"\")","v":""}]
[null,null,null,null,null,null,null,null,null,null,null,null,null,null,null,null,null,null,null,{"$f":"IFERROR(VLOOKUP(G412,site!$C:$D,2,0),\"\")","v":""}]
[null,null,null,null,null,null,null,null,null,null,null,null,null,null,null,null,null,null,null,{"$f":"IFERROR(VLOOKUP(G413,site!$C:$D,2,0),\"\")","v":""}]
[null,null,null,null,null,null,null,null,null,null,null,null,null,null,null,null,null,null,null,{"$f":"IFERROR(VLOOKUP(G414,site!$C:$D,2,0),\"\")","v":""}]
[null,null,null,null,null,null,null,null,null,null,null,null,null,null,null,null,null,null,null,{"$f":"IFERROR(VLOOKUP(G415,site!$C:$D,2,0),\"\")","v":""}]
[null,null,null,null,null,null,null,null,null,null,null,null,null,null,null,null,null,null,null,{"$f":"IFERROR(VLOOKUP(G416,site!$C:$D,2,0),\"\")","v":""}]
[null,null,null,null,null,null,null,null,null,null,null,null,null,null,null,null,null,null,null,{"$f":"IFERROR(VLOOKUP(G417,site!$C:$D,2,0),\"\")","v":""}]
[null,null,null,null,null,null,null,null,null,null,null,null,null,null,null,null,null,null,null,{"$f":"IFERROR(VLOOKUP(G418,site!$C:$D,2,0),\"\")","v":""}]
[null,null,null,null,null,null,null,null,null,null,null,null,null,null,null,null,null,null,null,{"$f":"IFERROR(VLOOKUP(G419,site!$C:$D,2,0),\"\")","v":""}]
[null,null,null,null,null,null,null,null,null,null,null,null,null,null,null,null,null,null,null,{"$f":"IFERROR(VLOOKUP(G420,site!$C:$D,2,0),\"\")","v":""}]
[null,null,null,null,null,null,null,null,null,null,null,null,null,null,null,null,null,null,null,{"$f":"IFERROR(VLOOKUP(G421,site!$C:$D,2,0),\"\")","v":""}]
[null,null,null,null,null,null,null,null,null,null,null,null,null,null,null,null,null,null,null,{"$f":"IFERROR(VLOOKUP(G422,site!$C:$D,2,0),\"\")","v":""}]
[null,null,null,null,null,null,null,null,null,null,null,null,null,null,null,null,null,null,null,{"$f":"IFERROR(VLOOKUP(G423,site!$C:$D,2,0),\"\")","v":""}]
[null,null,null,null,null,null,null,null,null,null,null,null,null,null,null,null,null,null,null,{"$f":"IFERROR(VLOOKUP(G424,site!$C:$D,2,0),\"\")","v":""}]
[null,null,null,null,null,null,null,null,null,null,null,null,null,null,null,null,null,null,null,{"$f":"IFERROR(VLOOKUP(G425,site!$C:$D,2,0),\"\")","v":""}]
[null,null,null,null,null,null,null,null,null,null,null,null,null,null,null,null,null,null,null,{"$f":"IFERROR(VLOOKUP(G426,site!$C:$D,2,0),\"\")","v":""}]
[null,null,null,null,null,null,null,null,null,null,null,null,null,null,null,null,null,null,null,{"$f":"IFERROR(VLOOKUP(G427,site!$C:$D,2,0),\"\")","v":""}]
[null,null,null,null,null,null,null,null,null,null,null,null,null,null,null,null,null,null,null,{"$f":"IFERROR(VLOOKUP(G428,site!$C:$D,2,0),\"\")","v":""}]
[null,null,null,null,null,null,null,null,null,null,null,null,null,null,null,null,null,null,null,{"$f":"IFERROR(VLOOKUP(G429,site!$C:$D,2,0),\"\")","v":""}]
[null,null,null,null,null,null,null,null,null,null,null,null,null,null,null,null,null,null,null,{"$f":"IFERROR(VLOOKUP(G430,site!$C:$D,2,0),\"\")","v":""}]
[null,null,null,null,null,null,null,null,null,null,null,null,null,null,null,null,null,null,null,{"$f":"IFERROR(VLOOKUP(G431,site!$C:$D,2,0),\"\")","v":""}]
[null,null,null,null,null,null,null,null,null,null,null,null,null,null,null,null,null,null,null,{"$f":"IFERROR(VLOOKUP(G432,site!$C:$D,2,0),\"\")","v":""}]
[null,null,null,null,null,null,null,null,null,null,null,null,null,null,null,null,null,null,null,{"$f":"IFERROR(VLOOKUP(G433,site!$C:$D,2,0),\"\")","v":""}]
[null,null,null,null,null,null,null,null,null,null,null,null,null,null,null,null,null,null,null,{"$f":"IFERROR(VLOOKUP(G434,site!$C:$D,2,0),\"\")","v":""}]
[null,null,null,null,null,null,null,null,null,null,null,null,null,null,null,null,null,null,null,{"$f":"IFERROR(VLOOKUP(G435,site!$C:$D,2,0),\"\")","v":""}]
[null,null,null,null,null,null,null,null,null,null,null,null,null,null,null,null,null,null,null,{"$f":"IFERROR(VLOOKUP(G436,site!$C:$D,2,0),\"\")","v":""}]
[null,null,null,null,null,null,null,null,null,null,null,null,null,null,null,null,null,null,null,{"$f":"IFERROR(VLOOKUP(G437,site!$C:$D,2,0),\"\")","v":""}]
[null,null,null,null,null,null,null,null,null,null,null,null,null,null,null,null,null,null,null,{"$f":"IFERROR(VLOOKUP(G438,site!$C:$D,2,0),\"\")","v":""}]
[null,null,null,null,null,null,null,null,null,null,null,null,null,null,null,null,null,null,null,{"$f":"IFERROR(VLOOKUP(G439,site!$C:$D,2,0),\"\")","v":""}]
[null,null,null,null,null,null,null,null,null,null,null,null,null,null,null,null,null,null,null,{"$f":"IFERROR(VLOOKUP(G440,site!$C:$D,2,0),\"\")","v":""}]
[null,null,null,null,null,null,null,null,null,null,null,null,null,null,null,null,null,null,null,{"$f":"IFERROR(VLOOKUP(G441,site!$C:$D,2,0),\"\")","v":""}]
[null,null,null,null,null,null,null,null,null,null,null,null,null,null,null,null,null,null,null,{"$f":"IFERROR(VLOOKUP(G442,site!$C:$D,2,0),\"\")","v":""}]
[null,null,null,null,null,null,null,null,null,null,null,null,null,null,null,null,null,null,null,{"$f":"IFERROR(VLOOKUP(G443,site!$C:$D,2,0),\"\")","v":""}]
[null,null,null,null,null,null,null,null,null,null,null,null,null,null,null,null,null,null,null,{"$f":"IFERROR(VLOOKUP(G444,site!$C:$D,2,0),\"\")","v":""}]
[null,null,null,null,null,null,null,null,null,null,null,null,null,null,null,null,null,null,null,{"$f":"IFERROR(VLOOKUP(G445,site!$C:$D,2,0),\"\")","v":""}]
[null,null,null,null,null,null,null,null,null,null,null,null,null,null,null,null,null,null,null,{"$f":"IFERROR(VLOOKUP(G446,site!$C:$D,2,0),\"\")","v":""}]
[null,null,null,null,null,null,null,null,null,null,null,null,null,null,null,null,null,null,null,{"$f":"IFERROR(VLOOKUP(G447,site!$C:$D,2,0),\"\")","v":""}]
[null,null,null,null,null,null,null,null,null,null,null,null,null,null,null,null,null,null,null,{"$f":"IFERROR(VLOOKUP(G448,site!$C:$D,2,0),\"\")","v":""}]
[null,null,null,null,null,null,null,null,null,null,null,null,null,null,null,null,null,null,null,{"$f":"IFERROR(VLOOKUP(G449,site!$C:$D,2,0),\"\")","v":""}]
[null,null,null,null,null,null,null,null,null,null,null,null,null,null,null,null,null,null,null,{"$f":"IFERROR(VLOOKUP(G450,site!$C:$D,2,0),\"\")","v":""}]
[null,null,null,null,null,null,null,null,null,null,null,null,null,null,null,null,null,null,null,{"$f":"IFERROR(VLOOKUP(G451,site!$C:$D,2,0),\"\")","v":""}]
[null,null,null,null,null,null,null,null,null,null,null,null,null,null,null,null,null,null,null,{"$f":"IFERROR(VLOOKUP(G452,site!$C:$D,2,0),\"\")","v":""}]
[null,null,null,null,null,null,null,null,null,null,null,null,null,null,null,null,null,null,null,{"$f":"IFERROR(VLOOKUP(G453,site!$C:$D,2,0),\"\")","v":""}]
[null,null,null,null,null,null,null,null,null,null,null,null,null,null,null,null,null,null,null,{"$f":"IFERROR(VLOOKUP(G454,site!$C:$D,2,0),\"\")","v":""}]
[null,null,null,null,null,null,null,null,null,null,null,null,null,null,null,null,null,null,null,{"$f":"IFERROR(VLOOKUP(G455,site!$C:$D,2,0),\"\")","v":""}]
[null,null,null,null,null,null,null,null,null,null,null,null,null,null,null,null,null,null,null,{"$f":"IFERROR(VLOOKUP(G456,site!$C:$D,2,0),\"\")","v":""}]
[null,null,null,null,null,null,null,null,null,null,null,null,null,null,null,null,null,null,null,{"$f":"IFERROR(VLOOKUP(G457,site!$C:$D,2,0),\"\")","v":""}]
[null,null,null,null,null,null,null,null,null,null,null,null,null,null,null,null,null,null,null,{"$f":"IFERROR(VLOOKUP(G458,site!$C:$D,2,0),\"\")","v":""}]
[null,null,null,null,null,null,null,null,null,null,null,null,null,null,null,null,null,null,null,{"$f":"IFERROR(VLOOKUP(G459,site!$C:$D,2,0),\"\")","v":""}]
[null,null,null,null,null,null,null,null,null,null,null,null,null,null,null,null,null,null,null,{"$f":"IFERROR(VLOOKUP(G460,site!$C:$D,2,0),\"\")","v":""}]
[null,null,null,null,null,null,null,null,null,null,null,null,null,null,null,null,null,null,null,{"$f":"IFERROR(VLOOKUP(G461,site!$C:$D,2,0),\"\")","v":""}]
[null,null,null,null,null,null,null,null,null,null,null,null,null,null,null,null,null,null,null,{"$f":"IFERROR(VLOOKUP(G462,site!$C:$D,2,0),\"\")","v":""}]
[null,null,null,null,null,null,null,null,null,null,null,null,null,null,null,null,null,null,null,{"$f":"IFERROR(VLOOKUP(G463,site!$C:$D,2,0),\"\")","v":""}]
[null,null,null,null,null,null,null,null,null,null,null,null,null,null,null,null,null,null,null,{"$f":"IFERROR(VLOOKUP(G464,site!$C:$D,2,0),\"\")","v":""}]
[null,null,null,null,null,null,null,null,null,null,null,null,null,null,null,null,null,null,null,{"$f":"IFERROR(VLOOKUP(G465,site!$C:$D,2,0),\"\")","v":""}]
[null,null,null,null,null,null,null,null,null,null,null,null,null,null,null,null,null,null,null,{"$f":"IFERROR(VLOOKUP(G466,site!$C:$D,2,0),\"\")","v":""}]
[null,null,null,null,null,null,null,null,null,null,null,null,null,null,null,null,null,null,null,{"$f":"IFERROR(VLOOKUP(G467,site!$C:$D,2,0),\"\")","v":""}]
[null,null,null,null,null,null,null,null,null,null,null,null,null,null,null,null,null,null,null,{"$f":"IFERROR(VLOOKUP(G468,site!$C:$D,2,0),\"\")","v":""}]
[null,null,null,null,null,null,null,null,null,null,null,null,null,null,null,null,null,null,null,{"$f":"IFERROR(VLOOKUP(G469,site!$C:$D,2,0),\"\")","v":""}]
[null,null,null,null,null,null,null,null,null,null,null,null,null,null,null,null,null,null,null,{"$f":"IFERROR(VLOOKUP(G470,site!$C:$D,2,0),\"\")","v":""}]
[null,null,null,null,null,null,null,null,null,null,null,null,null,null,null,null,null,null,null,{"$f":"IFERROR(VLOOKUP(G471,site!$C:$D,2,0),\"\")","v":""}]
[null,null,null,null,null,null,null,null,null,null,null,null,null,null,null,null,null,null,null,{"$f":"IFERROR(VLOOKUP(G472,site!$C:$D,2,0),\"\")","v":""}]
[null,null,null,null,null,null,null,null,null,null,null,null,null,null,null,null,null,null,null,{"$f":"IFERROR(VLOOKUP(G473,site!$C:$D,2,0),\"\")","v":""}]
[null,null,null,null,null,null,null,null,null,null,null,null,null,null,null,null,null,null,null,{"$f":"IFERROR(VLOOKUP(G474,site!$C:$D,2,0),\"\")","v":""}]
[null,null,null,null,null,null,null,null,null,null,null,null,null,null,null,null,null,null,null,{"$f":"IFERROR(VLOOKUP(G475,site!$C:$D,2,0),\"\")","v":""}]
[null,null,null,null,null,null,null,null,null,null,null,null,null,null,null,null,null,null,null,{"$f":"IFERROR(VLOOKUP(G476,site!$C:$D,2,0),\"\")","v":""}]
[null,null,null,null,null,null,null,null,null,null,null,null,null,null,null,null,null,null,null,{"$f":"IFERROR(VLOOKUP(G477,site!$C:$D,2,0),\"\")","v":""}]
[null,null,null,null,null,null,null,null,null,null,null,null,null,null,null,null,null,null,null,{"$f":"IFERROR(VLOOKUP(G478,site!$C:$D,2,0),\"\")","v":""}]
[null,null,null,null,null,null,null,null,null,null,null,null,null,null,null,null,null,null,null,{"$f":"IFERROR(VLOOKUP(G479,site!$C:$D,2,0),\"\")","v":""}]
[null,null,null,null,null,null,null,null,null,null,null,null,null,null,null,null,null,null,null,{"$f":"IFERROR(VLOOKUP(G480,site!$C:$D,2,0),\"\")","v":""}]
[null,null,null,null,null,null,null,null,null,null,null,null,null,null,null,null,null,null,null,{"$f":"IFERROR(VLOOKUP(G481,site!$C:$D,2,0),\"\")","v":""}]
[null,null,null,null,null,null,null,null,null,null,null,null,null,null,null,null,null,null,null,{"$f":"IFERROR(VLOOKUP(G482,site!$C:$D,2,0),\"\")","v":""}]
[null,null,null,null,null,null,null,null,null,null,null,null,null,null,null,null,null,null,null,{"$f":"IFERROR(VLOOKUP(G483,site!$C:$D,2,0),\"\")","v":""}]
[null,null,null,null,null,null,null,null,null,null,null,null,null,null,null,null,null,null,null,{"$f":"IFERROR(VLOOKUP(G484,site!$C:$D,2,0),\"\")","v":""}]
[null,null,null,null,null,null,null,null,null,null,null,null,null,null,null,null,null,null,null,{"$f":"IFERROR(VLOOKUP(G485,site!$C:$D,2,0),\"\")","v":""}]
[null,null,null,null,null,null,null,null,null,null,null,null,null,null,null,null,null,null,null,{"$f":"IFERROR(VLOOKUP(G486,site!$C:$D,2,0),\"\")","v":""}]
[null,null,null,null,null,null,null,null,null,null,null,null,null,null,null,null,null,null,null,{"$f":"IFERROR(VLOOKUP(G487,site!$C:$D,2,0),\"\")","v":""}]
[null,null,null,null,null,null,null,null,null,null,null,null,null,null,null,null,null,null,null,{"$f":"IFERROR(VLOOKUP(G488,site!$C:$D,2,0),\"\")","v":""}]
[null,null,null,null,null,null,null,null,null,null,null,null,null,null,null,null,null,null,null,{"$f":"IFERROR(VLOOKUP(G489,site!$C:$D,2,0),\"\")","v":""}]
[null,null,null,null,null,null,null,null,null,null,null,null,null,null,null,null,null,null,null,{"$f":"IFERROR(VLOOKUP(G490,site!$C:$D,2,0),\"\")","v":""}]
[null,null,null,null,null,null,null,null,null,null,null,null,null,null,null,null,null,null,null,{"$f":"IFERROR(VLOOKUP(G491,site!$C:$D,2,0),\"\")","v":""}]
[null,null,null,null,null,null,null,null,null,null,null,null,null,null,null,null,null,null,null,{"$f":"IFERROR(VLOOKUP(G492,site!$C:$D,2,0),\"\")","v":""}]
[null,null,null,null,null,null,null,null,null,null,null,null,null,null,null,null,null,null,null,{"$f":"IFERROR(VLOOKUP(G493,site!$C:$D,2,0),\"\")","v":""}]
[null,null,null,null,null,null,null,null,null,null,null,null,null,null,null,null,null,null,null,{"$f":"IFERROR(VLOOKUP(G494,site!$C:$D,2,0),\"\")","v":""}]
[null,null,null,null,null,null,null,null,null,null,null,null,null,null,null,null,null,null,null,{"$f":"IFERROR(VLOOKUP(G495,site!$C:$D,2,0),\"\")","v":""}]
[null,null,null,null,null,null,null,null,null,null,null,null,null,null,null,null,null,null,null,{"$f":"IFERROR(VLOOKUP(G496,site!$C:$D,2,0),\"\")","v":""}]
[null,null,null,null,null,null,null,null,null,null,null,null,null,null,null,null,null,null,null,{"$f":"IFERROR(VLOOKUP(G497,site!$C:$D,2,0),\"\")","v":""}]
[null,null,null,null,null,null,null,null,null,null,null,null,null,null,null,null,null,null,null,{"$f":"IFERROR(VLOOKUP(G498,site!$C:$D,2,0),\"\")","v":""}]
[null,null,null,null,null,null,null,null,null,null,null,null,null,null,null,null,null,null,null,{"$f":"IFERROR(VLOOKUP(G499,site!$C:$D,2,0),\"\")","v":""}]
[null,null,null,null,null,null,null,null,null,null,null,null,null,null,null,null,null,null,null,{"$f":"IFERROR(VLOOKUP(G500,site!$C:$D,2,0),\"\")","v":""}]
[null,null,null,null,null,null,null,null,null,null,null,null,null,null,null,null,null,null,null,{"$f":"IFERROR(VLOOKUP(G501,site!$C:$D,2,0),\"\")","v":""}]
[null,null,null,null,null,null,null,null,null,null,null,null,null,null,null,null,null,null,null,{"$f":"IFERROR(VLOOKUP(G502,site!$C:$D,2,0),\"\")","v":""}]
[null,null,null,null,null,null,null,null,null,null,null,null,null,null,null,null,null,null,null,{"$f":"IFERROR(VLOOKUP(G503,site!$C:$D,2,0),\"\")","v":""}]
[null,null,null,null,null,null,null,null,null,null,null,null,null,null,null,null,null,null,null,{"$f":"IFERROR(VLOOKUP(G504,site!$C:$D,2,0),\"\")","v":""}]
[null,null,null,null,null,null,null,null,null,null,null,null,null,null,null,null,null,null,null,{"$f":"IFERROR(VLOOKUP(G505,site!$C:$D,2,0),\"\")","v":""}]
[null,null,null,null,null,null,null,null,null,null,null,null,null,null,null,null,null,null,null,{"$f":"IFERROR(VLOOKUP(G506,site!$C:$D,2,0),\"\")","v":""}]
[null,null,null,null,null,null,null,null,null,null,null,null,null,null,null,null,null,null,null,{"$f":"IFERROR(VLOOKUP(G507,site!$C:$D,2,0),\"\")","v":""}]
[null,null,null,null,null,null,null,null,null,null,null,null,null,null,null,null,null,null,null,{"$f":"IFERROR(VLOOKUP(G508,site!$C:$D,2,0),\"\")","v":""}]
[null,null,null,null,null,null,null,null,null,null,null,null,null,null,null,null,null,null,null,{"$f":"IFERROR(VLOOKUP(G509,site!$C:$D,2,0),\"\")","v":""}]
[null,null,null,null,null,null,null,null,null,null,null,null,null,null,null,null,null,null,null,{"$f":"IFERROR(VLOOKUP(G510,site!$C:$D,2,0),\"\")","v":""}]
[null,null,null,null,null,null,null,null,null,null,null,null,null,null,null,null,null,null,null,{"$f":"IFERROR(VLOOKUP(G511,site!$C:$D,2,0),\"\")","v":""}]
[null,null,null,null,null,null,null,null,null,null,null,null,null,null,null,null,null,null,null,{"$f":"IFERROR(VLOOKUP(G512,site!$C:$D,2,0),\"\")","v":""}]
[null,null,null,null,null,null,null,null,null,null,null,null,null,null,null,null,null,null,null,{"$f":"IFERROR(VLOOKUP(G513,site!$C:$D,2,0),\"\")","v":""}]
[null,null,null,null,null,null,null,null,null,null,null,null,null,null,null,null,null,null,null,{"$f":"IFERROR(VLOOKUP(G514,site!$C:$D,2,0),\"\")","v":""}]
[null,null,null,null,null,null,null,null,null,null,null,null,null,null,null,null,null,null,null,{"$f":"IFERROR(VLOOKUP(G515,site!$C:$D,2,0),\"\")","v":""}]
[null,null,null,null,null,null,null,null,null,null,null,null,null,null,null,null,null,null,null,{"$f":"IFERROR(VLOOKUP(G516,site!$C:$D,2,0),\"\")","v":""}]
[null,null,null,null,null,null,null,null,null,null,null,null,null,null,null,null,null,null,null,{"$f":"IFERROR(VLOOKUP(G517,site!$C:$D,2,0),\"\")","v":""}]
[null,null,null,null,null,null,null,null,null,null,null,null,null,null,null,null,null,null,null,{"$f":"IFERROR(VLOOKUP(G518,site!$C:$D,2,0),\"\")","v":""}]
[null,null,null,null,null,null,null,null,null,null,null,null,null,null,null,null,null,null,null,{"$f":"IFERROR(VLOOKUP(G519,site!$C:$D,2,0),\"\")","v":""}]
[null,null,null,null,null,null,null,null,null,null,null,null,null,null,null,null,null,null,null,{"$f":"IFERROR(VLOOKUP(G520,site!$C:$D,2,0),\"\")","v":""}]
[null,null,null,null,null,null,null,null,null,null,null,null,null,null,null,null,null,null,null,{"$f":"IFERROR(VLOOKUP(G521,site!$C:$D,2,0),\"\")","v":""}]
[null,null,null,null,null,null,null,null,null,null,null,null,null,null,null,null,null,null,null,{"$f":"IFERROR(VLOOKUP(G522,site!$C:$D,2,0),\"\")","v":""}]
[null,null,null,null,null,null,null,null,null,null,null,null,null,null,null,null,null,null,null,{"$f":"IFERROR(VLOOKUP(G523,site!$C:$D,2,0),\"\")","v":""}]
[null,null,null,null,null,null,null,null,null,null,null,null,null,null,null,null,null,null,null,{"$f":"IFERROR(VLOOKUP(G524,site!$C:$D,2,0),\"\")","v":""}]
[null,null,null,null,null,null,null,null,null,null,null,null,null,null,null,null,null,null,null,{"$f":"IFERROR(VLOOKUP(G525,site!$C:$D,2,0),\"\")","v":""}]
[null,null,null,null,null,null,null,null,null,null,null,null,null,null,null,null,null,null,null,{"$f":"IFERROR(VLOOKUP(G526,site!$C:$D,2,0),\"\")","v":""}]
[null,null,null,null,null,null,null,null,null,null,null,null,null,null,null,null,null,null,null,{"$f":"IFERROR(VLOOKUP(G527,site!$C:$D,2,0),\"\")","v":""}]
[null,null,null,null,null,null,null,null,null,null,null,null,null,null,null,null,null,null,null,{"$f":"IFERROR(VLOOKUP(G528,site!$C:$D,2,0),\"\")","v":""}]
[null,null,null,null,null,null,null,null,null,null,null,null,null,null,null,null,null,null,null,{"$f":"IFERROR(VLOOKUP(G529,site!$C:$D,2,0),\"\")","v":""}]
[null,null,null,null,null,null,null,null,null,null,null,null,null,null,null,null,null,null,null,{"$f":"IFERROR(VLOOKUP(G530,site!$C:$D,2,0),\"\")","v":""}]
[null,null,null,null,null,null,null,null,null,null,null,null,null,null,null,null,null,null,null,{"$f":"IFERROR(VLOOKUP(G531,site!$C:$D,2,0),\"\")","v":""}]
[null,null,null,null,null,null,null,null,null,null,null,null,null,null,null,null,null,null,null,{"$f":"IFERROR(VLOOKUP(G532,site!$C:$D,2,0),\"\")","v":""}]
[null,null,null,null,null,null,null,null,null,null,null,null,null,null,null,null,null,null,null,{"$f":"IFERROR(VLOOKUP(G533,site!$C:$D,2,0),\"\")","v":""}]
[null,null,null,null,null,null,null,null,null,null,null,null,null,null,null,null,null,null,null,{"$f":"IFERROR(VLOOKUP(G534,site!$C:$D,2,0),\"\")","v":""}]
[null,null,null,null,null,null,null,null,null,null,null,null,null,null,null,null,null,null,null,{"$f":"IFERROR(VLOOKUP(G535,site!$C:$D,2,0),\"\")","v":""}]
[null,null,null,null,null,null,null,null,null,null,null,null,null,null,null,null,null,null,null,{"$f":"IFERROR(VLOOKUP(G536,site!$C:$D,2,0),\"\")","v":""}]
[null,null,null,null,null,null,null,null,null,null,null,null,null,null,null,null,null,null,null,{"$f":"IFERROR(VLOOKUP(G537,site!$C:$D,2,0),\"\")","v":""}]
[null,null,null,null,null,null,null,null,null,null,null,null,null,null,null,null,null,null,null,{"$f":"IFERROR(VLOOKUP(G538,site!$C:$D,2,0),\"\")","v":""}]
[null,null,null,null,null,null,null,null,null,null,null,null,null,null,null,null,null,null,null,{"$f":"IFERROR(VLOOKUP(G539,site!$C:$D,2,0),\"\")","v":""}]
[null,null,null,null,null,null,null,null,null,null,null,null,null,null,null,null,null,null,null,{"$f":"IFERROR(VLOOKUP(G540,site!$C:$D,2,0),\"\")","v":""}]
[null,null,null,null,null,null,null,null,null,null,null,null,null,null,null,null,null,null,null,{"$f":"IFERROR(VLOOKUP(G541,site!$C:$D,2,0),\"\")","v":""}]
[null,null,null,null,null,null,null,null,null,null,null,null,null,null,null,null,null,null,null,{"$f":"IFERROR(VLOOKUP(G542,site!$C:$D,2,0),\"\")","v":""}]
[null,null,null,null,null,null,null,null,null,null,null,null,null,null,null,null,null,null,null,{"$f":"IFERROR(VLOOKUP(G543,site!$C:$D,2,0),\"\")","v":""}]
[null,null,null,null,null,null,null,null,null,null,null,null,null,null,null,null,null,null,null,{"$f":"IFERROR(VLOOKUP(G544,site!$C:$D,2,0),\"\")","v":""}]
[null,null,null,null,null,null,null,null,null,null,null,null,null,null,null,null,null,null,null,{"$f":"IFERROR(VLOOKUP(G545,site!$C:$D,2,0),\"\")","v":""}]
[null,null,null,null,null,null,null,null,null,null,null,null,null,null,null,null,null,null,null,{"$f":"IFERROR(VLOOKUP(G546,site!$C:$D,2,0),\"\")","v":""}]
[null,null,null,null,null,null,null,null,null,null,null,null,null,null,null,null,null,null,null,{"$f":"IFERROR(VLOOKUP(G547,site!$C:$D,2,0),\"\")","v":""}]
[null,null,null,null,null,null,null,null,null,null,null,null,null,null,null,null,null,null,null,{"$f":"IFERROR(VLOOKUP(G548,site!$C:$D,2,0),\"\")","v":""}]
[null,null,null,null,null,null,null,null,null,null,null,null,null,null,null,null,null,null,null,{"$f":"IFERROR(VLOOKUP(G549,site!$C:$D,2,0),\"\")","v":""}]
[null,null,null,null,null,null,null,null,null,null,null,null,null,null,null,null,null,null,null,{"$f":"IFERROR(VLOOKUP(G550,site!$C:$D,2,0),\"\")","v":""}]
[null,null,null,null,null,null,null,null,null,null,null,null,null,null,null,null,null,null,null,{"$f":"IFERROR(VLOOKUP(G551,site!$C:$D,2,0),\"\")","v":""}]
[null,null,null,null,null,null,null,null,null,null,null,null,null,null,null,null,null,null,null,{"$f":"IFERROR(VLOOKUP(G552,site!$C:$D,2,0),\"\")","v":""}]
[null,null,null,null,null,null,null,null,null,null,null,null,null,null,null,null,null,null,null,{"$f":"IFERROR(VLOOKUP(G553,site!$C:$D,2,0),\"\")","v":""}]
[null,null,null,null,null,null,null,null,null,null,null,null,null,null,null,null,null,null,null,{"$f":"IFERROR(VLOOKUP(G554,site!$C:$D,2,0),\"\")","v":""}]
[null,null,null,null,null,null,null,null,null,null,null,null,null,null,null,null,null,null,null,{"$f":"IFERROR(VLOOKUP(G555,site!$C:$D,2,0),\"\")","v":""}]
[null,null,null,null,null,null,null,null,null,null,null,null,null,null,null,null,null,null,null,{"$f":"IFERROR(VLOOKUP(G556,site!$C:$D,2,0),\"\")","v":""}]
[null,null,null,null,null,null,null,null,null,null,null,null,null,null,null,null,null,null,null,{"$f":"IFERROR(VLOOKUP(G557,site!$C:$D,2,0),\"\")","v":""}]
[null,null,null,null,null,null,null,null,null,null,null,null,null,null,null,null,null,null,null,{"$f":"IFERROR(VLOOKUP(G558,site!$C:$D,2,0),\"\")","v":""}]
[null,null,null,null,null,null,null,null,null,null,null,null,null,null,null,null,null,null,null,{"$f":"IFERROR(VLOOKUP(G559,site!$C:$D,2,0),\"\")","v":""}]
[null,null,null,null,null,null,null,null,null,null,null,null,null,null,null,null,null,null,null,{"$f":"IFERROR(VLOOKUP(G560,site!$C:$D,2,0),\"\")","v":""}]
[null,null,null,null,null,null,null,null,null,null,null,null,null,null,null,null,null,null,null,{"$f":"IFERROR(VLOOKUP(G561,site!$C:$D,2,0),\"\")","v":""}]
[null,null,null,null,null,null,null,null,null,null,null,null,null,null,null,null,null,null,null,{"$f":"IFERROR(VLOOKUP(G562,site!$C:$D,2,0),\"\")","v":""}]
[null,null,null,null,null,null,null,null,null,null,null,null,null,null,null,null,null,null,null,{"$f":"IFERROR(VLOOKUP(G563,site!$C:$D,2,0),\"\")","v":""}]
[null,null,null,null,null,null,null,null,null,null,null,null,null,null,null,null,null,null,null,{"$f":"IFERROR(VLOOKUP(G564,site!$C:$D,2,0),\"\")","v":""}]
[null,null,null,null,null,null,null,null,null,null,null,null,null,null,null,null,null,null,null,{"$f":"IFERROR(VLOOKUP(G565,site!$C:$D,2,0),\"\")","v":""}]
[null,null,null,null,null,null,null,null,null,null,null,null,null,null,null,null,null,null,null,{"$f":"IFERROR(VLOOKUP(G566,site!$C:$D,2,0),\"\")","v":""}]
[null,null,null,null,null,null,null,null,null,null,null,null,null,null,null,null,null,null,null,{"$f":"IFERROR(VLOOKUP(G567,site!$C:$D,2,0),\"\")","v":""}]
[null,null,null,null,null,null,null,null,null,null,null,null,null,null,null,null,null,null,null,{"$f":"IFERROR(VLOOKUP(G568,site!$C:$D,2,0),\"\")","v":""}]
[null,null,null,null,null,null,null,null,null,null,null,null,null,null,null,null,null,null,null,{"$f":"IFERROR(VLOOKUP(G569,site!$C:$D,2,0),\"\")","v":""}]
[null,null,null,null,null,null,null,null,null,null,null,null,null,null,null,null,null,null,null,{"$f":"IFERROR(VLOOKUP(G570,site!$C:$D,2,0),\"\")","v":""}]
[null,null,null,null,null,null,null,null,null,null,null,null,null,null,null,null,null,null,null,{"$f":"IFERROR(VLOOKUP(G571,site!$C:$D,2,0),\"\")","v":""}]
[null,null,null,null,null,null,null,null,null,null,null,null,null,null,null,null,null,null,null,{"$f":"IFERROR(VLOOKUP(G572,site!$C:$D,2,0),\"\")","v":""}]
[null,null,null,null,null,null,null,null,null,null,null,null,null,null,null,null,null,null,null,{"$f":"IFERROR(VLOOKUP(G573,site!$C:$D,2,0),\"\")","v":""}]
[null,null,null,null,null,null,null,null,null,null,null,null,null,null,null,null,null,null,null,{"$f":"IFERROR(VLOOKUP(G574,site!$C:$D,2,0),\"\")","v":""}]
[null,null,null,null,null,null,null,null,null,null,null,null,null,null,null,null,null,null,null,{"$f":"IFERROR(VLOOKUP(G575,site!$C:$D,2,0),\"\")","v":""}]
[null,null,null,null,null,null,null,null,null,null,null,null,null,null,null,null,null,null,null,{"$f":"IFERROR(VLOOKUP(G576,site!$C:$D,2,0),\"\")","v":""}]
[null,null,null,null,null,null,null,null,null,null,null,null,null,null,null,null,null,null,null,{"$f":"IFERROR(VLOOKUP(G577,site!$C:$D,2,0),\"\")","v":""}]
[null,null,null,null,null,null,null,null,null,null,null,null,null,null,null,null,null,null,null,{"$f":"IFERROR(VLOOKUP(G578,site!$C:$D,2,0),\"\")","v":""}]
[null,null,null,null,null,null,null,null,null,null,null,null,null,null,null,null,null,null,null,{"$f":"IFERROR(VLOOKUP(G579,site!$C:$D,2,0),\"\")","v":""}]
[null,null,null,null,null,null,null,null,null,null,null,null,null,null,null,null,null,null,null,{"$f":"IFERROR(VLOOKUP(G580,site!$C:$D,2,0),\"\")","v":""}]
[null,null,null,null,null,null,null,null,null,null,null,null,null,null,null,null,null,null,null,{"$f":"IFERROR(VLOOKUP(G581,site!$C:$D,2,0),\"\")","v":""}]
[null,null,null,null,null,null,null,null,null,null,null,null,null,null,null,null,null,null,null,{"$f":"IFERROR(VLOOKUP(G582,site!$C:$D,2,0),\"\")","v":""}]
[null,null,null,null,null,null,null,null,null,null,null,null,null,null,null,null,null,null,null,{"$f":"IFERROR(VLOOKUP(G583,site!$C:$D,2,0),\"\")","v":""}]
[null,null,null,null,null,null,null,null,null,null,null,null,null,null,null,null,null,null,null,{"$f":"IFERROR(VLOOKUP(G584,site!$C:$D,2,0),\"\")","v":""}]
[null,null,null,null,null,null,null,null,null,null,null,null,null,null,null,null,null,null,null,{"$f":"IFERROR(VLOOKUP(G585,site!$C:$D,2,0),\"\")","v":""}]
[null,null,null,null,null,null,null,null,null,null,null,null,null,null,null,null,null,null,null,{"$f":"IFERROR(VLOOKUP(G586,site!$C:$D,2,0),\"\")","v":""}]
[null,null,null,null,null,null,null,null,null,null,null,null,null,null,null,null,null,null,null,{"$f":"IFERROR(VLOOKUP(G587,site!$C:$D,2,0),\"\")","v":""}]
[null,null,null,null,null,null,null,null,null,null,null,null,null,null,null,null,null,null,null,{"$f":"IFERROR(VLOOKUP(G588,site!$C:$D,2,0),\"\")","v":""}]
[null,null,null,null,null,null,null,null,null,null,null,null,null,null,null,null,null,null,null,{"$f":"IFERROR(VLOOKUP(G589,site!$C:$D,2,0),\"\")","v":""}]
[null,null,null,null,null,null,null,null,null,null,null,null,null,null,null,null,null,null,null,{"$f":"IFERROR(VLOOKUP(G590,site!$C:$D,2,0),\"\")","v":""}]
[null,null,null,null,null,null,null,null,null,null,null,null,null,null,null,null,null,null,null,{"$f":"IFERROR(VLOOKUP(G591,site!$C:$D,2,0),\"\")","v":""}]
[null,null,null,null,null,null,null,null,null,null,null,null,null,null,null,null,null,null,null,{"$f":"IFERROR(VLOOKUP(G592,site!$C:$D,2,0),\"\")","v":""}]
[null,null,null,null,null,null,null,null,null,null,null,null,null,null,null,null,null,null,null,{"$f":"IFERROR(VLOOKUP(G593,site!$C:$D,2,0),\"\")","v":""}]
[null,null,null,null,null,null,null,null,null,null,null,null,null,null,null,null,null,null,null,{"$f":"IFERROR(VLOOKUP(G594,site!$C:$D,2,0),\"\")","v":""}]
[null,null,null,null,null,null,null,null,null,null,null,null,null,null,null,null,null,null,null,{"$f":"IFERROR(VLOOKUP(G595,site!$C:$D,2,0),\"\")","v":""}]
[null,null,null,null,null,null,null,null,null,null,null,null,null,null,null,null,null,null,null,{"$f":"IFERROR(VLOOKUP(G596,site!$C:$D,2,0),\"\")","v":""}]
[null,null,null,null,null,null,null,null,null,null,null,null,null,null,null,null,null,null,null,{"$f":"IFERROR(VLOOKUP(G597,site!$C:$D,2,0),\"\")","v":""}]
[null,null,null,null,null,null,null,null,null,null,null,null,null,null,null,null,null,null,null,{"$f":"IFERROR(VLOOKUP(G598,site!$C:$D,2,0),\"\")","v":""}]
[null,null,null,null,null,null,null,null,null,null,null,null,null,null,null,null,null,null,null,{"$f":"IFERROR(VLOOKUP(G599,site!$C:$D,2,0),\"\")","v":""}]
[null,null,null,null,null,null,null,null,null,null,null,null,null,null,null,null,null,null,null,{"$f":"IFERROR(VLOOKUP(G600,site!$C:$D,2,0),\"\")","v":""}]
[null,null,null,null,null,null,null,null,null,null,null,null,null,null,null,null,null,null,null,{"$f":"IFERROR(VLOOKUP(G601,site!$C:$D,2,0),\"\")","v":""}]
[null,null,null,null,null,null,null,null,null,null,null,null,null,null,null,null,null,null,null,{"$f":"IFERROR(VLOOKUP(G602,site!$C:$D,2,0),\"\")","v":""}]
[null,null,null,null,null,null,null,null,null,null,null,null,null,null,null,null,null,null,null,{"$f":"IFERROR(VLOOKUP(G603,site!$C:$D,2,0),\"\")","v":""}]
[null,null,null,null,null,null,null,null,null,null,null,null,null,null,null,null,null,null,null,{"$f":"IFERROR(VLOOKUP(G604,site!$C:$D,2,0),\"\")","v":""}]
[null,null,null,null,null,null,null,null,null,null,null,null,null,null,null,null,null,null,null,{"$f":"IFERROR(VLOOKUP(G605,site!$C:$D,2,0),\"\")","v":""}]
[null,null,null,null,null,null,null,null,null,null,null,null,null,null,null,null,null,null,null,{"$f":"IFERROR(VLOOKUP(G606,site!$C:$D,2,0),\"\")","v":""}]
[null,null,null,null,null,null,null,null,null,null,null,null,null,null,null,null,null,null,null,{"$f":"IFERROR(VLOOKUP(G607,site!$C:$D,2,0),\"\")","v":""}]
[null,null,null,null,null,null,null,null,null,null,null,null,null,null,null,null,null,null,null,{"$f":"IFERROR(VLOOKUP(G608,site!$C:$D,2,0),\"\")","v":""}]
[null,null,null,null,null,null,null,null,null,null,null,null,null,null,null,null,null,null,null,{"$f":"IFERROR(VLOOKUP(G609,site!$C:$D,2,0),\"\")","v":""}]
[null,null,null,null,null,null,null,null,null,null,null,null,null,null,null,null,null,null,null,{"$f":"IFERROR(VLOOKUP(G610,site!$C:$D,2,0),\"\")","v":""}]
[null,null,null,null,null,null,null,null,null,null,null,null,null,null,null,null,null,null,null,{"$f":"IFERROR(VLOOKUP(G611,site!$C:$D,2,0),\"\")","v":""}]
[null,null,null,null,null,null,null,null,null,null,null,null,null,null,null,null,null,null,null,{"$f":"IFERROR(VLOOKUP(G612,site!$C:$D,2,0),\"\")","v":""}]
[null,null,null,null,null,null,null,null,null,null,null,null,null,null,null,null,null,null,null,{"$f":"IFERROR(VLOOKUP(G613,site!$C:$D,2,0),\"\")","v":""}]
[null,null,null,null,null,null,null,null,null,null,null,null,null,null,null,null,null,null,null,{"$f":"IFERROR(VLOOKUP(G614,site!$C:$D,2,0),\"\")","v":""}]
[null,null,null,null,null,null,null,null,null,null,null,null,null,null,null,null,null,null,null,{"$f":"IFERROR(VLOOKUP(G615,site!$C:$D,2,0),\"\")","v":""}]
[null,null,null,null,null,null,null,null,null,null,null,null,null,null,null,null,null,null,null,{"$f":"IFERROR(VLOOKUP(G616,site!$C:$D,2,0),\"\")","v":""}]
[null,null,null,null,null,null,null,null,null,null,null,null,null,null,null,null,null,null,null,{"$f":"IFERROR(VLOOKUP(G617,site!$C:$D,2,0),\"\")","v":""}]
[null,null,null,null,null,null,null,null,null,null,null,null,null,null,null,null,null,null,null,{"$f":"IFERROR(VLOOKUP(G618,site!$C:$D,2,0),\"\")","v":""}]
[null,null,null,null,null,null,null,null,null,null,null,null,null,null,null,null,null,null,null,{"$f":"IFERROR(VLOOKUP(G619,site!$C:$D,2,0),\"\")","v":""}]
[null,null,null,null,null,null,null,null,null,null,null,null,null,null,null,null,null,null,null,{"$f":"IFERROR(VLOOKUP(G620,site!$C:$D,2,0),\"\")","v":""}]
[null,null,null,null,null,null,null,null,null,null,null,null,null,null,null,null,null,null,null,{"$f":"IFERROR(VLOOKUP(G621,site!$C:$D,2,0),\"\")","v":""}]
[null,null,null,null,null,null,null,null,null,null,null,null,null,null,null,null,null,null,null,{"$f":"IFERROR(VLOOKUP(G622,site!$C:$D,2,0),\"\")","v":""}]
[null,null,null,null,null,null,null,null,null,null,null,null,null,null,null,null,null,null,null,{"$f":"IFERROR(VLOOKUP(G623,site!$C:$D,2,0),\"\")","v":""}]
[null,null,null,null,null,null,null,null,null,null,null,null,null,null,null,null,null,null,null,{"$f":"IFERROR(VLOOKUP(G624,site!$C:$D,2,0),\"\")","v":""}]
[null,null,null,null,null,null,null,null,null,null,null,null,null,null,null,null,null,null,null,{"$f":"IFERROR(VLOOKUP(G625,site!$C:$D,2,0),\"\")","v":""}]
[null,null,null,null,null,null,null,null,null,null,null,null,null,null,null,null,null,null,null,{"$f":"IFERROR(VLOOKUP(G626,site!$C:$D,2,0),\"\")","v":""}]
[null,null,null,null,null,null,null,null,null,null,null,null,null,null,null,null,null,null,null,{"$f":"IFERROR(VLOOKUP(G627,site!$C:$D,2,0),\"\")","v":""}]
[null,null,null,null,null,null,null,null,null,null,null,null,null,null,null,null,null,null,null,{"$f":"IFERROR(VLOOKUP(G628,site!$C:$D,2,0),\"\")","v":""}]
[null,null,null,null,null,null,null,null,null,null,null,null,null,null,null,null,null,null,null,{"$f":"IFERROR(VLOOKUP(G629,site!$C:$D,2,0),\"\")","v":""}]
[null,null,null,null,null,null,null,null,null,null,null,null,null,null,null,null,null,null,null,{"$f":"IFERROR(VLOOKUP(G630,site!$C:$D,2,0),\"\")","v":""}]
[null,null,null,null,null,null,null,null,null,null,null,null,null,null,null,null,null,null,null,{"$f":"IFERROR(VLOOKUP(G631,site!$C:$D,2,0),\"\")","v":""}]
[null,null,null,null,null,null,null,null,null,null,null,null,null,null,null,null,null,null,null,{"$f":"IFERROR(VLOOKUP(G632,site!$C:$D,2,0),\"\")","v":""}]
[null,null,null,null,null,null,null,null,null,null,null,null,null,null,null,null,null,null,null,{"$f":"IFERROR(VLOOKUP(G633,site!$C:$D,2,0),\"\")","v":""}]
[null,null,null,null,null,null,null,null,null,null,null,null,null,null,null,null,null,null,null,{"$f":"IFERROR(VLOOKUP(G634,site!$C:$D,2,0),\"\")","v":""}]
[null,null,null,null,null,null,null,null,null,null,null,null,null,null,null,null,null,null,null,{"$f":"IFERROR(VLOOKUP(G635,site!$C:$D,2,0),\"\")","v":""}]
[null,null,null,null,null,null,null,null,null,null,null,null,null,null,null,null,null,null,null,{"$f":"IFERROR(VLOOKUP(G636,site!$C:$D,2,0),\"\")","v":""}]
[null,null,null,null,null,null,null,null,null,null,null,null,null,null,null,null,null,null,null,{"$f":"IFERROR(VLOOKUP(G637,site!$C:$D,2,0),\"\")","v":""}]
[null,null,null,null,null,null,null,null,null,null,null,null,null,null,null,null,null,null,null,{"$f":"IFERROR(VLOOKUP(G638,site!$C:$D,2,0),\"\")","v":""}]
[null,null,null,null,null,null,null,null,null,null,null,null,null,null,null,null,null,null,null,{"$f":"IFERROR(VLOOKUP(G639,site!$C:$D,2,0),\"\")","v":""}]
[null,null,null,null,null,null,null,null,null,null,null,null,null,null,null,null,null,null,null,{"$f":"IFERROR(VLOOKUP(G640,site!$C:$D,2,0),\"\")","v":""}]
[null,null,null,null,null,null,null,null,null,null,null,null,null,null,null,null,null,null,null,{"$f":"IFERROR(VLOOKUP(G641,site!$C:$D,2,0),\"\")","v":""}]
[null,null,null,null,null,null,null,null,null,null,null,null,null,null,null,null,null,null,null,{"$f":"IFERROR(VLOOKUP(G642,site!$C:$D,2,0),\"\")","v":""}]
[null,null,null,null,null,null,null,null,null,null,null,null,null,null,null,null,null,null,null,{"$f":"IFERROR(VLOOKUP(G643,site!$C:$D,2,0),\"\")","v":""}]
[null,null,null,null,null,null,null,null,null,null,null,null,null,null,null,null,null,null,null,{"$f":"IFERROR(VLOOKUP(G644,site!$C:$D,2,0),\"\")","v":""}]
[null,null,null,null,null,null,null,null,null,null,null,null,null,null,null,null,null,null,null,{"$f":"IFERROR(VLOOKUP(G645,site!$C:$D,2,0),\"\")","v":""}]
[null,null,null,null,null,null,null,null,null,null,null,null,null,null,null,null,null,null,null,{"$f":"IFERROR(VLOOKUP(G646,site!$C:$D,2,0),\"\")","v":""}]
[null,null,null,null,null,null,null,null,null,null,null,null,null,null,null,null,null,null,null,{"$f":"IFERROR(VLOOKUP(G647,site!$C:$D,2,0),\"\")","v":""}]
[null,null,null,null,null,null,null,null,null,null,null,null,null,null,null,null,null,null,null,{"$f":"IFERROR(VLOOKUP(G648,site!$C:$D,2,0),\"\")","v":""}]
[null,null,null,null,null,null,null,null,null,null,null,null,null,null,null,null,null,null,null,{"$f":"IFERROR(VLOOKUP(G649,site!$C:$D,2,0),\"\")","v":""}]
[null,null,null,null,null,null,null,null,null,null,null,null,null,null,null,null,null,null,null,{"$f":"IFERROR(VLOOKUP(G650,site!$C:$D,2,0),\"\")","v":""}]
[null,null,null,null,null,null,null,null,null,null,null,null,null,null,null,null,null,null,null,{"$f":"IFERROR(VLOOKUP(G651,site!$C:$D,2,0),\"\")","v":""}]
[null,null,null,null,null,null,null,null,null,null,null,null,null,null,null,null,null,null,null,{"$f":"IFERROR(VLOOKUP(G652,site!$C:$D,2,0),\"\")","v":""}]
[null,null,null,null,null,null,null,null,null,null,null,null,null,null,null,null,null,null,null,{"$f":"IFERROR(VLOOKUP(G653,site!$C:$D,2,0),\"\")","v":""}]
[null,null,null,null,null,null,null,null,null,null,null,null,null,null,null,null,null,null,null,{"$f":"IFERROR(VLOOKUP(G654,site!$C:$D,2,0),\"\")","v":""}]
[null,null,null,null,null,null,null,null,null,null,null,null,null,null,null,null,null,null,null,{"$f":"IFERROR(VLOOKUP(G655,site!$C:$D,2,0),\"\")","v":""}]
[null,null,null,null,null,null,null,null,null,null,null,null,null,null,null,null,null,null,null,{"$f":"IFERROR(VLOOKUP(G656,site!$C:$D,2,0),\"\")","v":""}]
[null,null,null,null,null,null,null,null,null,null,null,null,null,null,null,null,null,null,null,{"$f":"IFERROR(VLOOKUP(G657,site!$C:$D,2,0),\"\")","v":""}]
[null,null,null,null,null,null,null,null,null,null,null,null,null,null,null,null,null,null,null,{"$f":"IFERROR(VLOOKUP(G658,site!$C:$D,2,0),\"\")","v":""}]
[null,null,null,null,null,null,null,null,null,null,null,null,null,null,null,null,null,null,null,{"$f":"IFERROR(VLOOKUP(G659,site!$C:$D,2,0),\"\")","v":""}]
[null,null,null,null,null,null,null,null,null,null,null,null,null,null,null,null,null,null,null,{"$f":"IFERROR(VLOOKUP(G660,site!$C:$D,2,0),\"\")","v":""}]
[null,null,null,null,null,null,null,null,null,null,null,null,null,null,null,null,null,null,null,{"$f":"IFERROR(VLOOKUP(G661,site!$C:$D,2,0),\"\")","v":""}]
[null,null,null,null,null,null,null,null,null,null,null,null,null,null,null,null,null,null,null,{"$f":"IFERROR(VLOOKUP(G662,site!$C:$D,2,0),\"\")","v":""}]
[null,null,null,null,null,null,null,null,null,null,null,null,null,null,null,null,null,null,null,{"$f":"IFERROR(VLOOKUP(G663,site!$C:$D,2,0),\"\")","v":""}]
[null,null,null,null,null,null,null,null,null,null,null,null,null,null,null,null,null,null,null,{"$f":"IFERROR(VLOOKUP(G664,site!$C:$D,2,0),\"\")","v":""}]
[null,null,null,null,null,null,null,null,null,null,null,null,null,null,null,null,null,null,null,{"$f":"IFERROR(VLOOKUP(G665,site!$C:$D,2,0),\"\")","v":""}]
[null,null,null,null,null,null,null,null,null,null,null,null,null,null,null,null,null,null,null,{"$f":"IFERROR(VLOOKUP(G666,site!$C:$D,2,0),\"\")","v":""}]
[null,null,null,null,null,null,null,null,null,null,null,null,null,null,null,null,null,null,null,{"$f":"IFERROR(VLOOKUP(G667,site!$C:$D,2,0),\"\")","v":""}]
[null,null,null,null,null,null,null,null,null,null,null,null,null,null,null,null,null,null,null,{"$f":"IFERROR(VLOOKUP(G668,site!$C:$D,2,0),\"\")","v":""}]
[null,null,null,null,null,null,null,null,null,null,null,null,null,null,null,null,null,null,null,{"$f":"IFERROR(VLOOKUP(G669,site!$C:$D,2,0),\"\")","v":""}]
[null,null,null,null,null,null,null,null,null,null,null,null,null,null,null,null,null,null,null,{"$f":"IFERROR(VLOOKUP(G670,site!$C:$D,2,0),\"\")","v":""}]
[null,null,null,null,null,null,null,null,null,null,null,null,null,null,null,null,null,null,null,{"$f":"IFERROR(VLOOKUP(G671,site!$C:$D,2,0),\"\")","v":""}]
[null,null,null,null,null,null,null,null,null,null,null,null,null,null,null,null,null,null,null,{"$f":"IFERROR(VLOOKUP(G672,site!$C:$D,2,0),\"\")","v":""}]
[null,null,null,null,null,null,null,null,null,null,null,null,null,null,null,null,null,null,null,{"$f":"IFERROR(VLOOKUP(G673,site!$C:$D,2,0),\"\")","v":""}]
[null,null,null,null,null,null,null,null,null,null,null,null,null,null,null,null,null,null,null,{"$f":"IFERROR(VLOOKUP(G674,site!$C:$D,2,0),\"\")","v":""}]
[null,null,null,null,null,null,null,null,null,null,null,null,null,null,null,null,null,null,null,{"$f":"IFERROR(VLOOKUP(G675,site!$C:$D,2,0),\"\")","v":""}]
[null,null,null,null,null,null,null,null,null,null,null,null,null,null,null,null,null,null,null,{"$f":"IFERROR(VLOOKUP(G676,site!$C:$D,2,0),\"\")","v":""}]
[null,null,null,null,null,null,null,null,null,null,null,null,null,null,null,null,null,null,null,{"$f":"IFERROR(VLOOKUP(G677,site!$C:$D,2,0),\"\")","v":""}]
[null,null,null,null,null,null,null,null,null,null,null,null,null,null,null,null,null,null,null,{"$f":"IFERROR(VLOOKUP(G678,site!$C:$D,2,0),\"\")","v":""}]
[null,null,null,null,null,null,null,null,null,null,null,null,null,null,null,null,null,null,null,{"$f":"IFERROR(VLOOKUP(G679,site!$C:$D,2,0),\"\")","v":""}]
[null,null,null,null,null,null,null,null,null,null,null,null,null,null,null,null,null,null,null,{"$f":"IFERROR(VLOOKUP(G680,site!$C:$D,2,0),\"\")","v":""}]
[null,null,null,null,null,null,null,null,null,null,null,null,null,null,null,null,null,null,null,{"$f":"IFERROR(VLOOKUP(G681,site!$C:$D,2,0),\"\")","v":""}]
[null,null,null,null,null,null,null,null,null,null,null,null,null,null,null,null,null,null,null,{"$f":"IFERROR(VLOOKUP(G682,site!$C:$D,2,0),\"\")","v":""}]
[null,null,null,null,null,null,null,null,null,null,null,null,null,null,null,null,null,null,null,{"$f":"IFERROR(VLOOKUP(G683,site!$C:$D,2,0),\"\")","v":""}]
[null,null,null,null,null,null,null,null,null,null,null,null,null,null,null,null,null,null,null,{"$f":"IFERROR(VLOOKUP(G684,site!$C:$D,2,0),\"\")","v":""}]
[null,null,null,null,null,null,null,null,null,null,null,null,null,null,null,null,null,null,null,{"$f":"IFERROR(VLOOKUP(G685,site!$C:$D,2,0),\"\")","v":""}]
[null,null,null,null,null,null,null,null,null,null,null,null,null,null,null,null,null,null,null,{"$f":"IFERROR(VLOOKUP(G686,site!$C:$D,2,0),\"\")","v":""}]
[null,null,null,null,null,null,null,null,null,null,null,null,null,null,null,null,null,null,null,{"$f":"IFERROR(VLOOKUP(G687,site!$C:$D,2,0),\"\")","v":""}]
[null,null,null,null,null,null,null,null,null,null,null,null,null,null,null,null,null,null,null,{"$f":"IFERROR(VLOOKUP(G688,site!$C:$D,2,0),\"\")","v":""}]
[null,null,null,null,null,null,null,null,null,null,null,null,null,null,null,null,null,null,null,{"$f":"IFERROR(VLOOKUP(G689,site!$C:$D,2,0),\"\")","v":""}]
[null,null,null,null,null,null,null,null,null,null,null,null,null,null,null,null,null,null,null,{"$f":"IFERROR(VLOOKUP(G690,site!$C:$D,2,0),\"\")","v":""}]
[null,null,null,null,null,null,null,null,null,null,null,null,null,null,null,null,null,null,null,{"$f":"IFERROR(VLOOKUP(G691,site!$C:$D,2,0),\"\")","v":""}]
[null,null,null,null,null,null,null,null,null,null,null,null,null,null,null,null,null,null,null,{"$f":"IFERROR(VLOOKUP(G692,site!$C:$D,2,0),\"\")","v":""}]
[null,null,null,null,null,null,null,null,null,null,null,null,null,null,null,null,null,null,null,{"$f":"IFERROR(VLOOKUP(G693,site!$C:$D,2,0),\"\")","v":""}]
[null,null,null,null,null,null,null,null,null,null,null,null,null,null,null,null,null,null,null,{"$f":"IFERROR(VLOOKUP(G694,site!$C:$D,2,0),\"\")","v":""}]
[null,null,null,null,null,null,null,null,null,null,null,null,null,null,null,null,null,null,null,{"$f":"IFERROR(VLOOKUP(G695,site!$C:$D,2,0),\"\")","v":""}]
[null,null,null,null,null,null,null,null,null,null,null,null,null,null,null,null,null,null,null,{"$f":"IFERROR(VLOOKUP(G696,site!$C:$D,2,0),\"\")","v":""}]
[null,null,null,null,null,null,null,null,null,null,null,null,null,null,null,null,null,null,null,{"$f":"IFERROR(VLOOKUP(G697,site!$C:$D,2,0),\"\")","v":""}]
[null,null,null,null,null,null,null,null,null,null,null,null,null,null,null,null,null,null,null,{"$f":"IFERROR(VLOOKUP(G698,site!$C:$D,2,0),\"\")","v":""}]
[null,null,null,null,null,null,null,null,null,null,null,null,null,null,null,null,null,null,null,{"$f":"IFERROR(VLOOKUP(G699,site!$C:$D,2,0),\"\")","v":""}]
[null,null,null,null,null,null,null,null,null,null,null,null,null,null,null,null,null,null,null,{"$f":"IFERROR(VLOOKUP(G700,site!$C:$D,2,0),\"\")","v":""}]
[null,null,null,null,null,null,null,null,null,null,null,null,null,null,null,null,null,null,null,{"$f":"IFERROR(VLOOKUP(G701,site!$C:$D,2,0),\"\")","v":""}]
[null,null,null,null,null,null,null,null,null,null,null,null,null,null,null,null,null,null,null,{"$f":"IFERROR(VLOOKUP(G702,site!$C:$D,2,0),\"\")","v":""}]
[null,null,null,null,null,null,null,null,null,null,null,null,null,null,null,null,null,null,null,{"$f":"IFERROR(VLOOKUP(G703,site!$C:$D,2,0),\"\")","v":""}]
[null,null,null,null,null,null,null,null,null,null,null,null,null,null,null,null,null,null,null,{"$f":"IFERROR(VLOOKUP(G704,site!$C:$D,2,0),\"\")","v":""}]
[null,null,null,null,null,null,null,null,null,null,null,null,null,null,null,null,null,null,null,{"$f":"IFERROR(VLOOKUP(G705,site!$C:$D,2,0),\"\")","v":""}]
[null,null,null,null,null,null,null,null,null,null,null,null,null,null,null,null,null,null,null,{"$f":"IFERROR(VLOOKUP(G706,site!$C:$D,2,0),\"\")","v":""}]
[null,null,null,null,null,null,null,null,null,null,null,null,null,null,null,null,null,null,null,{"$f":"IFERROR(VLOOKUP(G707,site!$C:$D,2,0),\"\")","v":""}]
[null,null,null,null,null,null,null,null,null,null,null,null,null,null,null,null,null,null,null,{"$f":"IFERROR(VLOOKUP(G708,site!$C:$D,2,0),\"\")","v":""}]
[null,null,null,null,null,null,null,null,null,null,null,null,null,null,null,null,null,null,null,{"$f":"IFERROR(VLOOKUP(G709,site!$C:$D,2,0),\"\")","v":""}]
[null,null,null,null,null,null,null,null,null,null,null,null,null,null,null,null,null,null,null,{"$f":"IFERROR(VLOOKUP(G710,site!$C:$D,2,0),\"\")","v":""}]
[null,null,null,null,null,null,null,null,null,null,null,null,null,null,null,null,null,null,null,{"$f":"IFERROR(VLOOKUP(G711,site!$C:$D,2,0),\"\")","v":""}]
[null,null,null,null,null,null,null,null,null,null,null,null,null,null,null,null,null,null,null,{"$f":"IFERROR(VLOOKUP(G712,site!$C:$D,2,0),\"\")","v":""}]
[null,null,null,null,null,null,null,null,null,null,null,null,null,null,null,null,null,null,null,{"$f":"IFERROR(VLOOKUP(G713,site!$C:$D,2,0),\"\")","v":""}]
[null,null,null,null,null,null,null,null,null,null,null,null,null,null,null,null,null,null,null,{"$f":"IFERROR(VLOOKUP(G714,site!$C:$D,2,0),\"\")","v":""}]
[null,null,null,null,null,null,null,null,null,null,null,null,null,null,null,null,null,null,null,{"$f":"IFERROR(VLOOKUP(G715,site!$C:$D,2,0),\"\")","v":""}]
[null,null,null,null,null,null,null,null,null,null,null,null,null,null,null,null,null,null,null,{"$f":"IFERROR(VLOOKUP(G716,site!$C:$D,2,0),\"\")","v":""}]
[null,null,null,null,null,null,null,null,null,null,null,null,null,null,null,null,null,null,null,{"$f":"IFERROR(VLOOKUP(G717,site!$C:$D,2,0),\"\")","v":""}]
[null,null,null,null,null,null,null,null,null,null,null,null,null,null,null,null,null,null,null,{"$f":"IFERROR(VLOOKUP(G718,site!$C:$D,2,0),\"\")","v":""}]
[null,null,null,null,null,null,null,null,null,null,null,null,null,null,null,null,null,null,null,{"$f":"IFERROR(VLOOKUP(G719,site!$C:$D,2,0),\"\")","v":""}]
[null,null,null,null,null,null,null,null,null,null,null,null,null,null,null,null,null,null,null,{"$f":"IFERROR(VLOOKUP(G720,site!$C:$D,2,0),\"\")","v":""}]
[null,null,null,null,null,null,null,null,null,null,null,null,null,null,null,null,null,null,null,{"$f":"IFERROR(VLOOKUP(G721,site!$C:$D,2,0),\"\")","v":""}]
[null,null,null,null,null,null,null,null,null,null,null,null,null,null,null,null,null,null,null,{"$f":"IFERROR(VLOOKUP(G722,site!$C:$D,2,0),\"\")","v":""}]
[null,null,null,null,null,null,null,null,null,null,null,null,null,null,null,null,null,null,null,{"$f":"IFERROR(VLOOKUP(G723,site!$C:$D,2,0),\"\")","v":""}]
[null,null,null,null,null,null,null,null,null,null,null,null,null,null,null,null,null,null,null,{"$f":"IFERROR(VLOOKUP(G724,site!$C:$D,2,0),\"\")","v":""}]
[null,null,null,null,null,null,null,null,null,null,null,null,null,null,null,null,null,null,null,{"$f":"IFERROR(VLOOKUP(G725,site!$C:$D,2,0),\"\")","v":""}]
[null,null,null,null,null,null,null,null,null,null,null,null,null,null,null,null,null,null,null,{"$f":"IFERROR(VLOOKUP(G726,site!$C:$D,2,0),\"\")","v":""}]
[null,null,null,null,null,null,null,null,null,null,null,null,null,null,null,null,null,null,null,{"$f":"IFERROR(VLOOKUP(G727,site!$C:$D,2,0),\"\")","v":""}]
[null,null,null,null,null,null,null,null,null,null,null,null,null,null,null,null,null,null,null,{"$f":"IFERROR(VLOOKUP(G728,site!$C:$D,2,0),\"\")","v":""}]
[null,null,null,null,null,null,null,null,null,null,null,null,null,null,null,null,null,null,null,{"$f":"IFERROR(VLOOKUP(G729,site!$C:$D,2,0),\"\")","v":""}]
[null,null,null,null,null,null,null,null,null,null,null,null,null,null,null,null,null,null,null,{"$f":"IFERROR(VLOOKUP(G730,site!$C:$D,2,0),\"\")","v":""}]
[null,null,null,null,null,null,null,null,null,null,null,null,null,null,null,null,null,null,null,{"$f":"IFERROR(VLOOKUP(G731,site!$C:$D,2,0),\"\")","v":""}]
[null,null,null,null,null,null,null,null,null,null,null,null,null,null,null,null,null,null,null,{"$f":"IFERROR(VLOOKUP(G732,site!$C:$D,2,0),\"\")","v":""}]
[null,null,null,null,null,null,null,null,null,null,null,null,null,null,null,null,null,null,null,{"$f":"IFERROR(VLOOKUP(G733,site!$C:$D,2,0),\"\")","v":""}]
[null,null,null,null,null,null,null,null,null,null,null,null,null,null,null,null,null,null,null,{"$f":"IFERROR(VLOOKUP(G734,site!$C:$D,2,0),\"\")","v":""}]
[null,null,null,null,null,null,null,null,null,null,null,null,null,null,null,null,null,null,null,{"$f":"IFERROR(VLOOKUP(G735,site!$C:$D,2,0),\"\")","v":""}]
[null,null,null,null,null,null,null,null,null,null,null,null,null,null,null,null,null,null,null,{"$f":"IFERROR(VLOOKUP(G736,site!$C:$D,2,0),\"\")","v":""}]
[null,null,null,null,null,null,null,null,null,null,null,null,null,null,null,null,null,null,null,{"$f":"IFERROR(VLOOKUP(G737,site!$C:$D,2,0),\"\")","v":""}]
[null,null,null,null,null,null,null,null,null,null,null,null,null,null,null,null,null,null,null,{"$f":"IFERROR(VLOOKUP(G738,site!$C:$D,2,0),\"\")","v":""}]
[null,null,null,null,null,null,null,null,null,null,null,null,null,null,null,null,null,null,null,{"$f":"IFERROR(VLOOKUP(G739,site!$C:$D,2,0),\"\")","v":""}]
[null,null,null,null,null,null,null,null,null,null,null,null,null,null,null,null,null,null,null,{"$f":"IFERROR(VLOOKUP(G740,site!$C:$D,2,0),\"\")","v":""}]
[null,null,null,null,null,null,null,null,null,null,null,null,null,null,null,null,null,null,null,{"$f":"IFERROR(VLOOKUP(G741,site!$C:$D,2,0),\"\")","v":""}]
[null,null,null,null,null,null,null,null,null,null,null,null,null,null,null,null,null,null,null,{"$f":"IFERROR(VLOOKUP(G742,site!$C:$D,2,0),\"\")","v":""}]
[null,null,null,null,null,null,null,null,null,null,null,null,null,null,null,null,null,null,null,{"$f":"IFERROR(VLOOKUP(G743,site!$C:$D,2,0),\"\")","v":""}]
[null,null,null,null,null,null,null,null,null,null,null,null,null,null,null,null,null,null,null,{"$f":"IFERROR(VLOOKUP(G744,site!$C:$D,2,0),\"\")","v":""}]
[null,null,null,null,null,null,null,null,null,null,null,null,null,null,null,null,null,null,null,{"$f":"IFERROR(VLOOKUP(G745,site!$C:$D,2,0),\"\")","v":""}]
[null,null,null,null,null,null,null,null,null,null,null,null,null,null,null,null,null,null,null,{"$f":"IFERROR(VLOOKUP(G746,site!$C:$D,2,0),\"\")","v":""}]
[null,null,null,null,null,null,null,null,null,null,null,null,null,null,null,null,null,null,null,{"$f":"IFERROR(VLOOKUP(G747,site!$C:$D,2,0),\"\")","v":""}]
[null,null,null,null,null,null,null,null,null,null,null,null,null,null,null,null,null,null,null,{"$f":"IFERROR(VLOOKUP(G748,site!$C:$D,2,0),\"\")","v":""}]
[null,null,null,null,null,null,null,null,null,null,null,null,null,null,null,null,null,null,null,{"$f":"IFERROR(VLOOKUP(G749,site!$C:$D,2,0),\"\")","v":""}]
[null,null,null,null,null,null,null,null,null,null,null,null,null,null,null,null,null,null,null,{"$f":"IFERROR(VLOOKUP(G750,site!$C:$D,2,0),\"\")","v":""}]
[null,null,null,null,null,null,null,null,null,null,null,null,null,null,null,null,null,null,null,{"$f":"IFERROR(VLOOKUP(G751,site!$C:$D,2,0),\"\")","v":""}]
[null,null,null,null,null,null,null,null,null,null,null,null,null,null,null,null,null,null,null,{"$f":"IFERROR(VLOOKUP(G752,site!$C:$D,2,0),\"\")","v":""}]
[null,null,null,null,null,null,null,null,null,null,null,null,null,null,null,null,null,null,null,{"$f":"IFERROR(VLOOKUP(G753,site!$C:$D,2,0),\"\")","v":""}]
[null,null,null,null,null,null,null,null,null,null,null,null,null,null,null,null,null,null,null,{"$f":"IFERROR(VLOOKUP(G754,site!$C:$D,2,0),\"\")","v":""}]
[null,null,null,null,null,null,null,null,null,null,null,null,null,null,null,null,null,null,null,{"$f":"IFERROR(VLOOKUP(G755,site!$C:$D,2,0),\"\")","v":""}]
[null,null,null,null,null,null,null,null,null,null,null,null,null,null,null,null,null,null,null,{"$f":"IFERROR(VLOOKUP(G756,site!$C:$D,2,0),\"\")","v":""}]
[null,null,null,null,null,null,null,null,null,null,null,null,null,null,null,null,null,null,null,{"$f":"IFERROR(VLOOKUP(G757,site!$C:$D,2,0),\"\")","v":""}]
[null,null,null,null,null,null,null,null,null,null,null,null,null,null,null,null,null,null,null,{"$f":"IFERROR(VLOOKUP(G758,site!$C:$D,2,0),\"\")","v":""}]
[null,null,null,null,null,null,null,null,null,null,null,null,null,null,null,null,null,null,null,{"$f":"IFERROR(VLOOKUP(G759,site!$C:$D,2,0),\"\")","v":""}]
[null,null,null,null,null,null,null,null,null,null,null,null,null,null,null,null,null,null,null,{"$f":"IFERROR(VLOOKUP(G760,site!$C:$D,2,0),\"\")","v":""}]
[null,null,null,null,null,null,null,null,null,null,null,null,null,null,null,null,null,null,null,{"$f":"IFERROR(VLOOKUP(G761,site!$C:$D,2,0),\"\")","v":""}]
[null,null,null,null,null,null,null,null,null,null,null,null,null,null,null,null,null,null,null,{"$f":"IFERROR(VLOOKUP(G762,site!$C:$D,2,0),\"\")","v":""}]
[null,null,null,null,null,null,null,null,null,null,null,null,null,null,null,null,null,null,null,{"$f":"IFERROR(VLOOKUP(G763,site!$C:$D,2,0),\"\")","v":""}]
[null,null,null,null,null,null,null,null,null,null,null,null,null,null,null,null,null,null,null,{"$f":"IFERROR(VLOOKUP(G764,site!$C:$D,2,0),\"\")","v":""}]
[null,null,null,null,null,null,null,null,null,null,null,null,null,null,null,null,null,null,null,{"$f":"IFERROR(VLOOKUP(G765,site!$C:$D,2,0),\"\")","v":""}]
[null,null,null,null,null,null,null,null,null,null,null,null,null,null,null,null,null,null,null,{"$f":"IFERROR(VLOOKUP(G766,site!$C:$D,2,0),\"\")","v":""}]
[null,null,null,null,null,null,null,null,null,null,null,null,null,null,null,null,null,null,null,{"$f":"IFERROR(VLOOKUP(G767,site!$C:$D,2,0),\"\")","v":""}]
[null,null,null,null,null,null,null,null,null,null,null,null,null,null,null,null,null,null,null,{"$f":"IFERROR(VLOOKUP(G768,site!$C:$D,2,0),\"\")","v":""}]
[null,null,null,null,null,null,null,null,null,null,null,null,null,null,null,null,null,null,null,{"$f":"IFERROR(VLOOKUP(G769,site!$C:$D,2,0),\"\")","v":""}]
[null,null,null,null,null,null,null,null,null,null,null,null,null,null,null,null,null,null,null,{"$f":"IFERROR(VLOOKUP(G770,site!$C:$D,2,0),\"\")","v":""}]
[null,null,null,null,null,null,null,null,null,null,null,null,null,null,null,null,null,null,null,{"$f":"IFERROR(VLOOKUP(G771,site!$C:$D,2,0),\"\")","v":""}]
[null,null,null,null,null,null,null,null,null,null,null,null,null,null,null,null,null,null,null,{"$f":"IFERROR(VLOOKUP(G772,site!$C:$D,2,0),\"\")","v":""}]
[null,null,null,null,null,null,null,null,null,null,null,null,null,null,null,null,null,null,null,{"$f":"IFERROR(VLOOKUP(G773,site!$C:$D,2,0),\"\")","v":""}]
[null,null,null,null,null,null,null,null,null,null,null,null,null,null,null,null,null,null,null,{"$f":"IFERROR(VLOOKUP(G774,site!$C:$D,2,0),\"\")","v":""}]
[null,null,null,null,null,null,null,null,null,null,null,null,null,null,null,null,null,null,null,{"$f":"IFERROR(VLOOKUP(G775,site!$C:$D,2,0),\"\")","v":""}]
[null,null,null,null,null,null,null,null,null,null,null,null,null,null,null,null,null,null,null,{"$f":"IFERROR(VLOOKUP(G776,site!$C:$D,2,0),\"\")","v":""}]
[null,null,null,null,null,null,null,null,null,null,null,null,null,null,null,null,null,null,null,{"$f":"IFERROR(VLOOKUP(G777,site!$C:$D,2,0),\"\")","v":""}]
[null,null,null,null,null,null,null,null,null,null,null,null,null,null,null,null,null,null,null,{"$f":"IFERROR(VLOOKUP(G778,site!$C:$D,2,0),\"\")","v":""}]
[null,null,null,null,null,null,null,null,null,null,null,null,null,null,null,null,null,null,null,{"$f":"IFERROR(VLOOKUP(G779,site!$C:$D,2,0),\"\")","v":""}]
[null,null,null,null,null,null,null,null,null,null,null,null,null,null,null,null,null,null,null,{"$f":"IFERROR(VLOOKUP(G780,site!$C:$D,2,0),\"\")","v":""}]
[null,null,null,null,null,null,null,null,null,null,null,null,null,null,null,null,null,null,null,{"$f":"IFERROR(VLOOKUP(G781,site!$C:$D,2,0),\"\")","v":""}]
[null,null,null,null,null,null,null,null,null,null,null,null,null,null,null,null,null,null,null,{"$f":"IFERROR(VLOOKUP(G782,site!$C:$D,2,0),\"\")","v":""}]
[null,null,null,null,null,null,null,null,null,null,null,null,null,null,null,null,null,null,null,{"$f":"IFERROR(VLOOKUP(G783,site!$C:$D,2,0),\"\")","v":""}]
[null,null,null,null,null,null,null,null,null,null,null,null,null,null,null,null,null,null,null,{"$f":"IFERROR(VLOOKUP(G784,site!$C:$D,2,0),\"\")","v":""}]
[null,null,null,null,null,null,null,null,null,null,null,null,null,null,null,null,null,null,null,{"$f":"IFERROR(VLOOKUP(G785,site!$C:$D,2,0),\"\")","v":""}]
[null,null,null,null,null,null,null,null,null,null,null,null,null,null,null,null,null,null,null,{"$f":"IFERROR(VLOOKUP(G786,site!$C:$D,2,0),\"\")","v":""}]
[null,null,null,null,null,null,null,null,null,null,null,null,null,null,null,null,null,null,null,{"$f":"IFERROR(VLOOKUP(G787,site!$C:$D,2,0),\"\")","v":""}]
[null,null,null,null,null,null,null,null,null,null,null,null,null,null,null,null,null,null,null,{"$f":"IFERROR(VLOOKUP(G788,site!$C:$D,2,0),\"\")","v":""}]
[null,null,null,null,null,null,null,null,null,null,null,null,null,null,null,null,null,null,null,{"$f":"IFERROR(VLOOKUP(G789,site!$C:$D,2,0),\"\")","v":""}]
[null,null,null,null,null,null,null,null,null,null,null,null,null,null,null,null,null,null,null,{"$f":"IFERROR(VLOOKUP(G790,site!$C:$D,2,0),\"\")","v":""}]
[null,null,null,null,null,null,null,null,null,null,null,null,null,null,null,null,null,null,null,{"$f":"IFERROR(VLOOKUP(G791,site!$C:$D,2,0),\"\")","v":""}]
[null,null,null,null,null,null,null,null,null,null,null,null,null,null,null,null,null,null,null,{"$f":"IFERROR(VLOOKUP(G792,site!$C:$D,2,0),\"\")","v":""}]
[null,null,null,null,null,null,null,null,null,null,null,null,null,null,null,null,null,null,null,{"$f":"IFERROR(VLOOKUP(G793,site!$C:$D,2,0),\"\")","v":""}]
[null,null,null,null,null,null,null,null,null,null,null,null,null,null,null,null,null,null,null,{"$f":"IFERROR(VLOOKUP(G794,site!$C:$D,2,0),\"\")","v":""}]
[null,null,null,null,null,null,null,null,null,null,null,null,null,null,null,null,null,null,null,{"$f":"IFERROR(VLOOKUP(G795,site!$C:$D,2,0),\"\")","v":""}]
[null,null,null,null,null,null,null,null,null,null,null,null,null,null,null,null,null,null,null,{"$f":"IFERROR(VLOOKUP(G796,site!$C:$D,2,0),\"\")","v":""}]
[null,null,null,null,null,null,null,null,null,null,null,null,null,null,null,null,null,null,null,{"$f":"IFERROR(VLOOKUP(G797,site!$C:$D,2,0),\"\")","v":""}]
[null,null,null,null,null,null,null,null,null,null,null,null,null,null,null,null,null,null,null,{"$f":"IFERROR(VLOOKUP(G798,site!$C:$D,2,0),\"\")","v":""}]
[null,null,null,null,null,null,null,null,null,null,null,null,null,null,null,null,null,null,null,{"$f":"IFERROR(VLOOKUP(G799,site!$C:$D,2,0),\"\")","v":""}]
[null,null,null,null,null,null,null,null,null,null,null,null,null,null,null,null,null,null,null,{"$f":"IFERROR(VLOOKUP(G800,site!$C:$D,2,0),\"\")","v":""}]
[null,null,null,null,null,null,null,null,null,null,null,null,null,null,null,null,null,null,null,{"$f":"IFERROR(VLOOKUP(G801,site!$C:$D,2,0),\"\")","v":""}]
[null,null,null,null,null,null,null,null,null,null,null,null,null,null,null,null,null,null,null,{"$f":"IFERROR(VLOOKUP(G802,site!$C:$D,2,0),\"\")","v":""}]
[null,null,null,null,null,null,null,null,null,null,null,null,null,null,null,null,null,null,null,{"$f":"IFERROR(VLOOKUP(G803,site!$C:$D,2,0),\"\")","v":""}]
[null,null,null,null,null,null,null,null,null,null,null,null,null,null,null,null,null,null,null,{"$f":"IFERROR(VLOOKUP(G804,site!$C:$D,2,0),\"\")","v":""}]
[null,null,null,null,null,null,null,null,null,null,null,null,null,null,null,null,null,null,null,{"$f":"IFERROR(VLOOKUP(G805,site!$C:$D,2,0),\"\")","v":""}]
[null,null,null,null,null,null,null,null,null,null,null,null,null,null,null,null,null,null,null,{"$f":"IFERROR(VLOOKUP(G806,site!$C:$D,2,0),\"\")","v":""}]
[null,null,null,null,null,null,null,null,null,null,null,null,null,null,null,null,null,null,null,{"$f":"IFERROR(VLOOKUP(G807,site!$C:$D,2,0),\"\")","v":""}]
[null,null,null,null,null,null,null,null,null,null,null,null,null,null,null,null,null,null,null,{"$f":"IFERROR(VLOOKUP(G808,site!$C:$D,2,0),\"\")","v":""}]
[null,null,null,null,null,null,null,null,null,null,null,null,null,null,null,null,null,null,null,{"$f":"IFERROR(VLOOKUP(G809,site!$C:$D,2,0),\"\")","v":""}]
[null,null,null,null,null,null,null,null,null,null,null,null,null,null,null,null,null,null,null,{"$f":"IFERROR(VLOOKUP(G810,site!$C:$D,2,0),\"\")","v":""}]
[null,null,null,null,null,null,null,null,null,null,null,null,null,null,null,null,null,null,null,{"$f":"IFERROR(VLOOKUP(G811,site!$C:$D,2,0),\"\")","v":""}]
[null,null,null,null,null,null,null,null,null,null,null,null,null,null,null,null,null,null,null,{"$f":"IFERROR(VLOOKUP(G812,site!$C:$D,2,0),\"\")","v":""}]
[null,null,null,null,null,null,null,null,null,null,null,null,null,null,null,null,null,null,null,{"$f":"IFERROR(VLOOKUP(G813,site!$C:$D,2,0),\"\")","v":""}]
[null,null,null,null,null,null,null,null,null,null,null,null,null,null,null,null,null,null,null,{"$f":"IFERROR(VLOOKUP(G814,site!$C:$D,2,0),\"\")","v":""}]
[null,null,null,null,null,null,null,null,null,null,null,null,null,null,null,null,null,null,null,{"$f":"IFERROR(VLOOKUP(G815,site!$C:$D,2,0),\"\")","v":""}]
[null,null,null,null,null,null,null,null,null,null,null,null,null,null,null,null,null,null,null,{"$f":"IFERROR(VLOOKUP(G816,site!$C:$D,2,0),\"\")","v":""}]
[null,null,null,null,null,null,null,null,null,null,null,null,null,null,null,null,null,null,null,{"$f":"IFERROR(VLOOKUP(G817,site!$C:$D,2,0),\"\")","v":""}]
[null,null,null,null,null,null,null,null,null,null,null,null,null,null,null,null,null,null,null,{"$f":"IFERROR(VLOOKUP(G818,site!$C:$D,2,0),\"\")","v":""}]
[null,null,null,null,null,null,null,null,null,null,null,null,null,null,null,null,null,null,null,{"$f":"IFERROR(VLOOKUP(G819,site!$C:$D,2,0),\"\")","v":""}]
[null,null,null,null,null,null,null,null,null,null,null,null,null,null,null,null,null,null,null,{"$f":"IFERROR(VLOOKUP(G820,site!$C:$D,2,0),\"\")","v":""}]
[null,null,null,null,null,null,null,null,null,null,null,null,null,null,null,null,null,null,null,{"$f":"IFERROR(VLOOKUP(G821,site!$C:$D,2,0),\"\")","v":""}]
[null,null,null,null,null,null,null,null,null,null,null,null,null,null,null,null,null,null,null,{"$f":"IFERROR(VLOOKUP(G822,site!$C:$D,2,0),\"\")","v":""}]
[null,null,null,null,null,null,null,null,null,null,null,null,null,null,null,null,null,null,null,{"$f":"IFERROR(VLOOKUP(G823,site!$C:$D,2,0),\"\")","v":""}]
[null,null,null,null,null,null,null,null,null,null,null,null,null,null,null,null,null,null,null,{"$f":"IFERROR(VLOOKUP(G824,site!$C:$D,2,0),\"\")","v":""}]
[null,null,null,null,null,null,null,null,null,null,null,null,null,null,null,null,null,null,null,{"$f":"IFERROR(VLOOKUP(G825,site!$C:$D,2,0),\"\")","v":""}]
[null,null,null,null,null,null,null,null,null,null,null,null,null,null,null,null,null,null,null,{"$f":"IFERROR(VLOOKUP(G826,site!$C:$D,2,0),\"\")","v":""}]
[null,null,null,null,null,null,null,null,null,null,null,null,null,null,null,null,null,null,null,{"$f":"IFERROR(VLOOKUP(G827,site!$C:$D,2,0),\"\")","v":""}]
[null,null,null,null,null,null,null,null,null,null,null,null,null,null,null,null,null,null,null,{"$f":"IFERROR(VLOOKUP(G828,site!$C:$D,2,0),\"\")","v":""}]
[null,null,null,null,null,null,null,null,null,null,null,null,null,null,null,null,null,null,null,{"$f":"IFERROR(VLOOKUP(G829,site!$C:$D,2,0),\"\")","v":""}]
[null,null,null,null,null,null,null,null,null,null,null,null,null,null,null,null,null,null,null,{"$f":"IFERROR(VLOOKUP(G830,site!$C:$D,2,0),\"\")","v":""}]
[null,null,null,null,null,null,null,null,null,null,null,null,null,null,null,null,null,null,null,{"$f":"IFERROR(VLOOKUP(G831,site!$C:$D,2,0),\"\")","v":""}]
[null,null,null,null,null,null,null,null,null,null,null,null,null,null,null,null,null,null,null,{"$f":"IFERROR(VLOOKUP(G832,site!$C:$D,2,0),\"\")","v":""}]
[null,null,null,null,null,null,null,null,null,null,null,null,null,null,null,null,null,null,null,{"$f":"IFERROR(VLOOKUP(G833,site!$C:$D,2,0),\"\")","v":""}]
[null,null,null,null,null,null,null,null,null,null,null,null,null,null,null,null,null,null,null,{"$f":"IFERROR(VLOOKUP(G834,site!$C:$D,2,0),\"\")","v":""}]
[null,null,null,null,null,null,null,null,null,null,null,null,null,null,null,null,null,null,null,{"$f":"IFERROR(VLOOKUP(G835,site!$C:$D,2,0),\"\")","v":""}]
[null,null,null,null,null,null,null,null,null,null,null,null,null,null,null,null,null,null,null,{"$f":"IFERROR(VLOOKUP(G836,site!$C:$D,2,0),\"\")","v":""}]
[null,null,null,null,null,null,null,null,null,null,null,null,null,null,null,null,null,null,null,{"$f":"IFERROR(VLOOKUP(G837,site!$C:$D,2,0),\"\")","v":""}]
[null,null,null,null,null,null,null,null,null,null,null,null,null,null,null,null,null,null,null,{"$f":"IFERROR(VLOOKUP(G838,site!$C:$D,2,0),\"\")","v":""}]
[null,null,null,null,null,null,null,null,null,null,null,null,null,null,null,null,null,null,null,{"$f":"IFERROR(VLOOKUP(G839,site!$C:$D,2,0),\"\")","v":""}]
[null,null,null,null,null,null,null,null,null,null,null,null,null,null,null,null,null,null,null,{"$f":"IFERROR(VLOOKUP(G840,site!$C:$D,2,0),\"\")","v":""}]
[null,null,null,null,null,null,null,null,null,null,null,null,null,null,null,null,null,null,null,{"$f":"IFERROR(VLOOKUP(G841,site!$C:$D,2,0),\"\")","v":""}]
[null,null,null,null,null,null,null,null,null,null,null,null,null,null,null,null,null,null,null,{"$f":"IFERROR(VLOOKUP(G842,site!$C:$D,2,0),\"\")","v":""}]
[null,null,null,null,null,null,null,null,null,null,null,null,null,null,null,null,null,null,null,{"$f":"IFERROR(VLOOKUP(G843,site!$C:$D,2,0),\"\")","v":""}]
[null,null,null,null,null,null,null,null,null,null,null,null,null,null,null,null,null,null,null,{"$f":"IFERROR(VLOOKUP(G844,site!$C:$D,2,0),\"\")","v":""}]
[null,null,null,null,null,null,null,null,null,null,null,null,null,null,null,null,null,null,null,{"$f":"IFERROR(VLOOKUP(G845,site!$C:$D,2,0),\"\")","v":""}]
[null,null,null,null,null,null,null,null,null,null,null,null,null,null,null,null,null,null,null,{"$f":"IFERROR(VLOOKUP(G846,site!$C:$D,2,0),\"\")","v":""}]
[null,null,null,null,null,null,null,null,null,null,null,null,null,null,null,null,null,null,null,{"$f":"IFERROR(VLOOKUP(G847,site!$C:$D,2,0),\"\")","v":""}]
[null,null,null,null,null,null,null,null,null,null,null,null,null,null,null,null,null,null,null,{"$f":"IFERROR(VLOOKUP(G848,site!$C:$D,2,0),\"\")","v":""}]
[null,null,null,null,null,null,null,null,null,null,null,null,null,null,null,null,null,null,null,{"$f":"IFERROR(VLOOKUP(G849,site!$C:$D,2,0),\"\")","v":""}]
[null,null,null,null,null,null,null,null,null,null,null,null,null,null,null,null,null,null,null,{"$f":"IFERROR(VLOOKUP(G850,site!$C:$D,2,0),\"\")","v":""}]
[null,null,null,null,null,null,null,null,null,null,null,null,null,null,null,null,null,null,null,{"$f":"IFERROR(VLOOKUP(G851,site!$C:$D,2,0),\"\")","v":""}]
[null,null,null,null,null,null,null,null,null,null,null,null,null,null,null,null,null,null,null,{"$f":"IFERROR(VLOOKUP(G852,site!$C:$D,2,0),\"\")","v":""}]
[null,null,null,null,null,null,null,null,null,null,null,null,null,null,null,null,null,null,null,{"$f":"IFERROR(VLOOKUP(G853,site!$C:$D,2,0),\"\")","v":""}]
[null,null,null,null,null,null,null,null,null,null,null,null,null,null,null,null,null,null,null,{"$f":"IFERROR(VLOOKUP(G854,site!$C:$D,2,0),\"\")","v":""}]
[null,null,null,null,null,null,null,null,null,null,null,null,null,null,null,null,null,null,null,{"$f":"IFERROR(VLOOKUP(G855,site!$C:$D,2,0),\"\")","v":""}]
[null,null,null,null,null,null,null,null,null,null,null,null,null,null,null,null,null,null,null,{"$f":"IFERROR(VLOOKUP(G856,site!$C:$D,2,0),\"\")","v":""}]